Workbook

Sheet Deckblatt
A1: =IF(Ligawahl<10,"Minigolfsport-Verband Bremen/Niedersachsen e.V.","Deutscher Minigolfsport Verband e. V.") -> Minigolfsport-Verband Bremen/Niedersachsen e.V.
A2: Ergebnisliste
A3: =Spieltagwahl&". Spieltag - "&VLOOKUP(Ligawahl,Teamgröße,2,0)&" - Saison 2019" -> 3. Spieltag - Landesliga Nord - Saison 2019
A4: ="am "&TEXT(P7,"TT.MM.JJJJ")&" in "&P8 -> am 05.05.2019 in Cuxhaven
D5: Name, Vorname | G5: Verein | K5: Spieler-Nr. | M5: Lizenz-Nr.
A6: A. Turnierleitung: | D6: =IF(K6="","",IF(ISERROR(VLOOKUP(K6,Spieler,4,0)),"Falsche Nummer!",VLOOKUP(K6,Spieler,4,0)&", "&VLOOKUP(K6,Spieler,3,0))) -> Reinicke, Frank | G6: =IF(ISERROR(VLOOKUP(K6,Spieler,5,0)),"",VLOOKUP(K6,Spieler,5,0)) -> MC Möve Cuxhaven | K6: 42691 | M6: =IF(ISERROR(VLOOKUP(K6,Spieler,7,0)),"",VLOOKUP(K6,Spieler,7,0)) -> 17597
O7: Datum: | P7: 2019-05-05
A8: B. Schiedsgericht: | C8: OSR: | D8: =IF(K8="","",IF(ISERROR(VLOOKUP(K8,Spieler,4,0)),"Falsche Nummer!",VLOOKUP(K8,Spieler,4,0)&", "&VLOOKUP(K8,Spieler,3,0))) -> Krause, Dirk | G8: =IF(ISERROR(VLOOKUP(K8,Spieler,5,0)),"",VLOOKUP(K8,Spieler,5,0)) -> BGC Celle | K8: 48931 | M8: =IF(ISERROR(VLOOKUP(K8,Spieler,7,0)),"",VLOOKUP(K8,Spieler,7,0)) -> 20839 | O8: Ort: | P8: Cuxhaven
C9: SR: | D9: =IF(K9="","",IF(ISERROR(VLOOKUP(K9,Spieler,4,0)),"Falsche Nummer!",VLOOKUP(K9,Spieler,4,0)&", "&VLOOKUP(K9,Spieler,3,0))) -> Hunte, Stefanie | G9: =IF(ISERROR(VLOOKUP(K9,Spieler,5,0)),"",VLOOKUP(K9,Spieler,5,0)) -> BGC Diepholz | K9: 40603 | M9: =IF(ISERROR(VLOOKUP(K9,Spieler,7,0)),"",VLOOKUP(K9,Spieler,7,0)) -> 16468 | O9: System: | P9: Miniaturgolf
C10: SR: | D10: =IF(K10="","",IF(ISERROR(VLOOKUP(K10,Spieler,4,0)),"Falsche Nummer!",VLOOKUP(K10,Spieler,4,0)&", "&VLOOKUP(K10,Spieler,3,0))) -> Weigang, Klaus-Dieter | G10: =IF(ISERROR(VLOOKUP(K10,Spieler,5,0)),"",VLOOKUP(K10,Spieler,5,0)) -> BGC Hannover | K10: 6605 | M10: =IF(ISERROR(VLOOKUP(K10,Spieler,7,0)),"",VLOOKUP(K10,Spieler,7,0)) -> 5025
A12: C. Besondere Vorkommnisse:
A13: keine
A16: D. Mannschaftswertung vor dem Spieltag: | O16: 6
G17: Diep | H17: Celle | I17: Cux | J17: Ort4 | K17: Ort5 | L17: Ges. | M17: ø | N17: Punkte | O17: 5
F18: gespielte Runden: | G18: 4 | H18: 4
A19: 1 | B19: 1. BGC Celle I | G19: 379 | H19: 347 | L19: =SUM(G19:K19) -> 726 | M19: =IF(L19<>0,L19/(SUM($G$18:$K$18)*(AnzSp-2)),0) -> 22.6875 | N19: 16
A20: =A19+1 -> 2 | B20: MC "Möve" Cuxhaven III | G20: 423 | H20: 401 | L20: =SUM(G20:K20) -> 824 | M20: =IF(L20<>0,L20/(SUM($G$18:$K$18)*(AnzSp-2)),0) -> 25.75 | N20: 8
A21: =A20+1 -> 3 | B21: BGC Diepholz II | G21: 427 | H21: 390 | L21: =SUM(G21:K21) -> 817 | M21: =IF(L21<>0,L21/(SUM($G$18:$K$18)*(AnzSp-2)),0) -> 25.53125 | N21: 7
A22: =A21+1 -> 4 | B22: 1. BGC Hannover III | G22: 462 | H22: 288 | L22: =SUM(G22:K22) -> 750 | M22: =IF(L22<>0,L22/(SUM($G$18:$K$18)*(AnzSp-2)),0) -> 23.4375 | N22: 6
A23: =A22+1 -> 5 | B23: VfL Lüneburg I | G23: 427 | H23: 427 | L23: =SUM(G23:K23) -> 854 | M23: =IF(L23<>0,L23/(SUM($G$18:$K$18)*(AnzSp-2)),0) -> 26.6875 | N23: 3
A25: E. Mannschaftswertung des Spieltages:
H26: R1 | I26: R2 | J26: R3 | K26: R4 | L26: Ges. | M26: ø | N26: Punkte
A27: 1 | B27: =IF(INDIRECT("Mannschaften!Z"&A27*(AnzSp+4)-AnzSp&"S"&COLUMN(),0)="","",INDIRECT("Mannschaften!Z"&A27*(AnzSp+4)-AnzSp&"S"&COLUMN(),0)) -> 1. BGC Celle I | H27: =IF(INDIRECT("Mannschaften!Z"&$A27*(AnzSp+4)+2&"S"&COLUMN()-1,0)=0,"",INDIRECT("Mannschaften!Z"&$A27*(AnzSp+4)+2&"S"&COLUMN()-1,0)) -> 106 | I27: 92 | J27: 93 | K27: 97 | L27: =SUM(H27:K27) -> 388 | M27: =IF(L27<>0,L27/(COUNT(H27:K27)*(AnzSp-2)),0) -> 24.25 | N27: 8
A28: =A27+1 -> 2 | B28: =IF(INDIRECT("Mannschaften!Z"&A28*(AnzSp+4)-AnzSp&"S"&COLUMN(),0)="","",INDIRECT("Mannschaften!Z"&A28*(AnzSp+4)-AnzSp&"S"&COLUMN(),0)) -> 1. BGC Hannover III | H28: 106 | I28: 102 | J28: 100 | K28: 101 | L28: =SUM(H28:K28) -> 409 | M28: =IF(L28<>0,L28/(COUNT(H28:K28)*(AnzSp-2)),0) -> 25.5625 | N28: 6
A29: =A28+1 -> 3 | B29: =IF(INDIRECT("Mannschaften!Z"&A29*(AnzSp+4)-AnzSp&"S"&COLUMN(),0)="","",INDIRECT("Mannschaften!Z"&A29*(AnzSp+4)-AnzSp&"S"&COLUMN(),0)) -> VfL Lüneburg I | H29: 102 | I29: 101 | J29: 104 | K29: 112 | L29: =SUM(H29:K29) -> 419 | M29: =IF(L29<>0,L29/(COUNT(H29:K29)*(AnzSp-2)),0) -> 26.1875 | N29: 4
A30: =A29+1 -> 4 | B30: =IF(INDIRECT("Mannschaften!Z"&A30*(AnzSp+4)-AnzSp&"S"&COLUMN(),0)="","",INDIRECT("Mannschaften!Z"&A30*(AnzSp+4)-AnzSp&"S"&COLUMN(),0)) -> MC "Möve" Cuxhaven III | H30: 111 | I30: 105 | J30: 102 | K30: 105 | L30: =SUM(H30:K30) -> 423 | M30: =IF(L30<>0,L30/(COUNT(H30:K30)*(AnzSp-2)),0) -> 26.4375 | N30: 2
A31: =A30+1 -> 5 | B31: =IF(INDIRECT("Mannschaften!Z"&A31*(AnzSp+4)-AnzSp&"S"&COLUMN(),0)="","",INDIRECT("Mannschaften!Z"&A31*(AnzSp+4)-AnzSp&"S"&COLUMN(),0)) -> BGC Diepholz II | H31: 114 | I31: 105 | J31: 107 | K31: 113 | L31: =SUM(H31:K31) -> 439 | M31: =IF(L31<>0,L31/(COUNT(H31:K31)*(AnzSp-2)),0) -> 27.4375 | N31: 0
A33: F. Mannschaftswertung nach dem Spieltag:
G34: =G17 -> Diep | H34: =H17 -> Celle | I34: =I17 -> Cux | J34: =J17 -> Ort4 | K34: =K17 -> Ort5 | L34: Ges. | M34: ø | N34: Punkte
F35: gespielte Runden: | G35: =IF(G19<>"",G18,IF(AnzahlRd>0,AnzahlRd,"")) -> 4 | H35: =IF(H19<>"",H18,IF(G19<>"",AnzahlRd,"")) -> 4 | I35: =IF(I19<>"",I18,IF(H19<>"",AnzahlRd,"")) -> 4 | J35: =IF(J19<>"",J18,IF(I19<>"",AnzahlRd,"")) ->  | K35: =IF(K19<>"",K18,IF(J19<>"",AnzahlRd,"")) -> 
A36: 1 | B36: 1. BGC Celle I | G36: =IF(ISERROR(VLOOKUP($B36,Teams,COLUMN()-1,0)),"",IF(AND(VLOOKUP($B36,Teams,COLUMN()-1,0)="",OR(VLOOKUP($B36,Teams,COLUMN()-2,0)<>"",F$34="")),VLOOKUP($B36,Teams2,11,0),VLOOKUP($B36,Teams,COLUMN()-1,0))) -> 379 | H36: =IF(ISERROR(VLOOKUP($B36,Teams,COLUMN()-1,0)),"",IF(AND(VLOOKUP($B36,Teams,COLUMN()-1,0)="",OR(VLOOKUP($B36,Teams,COLUMN()-2,0)<>"",G$34="")),VLOOKUP($B36,Teams2,11,0),VLOOKUP($B36,Teams,COLUMN()-1,0))) -> 347 | I36: =IF(ISERROR(VLOOKUP($B36,Teams,COLUMN()-1,0)),"",IF(AND(VLOOKUP($B36,Teams,COLUMN()-1,0)="",OR(VLOOKUP($B36,Teams,COLUMN()-2,0)<>"",H$34="")),VLOOKUP($B36,Teams2,11,0),VLOOKUP($B36,Teams,COLUMN()-1,0))) -> 388 | J36: =IF(ISERROR(VLOOKUP($B36,Teams,COLUMN()-1,0)),"",IF(AND(VLOOKUP($B36,Teams,COLUMN()-1,0)="",OR(VLOOKUP($B36,Teams,COLUMN()-2,0)<>"",I$34="")),VLOOKUP($B36,Teams2,11,0),VLOOKUP($B36,Teams,COLUMN()-1,0))) -> 0 | K36: =IF(ISERROR(VLOOKUP($B36,Teams,COLUMN()-1,0)),"",IF(AND(VLOOKUP($B36,Teams,COLUMN()-1,0)="",OR(VLOOKUP($B36,Teams,COLUMN()-2,0)<>"",J$34="")),VLOOKUP($B36,Teams2,11,0),VLOOKUP($B36,Teams,COLUMN()-1,0))) -> 0 | L36: =SUM(G36:K36) -> 1114 | M36: =IF(L36<>0,L36/(SUM($G$35:$K$35)*(AnzSp-2)),0) -> 23.20833333 | N36: =IF(ISERROR(VLOOKUP(B36,Teams,COLUMN()-1,0)),"",VLOOKUP(B36,Teams,13,0)+VLOOKUP(B36,Teams2,13,0)) -> 24
A37: =A36+1 -> 2 | B37: 1. BGC Hannover III | G37: =IF(ISERROR(VLOOKUP($B37,Teams,COLUMN()-1,0)),"",IF(AND(VLOOKUP($B37,Teams,COLUMN()-1,0)="",OR(VLOOKUP($B37,Teams,COLUMN()-2,0)<>"",F$34="")),VLOOKUP($B37,Teams2,11,0),VLOOKUP($B37,Teams,COLUMN()-1,0))) -> 462 | H37: =IF(ISERROR(VLOOKUP($B37,Teams,COLUMN()-1,0)),"",IF(AND(VLOOKUP($B37,Teams,COLUMN()-1,0)="",OR(VLOOKUP($B37,Teams,COLUMN()-2,0)<>"",G$34="")),VLOOKUP($B37,Teams2,11,0),VLOOKUP($B37,Teams,COLUMN()-1,0))) -> 288 | I37: =IF(ISERROR(VLOOKUP($B37,Teams,COLUMN()-1,0)),"",IF(AND(VLOOKUP($B37,Teams,COLUMN()-1,0)="",OR(VLOOKUP($B37,Teams,COLUMN()-2,0)<>"",H$34="")),VLOOKUP($B37,Teams2,11,0),VLOOKUP($B37,Teams,COLUMN()-1,0))) -> 409 | J37: =IF(ISERROR(VLOOKUP($B37,Teams,COLUMN()-1,0)),"",IF(AND(VLOOKUP($B37,Teams,COLUMN()-1,0)="",OR(VLOOKUP($B37,Teams,COLUMN()-2,0)<>"",I$34="")),VLOOKUP($B37,Teams2,11,0),VLOOKUP($B37,Teams,COLUMN()-1,0))) -> 0 | K37: =IF(ISERROR(VLOOKUP($B37,Teams,COLUMN()-1,0)),"",IF(AND(VLOOKUP($B37,Teams,COLUMN()-1,0)="",OR(VLOOKUP($B37,Teams,COLUMN()-2,0)<>"",J$34="")),VLOOKUP($B37,Teams2,11,0),VLOOKUP($B37,Teams,COLUMN()-1,0))) -> 0 | L37: =SUM(G37:K37) -> 1159 | M37: =IF(L37<>0,L37/(SUM($G$35:$K$35)*(AnzSp-2)),0) -> 24.14583333 | N37: =IF(ISERROR(VLOOKUP(B37,Teams,COLUMN()-1,0)),"",VLOOKUP(B37,Teams,13,0)+VLOOKUP(B37,Teams2,13,0)) -> 12
A38: =A37+1 -> 3 | B38: MC "Möve" Cuxhaven III | G38: =IF(ISERROR(VLOOKUP($B38,Teams,COLUMN()-1,0)),"",IF(AND(VLOOKUP($B38,Teams,COLUMN()-1,0)="",OR(VLOOKUP($B38,Teams,COLUMN()-2,0)<>"",F$34="")),VLOOKUP($B38,Teams2,11,0),VLOOKUP($B38,Teams,COLUMN()-1,0))) -> 423 | H38: =IF(ISERROR(VLOOKUP($B38,Teams,COLUMN()-1,0)),"",IF(AND(VLOOKUP($B38,Teams,COLUMN()-1,0)="",OR(VLOOKUP($B38,Teams,COLUMN()-2,0)<>"",G$34="")),VLOOKUP($B38,Teams2,11,0),VLOOKUP($B38,Teams,COLUMN()-1,0))) -> 401 | I38: =IF(ISERROR(VLOOKUP($B38,Teams,COLUMN()-1,0)),"",IF(AND(VLOOKUP($B38,Teams,COLUMN()-1,0)="",OR(VLOOKUP($B38,Teams,COLUMN()-2,0)<>"",H$34="")),VLOOKUP($B38,Teams2,11,0),VLOOKUP($B38,Teams,COLUMN()-1,0))) -> 423 | J38: =IF(ISERROR(VLOOKUP($B38,Teams,COLUMN()-1,0)),"",IF(AND(VLOOKUP($B38,Teams,COLUMN()-1,0)="",OR(VLOOKUP($B38,Teams,COLUMN()-2,0)<>"",I$34="")),VLOOKUP($B38,Teams2,11,0),VLOOKUP($B38,Teams,COLUMN()-1,0))) -> 0 | K38: =IF(ISERROR(VLOOKUP($B38,Teams,COLUMN()-1,0)),"",IF(AND(VLOOKUP($B38,Teams,COLUMN()-1,0)="",OR(VLOOKUP($B38,Teams,COLUMN()-2,0)<>"",J$34="")),VLOOKUP($B38,Teams2,11,0),VLOOKUP($B38,Teams,COLUMN()-1,0))) -> 0 | L38: =SUM(G38:K38) -> 1247 | M38: =IF(L38<>0,L38/(SUM($G$35:$K$35)*(AnzSp-2)),0) -> 25.97916667 | N38: =IF(ISERROR(VLOOKUP(B38,Teams,COLUMN()-1,0)),"",VLOOKUP(B38,Teams,13,0)+VLOOKUP(B38,Teams2,13,0)) -> 10
A39: =A38+1 -> 4 | B39: BGC Diepholz II | G39: =IF(ISERROR(VLOOKUP($B39,Teams,COLUMN()-1,0)),"",IF(AND(VLOOKUP($B39,Teams,COLUMN()-1,0)="",OR(VLOOKUP($B39,Teams,COLUMN()-2,0)<>"",F$34="")),VLOOKUP($B39,Teams2,11,0),VLOOKUP($B39,Teams,COLUMN()-1,0))) -> 427 | H39: =IF(ISERROR(VLOOKUP($B39,Teams,COLUMN()-1,0)),"",IF(AND(VLOOKUP($B39,Teams,COLUMN()-1,0)="",OR(VLOOKUP($B39,Teams,COLUMN()-2,0)<>"",G$34="")),VLOOKUP($B39,Teams2,11,0),VLOOKUP($B39,Teams,COLUMN()-1,0))) -> 390 | I39: =IF(ISERROR(VLOOKUP($B39,Teams,COLUMN()-1,0)),"",IF(AND(VLOOKUP($B39,Teams,COLUMN()-1,0)="",OR(VLOOKUP($B39,Teams,COLUMN()-2,0)<>"",H$34="")),VLOOKUP($B39,Teams2,11,0),VLOOKUP($B39,Teams,COLUMN()-1,0))) -> 439 | J39: =IF(ISERROR(VLOOKUP($B39,Teams,COLUMN()-1,0)),"",IF(AND(VLOOKUP($B39,Teams,COLUMN()-1,0)="",OR(VLOOKUP($B39,Teams,COLUMN()-2,0)<>"",I$34="")),VLOOKUP($B39,Teams2,11,0),VLOOKUP($B39,Teams,COLUMN()-1,0))) -> 0 | K39: =IF(ISERROR(VLOOKUP($B39,Teams,COLUMN()-1,0)),"",IF(AND(VLOOKUP($B39,Teams,COLUMN()-1,0)="",OR(VLOOKUP($B39,Teams,COLUMN()-2,0)<>"",J$34="")),VLOOKUP($B39,Teams2,11,0),VLOOKUP($B39,Teams,COLUMN()-1,0))) -> 0 | L39: =SUM(G39:K39) -> 1256 | M39: =IF(L39<>0,L39/(SUM($G$35:$K$35)*(AnzSp-2)),0) -> 26.16666667 | N39: =IF(ISERROR(VLOOKUP(B39,Teams,COLUMN()-1,0)),"",VLOOKUP(B39,Teams,13,0)+VLOOKUP(B39,Teams2,13,0)) -> 7
A40: =A39+1 -> 5 | B40: VfL Lüneburg I | G40: =IF(ISERROR(VLOOKUP($B40,Teams,COLUMN()-1,0)),"",IF(AND(VLOOKUP($B40,Teams,COLUMN()-1,0)="",OR(VLOOKUP($B40,Teams,COLUMN()-2,0)<>"",F$34="")),VLOOKUP($B40,Teams2,11,0),VLOOKUP($B40,Teams,COLUMN()-1,0))) -> 427 | H40: =IF(ISERROR(VLOOKUP($B40,Teams,COLUMN()-1,0)),"",IF(AND(VLOOKUP($B40,Teams,COLUMN()-1,0)="",OR(VLOOKUP($B40,Teams,COLUMN()-2,0)<>"",G$34="")),VLOOKUP($B40,Teams2,11,0),VLOOKUP($B40,Teams,COLUMN()-1,0))) -> 427 | I40: =IF(ISERROR(VLOOKUP($B40,Teams,COLUMN()-1,0)),"",IF(AND(VLOOKUP($B40,Teams,COLUMN()-1,0)="",OR(VLOOKUP($B40,Teams,COLUMN()-2,0)<>"",H$34="")),VLOOKUP($B40,Teams2,11,0),VLOOKUP($B40,Teams,COLUMN()-1,0))) -> 419 | J40: =IF(ISERROR(VLOOKUP($B40,Teams,COLUMN()-1,0)),"",IF(AND(VLOOKUP($B40,Teams,COLUMN()-1,0)="",OR(VLOOKUP($B40,Teams,COLUMN()-2,0)<>"",I$34="")),VLOOKUP($B40,Teams2,11,0),VLOOKUP($B40,Teams,COLUMN()-1,0))) -> 0 | K40: =IF(ISERROR(VLOOKUP($B40,Teams,COLUMN()-1,0)),"",IF(AND(VLOOKUP($B40,Teams,COLUMN()-1,0)="",OR(VLOOKUP($B40,Teams,COLUMN()-2,0)<>"",J$34="")),VLOOKUP($B40,Teams2,11,0),VLOOKUP($B40,Teams,COLUMN()-1,0))) -> 0 | L40: =SUM(G40:K40) -> 1273 | M40: =IF(L40<>0,L40/(SUM($G$35:$K$35)*(AnzSp-2)),0) -> 26.52083333 | N40: =IF(ISERROR(VLOOKUP(B40,Teams,COLUMN()-1,0)),"",VLOOKUP(B40,Teams,13,0)+VLOOKUP(B40,Teams2,13,0)) -> 7
A42: G. Beste Durchgänge:
A43: Kategorie | C43: Name | F43: Verein | L43: Erg.
A44: =(AnzSp-2)&"er-Mannschaften" -> 4er-Mannschaften | F44: 1. BGC Celle I | L44: 92
A45: Damen: | C45: Lindenberg, Mareike | F45: 1. BGC Celle I | L45: 24
A46: Herren: | C46: Neumann, Kevin | F46: 1. BGC Celle I | L46: 21
A47: Seniorinnen I: | C47: Ehm, Marion | F47: 1. BGC Celle I | L47: 23
A48: Senioren I: | C48: Gaute, Wolfgang | F48: VfL Lüneburg | L48: 22
C49: Wendland, Dieter | F49: MC "Möve" Cuxhaven III | L49: 22
C50: Krause, Dirk | F50: 1. BGC Celle I | L50: 22
A51: Seniorinnen II: | C51: Weigang, Barbara | F51: 1. BGC Hannover III | L51: 24
C52: Jahrmärker, Uta | F52: 1. BGC Celle I | L52: 24 | M52: 2x
A53: Senioren II: | C53: Außerwinkler, Manfred | F53: 1. BGC Hannover III | L53: 22
C54: Beier, Christian | F54: MC "Möve" Cuxhaven III | L54: 22
C55: Weigang, Klaus-Dieter | F55: 1. BGC Hannover III | L55: 22
A56: Jugend weiblich: | C56: Rotermund, Marie Sophie | F56: 1. BGC Celle I | L56: 22 | M56: 2x
A57: Jugend männlich: | C57: Lange, Kevin | F57: BGC Diepholz II | L57: 26
A61: H. Zeichenerklärungen:
A65: Cuxhaven, 07.05.2019
A66: Für die Richtigkeit
A68: Susanne Granz
A69: /Pressereferentin)

Sheet Turnierprotokoll
A2: Turnierprotokoll
A4: Turnier: | B4: =Deckblatt!A3 -> 3. Spieltag - Landesliga Nord - Saison 2019
A5: Veranstalter: | B5: =Deckblatt!A1 -> Minigolfsport-Verband Bremen/Niedersachsen e.V.
A6: Datum: | B6: =Deckblatt!P7 -> 2019-05-05 | C6: Ort: | D6: =Deckblatt!P8 -> Cuxhaven
A7: System(e): | B7: =Deckblatt!P9 -> Miniaturgolf
B9: Name, Vorname | F9: Verein | G9: Lizenz-Nr.
A10: Turnierleiter: | B10: =IF(Deckblatt!D6=0,"",Deckblatt!D6) -> Reinicke, Frank | F10: =IF(Deckblatt!G6=0,"",Deckblatt!G6) -> MC Möve Cuxhaven | G10: =IF(Deckblatt!M6=0,"",Deckblatt!M6) -> 17597
A12: Oberschiedsrichter: | B12: =IF(Deckblatt!D8=0,"",Deckblatt!D8) -> Krause, Dirk | F12: =IF(Deckblatt!G8=0,"",Deckblatt!G8) -> BGC Celle | G12: =IF(Deckblatt!M8=0,"",Deckblatt!M8) -> 20839
A13: Schiedsrichter: | B13: =IF(Deckblatt!D9=0,"",Deckblatt!D9) -> Hunte, Stefanie | F13: =IF(Deckblatt!G9=0,"",Deckblatt!G9) -> BGC Diepholz | G13: =IF(Deckblatt!M9=0,"",Deckblatt!M9) -> 16468
A14: Schiedsrichter: | B14: =IF(Deckblatt!D10=0,"",Deckblatt!D10) -> Weigang, Klaus-Dieter | F14: =IF(Deckblatt!G10=0,"",Deckblatt!G10) -> BGC Hannover | G14: =IF(Deckblatt!M10=0,"",Deckblatt!M10) -> 5025
A16: Auswechselungen: | E16: Strafen:
A17: Entfällt | E17: keine
A18: Besondere Vorkommnisse: | E18: Besonderheiten, Beschädigungen oder Fehler an den Bahnen:
A19: =Deckblatt!A13&", "&Deckblatt!A14 -> keine, | E19: keine
A20: Ausnahmen für Spieler/innen: | E20: Ausnahmen DMV-Sportordnung/int. Spielregeln:
A21: keine | E21: keine
A22: Proteste, Entscheidung Jury (bei Bedarf ist ein Extrablatt zu fertigen):
A23: keine
A25: Oberschiedsrichter: | B25: gez. Dirk Krause
A27: Datum: | B27: 2019-05-05 | D27: Turnierleiter: | E27: gez. Frank Reinicke

Sheet Einzelwertung
A2: I. Einzelwertung
A3: Pl. | B3: Nachname | C3: Vorname | D3: Verein | E3: Sp.Nr. | F3: Kat. | G3: R1 | H3: R2 | I3: R3 | J3: R4 | K3: Ges. | L3: ø | M3: Diff.
A4: 1 | B4: =IF(E4="","",IF(ISERROR(VLOOKUP(E4,Spieler,4,0)),"Falsche Nummer!",VLOOKUP(E4,Spieler,4,0))) -> Außerwinkler | C4: =IF(ISERROR(VLOOKUP(E4,Spieler,3,0)),"",VLOOKUP(E4,Spieler,3,0)) -> Manfred | D4: =IF(ISERROR(VLOOKUP(E4,Spieler,5,0)),"",VLOOKUP(E4,Spieler,5,0)) -> BGC Hannover | E4: 32897 | F4: =IF(ISERROR(VLOOKUP(E4,Spieler,2,0)),"",VLOOKUP(E4,Spieler,2,0)) -> Sm 2 | G4: 25 | H4: 24 | I4: 25 | J4: 22 | K4: =IF(COUNT(G4:J4)>0,SUM(G4:J4),"") -> 96 | L4: =IF(K4<>"",K4/COUNT(G4:J4),"") -> 24 | M4: =IF(COUNT(G4:J4)>1,LARGE(G4:J4,1)-SMALL(G4:J4,1),"") -> 3 | N4: =IF(F4<>"",VLOOKUP(F4,Kategorieliste,2,0),"") -> 6
A5: =IF(B5<>"",A4+1,"") -> 2 | B5: =IF(E5="","",IF(ISERROR(VLOOKUP(E5,Spieler,4,0)),"Falsche Nummer!",VLOOKUP(E5,Spieler,4,0))) -> Rotermund | C5: =IF(ISERROR(VLOOKUP(E5,Spieler,3,0)),"",VLOOKUP(E5,Spieler,3,0)) -> Marie Sophie | D5: =IF(ISERROR(VLOOKUP(E5,Spieler,5,0)),"",VLOOKUP(E5,Spieler,5,0)) -> BGC Celle | E5: 66952 | F5: =IF(ISERROR(VLOOKUP(E5,Spieler,2,0)),"",VLOOKUP(E5,Spieler,2,0)) -> Jw | G5: 28 | H5: 22 | I5: 22 | J5: 25 | K5: =IF(COUNT(G5:J5)>0,SUM(G5:J5),"") -> 97 | L5: =IF(K5<>"",K5/COUNT(G5:J5),"") -> 24.25 | M5: =IF(COUNT(G5:J5)>1,LARGE(G5:J5,1)-SMALL(G5:J5,1),"") -> 6 | N5: =IF(F5<>"",VLOOKUP(F5,Kategorieliste,2,0),"") -> 7
A6: =IF(B6<>"",A5+1,"") -> 3 | B6: =IF(E6="","",IF(ISERROR(VLOOKUP(E6,Spieler,4,0)),"Falsche Nummer!",VLOOKUP(E6,Spieler,4,0))) -> Neumann | C6: =IF(ISERROR(VLOOKUP(E6,Spieler,3,0)),"",VLOOKUP(E6,Spieler,3,0)) -> Kevin | D6: =IF(ISERROR(VLOOKUP(E6,Spieler,5,0)),"",VLOOKUP(E6,Spieler,5,0)) -> BGC Celle | E6: 38363 | F6: =IF(ISERROR(VLOOKUP(E6,Spieler,2,0)),"",VLOOKUP(E6,Spieler,2,0)) -> H | G6: 25 | H6: 21 | I6: 24 | J6: 27 | K6: =IF(COUNT(G6:J6)>0,SUM(G6:J6),"") -> 97 | L6: =IF(K6<>"",K6/COUNT(G6:J6),"") -> 24.25 | M6: =IF(COUNT(G6:J6)>1,LARGE(G6:J6,1)-SMALL(G6:J6,1),"") -> 6 | N6: =IF(F6<>"",VLOOKUP(F6,Kategorieliste,2,0),"") -> 2
A7: 4 | B7: =IF(E7="","",IF(ISERROR(VLOOKUP(E7,Spieler,4,0)),"Falsche Nummer!",VLOOKUP(E7,Spieler,4,0))) -> Michna | C7: =IF(ISERROR(VLOOKUP(E7,Spieler,3,0)),"",VLOOKUP(E7,Spieler,3,0)) -> Wolfgang | D7: =IF(ISERROR(VLOOKUP(E7,Spieler,5,0)),"",VLOOKUP(E7,Spieler,5,0)) -> MC Möve Cuxhaven | E7: 33336 | F7: =IF(ISERROR(VLOOKUP(E7,Spieler,2,0)),"",VLOOKUP(E7,Spieler,2,0)) -> Sm 2 | G7: 23 | H7: 27 | I7: 23 | J7: 25 | K7: =IF(COUNT(G7:J7)>0,SUM(G7:J7),"") -> 98 | L7: =IF(K7<>"",K7/COUNT(G7:J7),"") -> 24.5 | M7: =IF(COUNT(G7:J7)>1,LARGE(G7:J7,1)-SMALL(G7:J7,1),"") -> 4 | N7: =IF(F7<>"",VLOOKUP(F7,Kategorieliste,2,0),"") -> 6
A8: 5 | B8: =IF(E8="","",IF(ISERROR(VLOOKUP(E8,Spieler,4,0)),"Falsche Nummer!",VLOOKUP(E8,Spieler,4,0))) -> Ehm | C8: =IF(ISERROR(VLOOKUP(E8,Spieler,3,0)),"",VLOOKUP(E8,Spieler,3,0)) -> Marion | D8: =IF(ISERROR(VLOOKUP(E8,Spieler,5,0)),"",VLOOKUP(E8,Spieler,5,0)) -> BGC Celle | E8: 46898 | F8: =IF(ISERROR(VLOOKUP(E8,Spieler,2,0)),"",VLOOKUP(E8,Spieler,2,0)) -> Sw 1 | G8: 25 | H8: 25 | I8: 27 | J8: 23 | K8: =IF(COUNT(G8:J8)>0,SUM(G8:J8),"") -> 100 | L8: =IF(K8<>"",K8/COUNT(G8:J8),"") -> 25 | M8: =IF(COUNT(G8:J8)>1,LARGE(G8:J8,1)-SMALL(G8:J8,1),"") -> 4 | N8: =IF(F8<>"",VLOOKUP(F8,Kategorieliste,2,0),"") -> 3
A9: 6 | B9: =IF(E9="","",IF(ISERROR(VLOOKUP(E9,Spieler,4,0)),"Falsche Nummer!",VLOOKUP(E9,Spieler,4,0))) -> Weigang | C9: =IF(ISERROR(VLOOKUP(E9,Spieler,3,0)),"",VLOOKUP(E9,Spieler,3,0)) -> Barbara | D9: =IF(ISERROR(VLOOKUP(E9,Spieler,5,0)),"",VLOOKUP(E9,Spieler,5,0)) -> BGC Hannover | E9: 46277 | F9: =IF(ISERROR(VLOOKUP(E9,Spieler,2,0)),"",VLOOKUP(E9,Spieler,2,0)) -> Sw 2 | G9: 25 | H9: 24 | I9: 26 | J9: 26 | K9: =IF(COUNT(G9:J9)>0,SUM(G9:J9),"") -> 101 | L9: =IF(K9<>"",K9/COUNT(G9:J9),"") -> 25.25 | M9: =IF(COUNT(G9:J9)>1,LARGE(G9:J9,1)-SMALL(G9:J9,1),"") -> 2 | N9: =IF(F9<>"",VLOOKUP(F9,Kategorieliste,2,0),"") -> 5
A10: 7 | B10: =IF(E10="","",IF(ISERROR(VLOOKUP(E10,Spieler,4,0)),"Falsche Nummer!",VLOOKUP(E10,Spieler,4,0))) -> Jahrmärker | C10: =IF(ISERROR(VLOOKUP(E10,Spieler,3,0)),"",VLOOKUP(E10,Spieler,3,0)) -> Uta | D10: =IF(ISERROR(VLOOKUP(E10,Spieler,5,0)),"",VLOOKUP(E10,Spieler,5,0)) -> BGC Celle | E10: 44499 | F10: =IF(ISERROR(VLOOKUP(E10,Spieler,2,0)),"",VLOOKUP(E10,Spieler,2,0)) -> Sw 2 | G10: 25 | H10: 24 | I10: 28 | J10: 24 | K10: =IF(COUNT(G10:J10)>0,SUM(G10:J10),"") -> 101 | L10: =IF(K10<>"",K10/COUNT(G10:J10),"") -> 25.25 | M10: =IF(COUNT(G10:J10)>1,LARGE(G10:J10,1)-SMALL(G10:J10,1),"") -> 4 | N10: =IF(F10<>"",VLOOKUP(F10,Kategorieliste,2,0),"") -> 5
A11: 8 | B11: =IF(E11="","",IF(ISERROR(VLOOKUP(E11,Spieler,4,0)),"Falsche Nummer!",VLOOKUP(E11,Spieler,4,0))) -> Gaute | C11: =IF(ISERROR(VLOOKUP(E11,Spieler,3,0)),"",VLOOKUP(E11,Spieler,3,0)) -> Wolfgang | D11: =IF(ISERROR(VLOOKUP(E11,Spieler,5,0)),"",VLOOKUP(E11,Spieler,5,0)) -> VfL Lüneburg | E11: 34092 | F11: =IF(ISERROR(VLOOKUP(E11,Spieler,2,0)),"",VLOOKUP(E11,Spieler,2,0)) -> Sm 1 | G11: 22 | H11: 26 | I11: 24 | J11: 29 | K11: =IF(COUNT(G11:J11)>0,SUM(G11:J11),"") -> 101 | L11: =IF(K11<>"",K11/COUNT(G11:J11),"") -> 25.25 | M11: =IF(COUNT(G11:J11)>1,LARGE(G11:J11,1)-SMALL(G11:J11,1),"") -> 7 | N11: =IF(F11<>"",VLOOKUP(F11,Kategorieliste,2,0),"") -> 4
A12: 9 | B12: =IF(E12="","",IF(ISERROR(VLOOKUP(E12,Spieler,4,0)),"Falsche Nummer!",VLOOKUP(E12,Spieler,4,0))) -> Wesemann | C12: =IF(ISERROR(VLOOKUP(E12,Spieler,3,0)),"",VLOOKUP(E12,Spieler,3,0)) -> Florian | D12: =IF(ISERROR(VLOOKUP(E12,Spieler,5,0)),"",VLOOKUP(E12,Spieler,5,0)) -> BGC Diepholz | E12: 35546 | F12: =IF(ISERROR(VLOOKUP(E12,Spieler,2,0)),"",VLOOKUP(E12,Spieler,2,0)) -> H | G12: 30 | H12: 25 | I12: 22 | J12: 25 | K12: =IF(COUNT(G12:J12)>0,SUM(G12:J12),"") -> 102 | L12: =IF(K12<>"",K12/COUNT(G12:J12),"") -> 25.5 | M12: =IF(COUNT(G12:J12)>1,LARGE(G12:J12,1)-SMALL(G12:J12,1),"") -> 8 | N12: =IF(F12<>"",VLOOKUP(F12,Kategorieliste,2,0),"") -> 2
A13: 10 | B13: =IF(E13="","",IF(ISERROR(VLOOKUP(E13,Spieler,4,0)),"Falsche Nummer!",VLOOKUP(E13,Spieler,4,0))) -> Prediger | C13: =IF(ISERROR(VLOOKUP(E13,Spieler,3,0)),"",VLOOKUP(E13,Spieler,3,0)) -> Lars | D13: =IF(ISERROR(VLOOKUP(E13,Spieler,5,0)),"",VLOOKUP(E13,Spieler,5,0)) -> VfL Lüneburg | E13: 66608 | F13: =IF(ISERROR(VLOOKUP(E13,Spieler,2,0)),"",VLOOKUP(E13,Spieler,2,0)) -> H | G13: 24 | H13: 23 | I13: 28 | J13: 28 | K13: =IF(COUNT(G13:J13)>0,SUM(G13:J13),"") -> 103 | L13: =IF(K13<>"",K13/COUNT(G13:J13),"") -> 25.75 | M13: =IF(COUNT(G13:J13)>1,LARGE(G13:J13,1)-SMALL(G13:J13,1),"") -> 5 | N13: =IF(F13<>"",VLOOKUP(F13,Kategorieliste,2,0),"") -> 2
A14: 11 | B14: =IF(E14="","",IF(ISERROR(VLOOKUP(E14,Spieler,4,0)),"Falsche Nummer!",VLOOKUP(E14,Spieler,4,0))) -> Lindenberg | C14: =IF(ISERROR(VLOOKUP(E14,Spieler,3,0)),"",VLOOKUP(E14,Spieler,3,0)) -> Mareike | D14: =IF(ISERROR(VLOOKUP(E14,Spieler,5,0)),"",VLOOKUP(E14,Spieler,5,0)) -> BGC Celle | E14: 40203 | F14: =IF(ISERROR(VLOOKUP(E14,Spieler,2,0)),"",VLOOKUP(E14,Spieler,2,0)) -> D | G14: 30 | H14: 24 | I14: 25 | J14: 25 | K14: =IF(COUNT(G14:J14)>0,SUM(G14:J14),"") -> 104 | L14: =IF(K14<>"",K14/COUNT(G14:J14),"") -> 26 | M14: =IF(COUNT(G14:J14)>1,LARGE(G14:J14,1)-SMALL(G14:J14,1),"") -> 6 | N14: =IF(F14<>"",VLOOKUP(F14,Kategorieliste,2,0),"") -> 1
A15: 12 | B15: =IF(E15="","",IF(ISERROR(VLOOKUP(E15,Spieler,4,0)),"Falsche Nummer!",VLOOKUP(E15,Spieler,4,0))) -> Beier | C15: =IF(ISERROR(VLOOKUP(E15,Spieler,3,0)),"",VLOOKUP(E15,Spieler,3,0)) -> Christian | D15: =IF(ISERROR(VLOOKUP(E15,Spieler,5,0)),"",VLOOKUP(E15,Spieler,5,0)) -> MC Möve Cuxhaven | E15: 66569 | F15: =IF(ISERROR(VLOOKUP(E15,Spieler,2,0)),"",VLOOKUP(E15,Spieler,2,0)) -> Sm 2 | G15: 30 | H15: 22 | I15: 24 | J15: 28 | K15: =IF(COUNT(G15:J15)>0,SUM(G15:J15),"") -> 104 | L15: =IF(K15<>"",K15/COUNT(G15:J15),"") -> 26 | M15: =IF(COUNT(G15:J15)>1,LARGE(G15:J15,1)-SMALL(G15:J15,1),"") -> 8 | N15: =IF(F15<>"",VLOOKUP(F15,Kategorieliste,2,0),"") -> 6
A16: 13 | B16: =IF(E16="","",IF(ISERROR(VLOOKUP(E16,Spieler,4,0)),"Falsche Nummer!",VLOOKUP(E16,Spieler,4,0))) -> Raschke | C16: =IF(ISERROR(VLOOKUP(E16,Spieler,3,0)),"",VLOOKUP(E16,Spieler,3,0)) -> Marcel | D16: =IF(ISERROR(VLOOKUP(E16,Spieler,5,0)),"",VLOOKUP(E16,Spieler,5,0)) -> BGC Diepholz | E16: 36567 | F16: =IF(ISERROR(VLOOKUP(E16,Spieler,2,0)),"",VLOOKUP(E16,Spieler,2,0)) -> H | G16: 28 | H16: 25 | I16: 26 | J16: 27 | K16: =IF(COUNT(G16:J16)>0,SUM(G16:J16),"") -> 106 | L16: =IF(K16<>"",K16/COUNT(G16:J16),"") -> 26.5 | M16: =IF(COUNT(G16:J16)>1,LARGE(G16:J16,1)-SMALL(G16:J16,1),"") -> 3 | N16: =IF(F16<>"",VLOOKUP(F16,Kategorieliste,2,0),"") -> 2
A17: 14 | B17: =IF(E17="","",IF(ISERROR(VLOOKUP(E17,Spieler,4,0)),"Falsche Nummer!",VLOOKUP(E17,Spieler,4,0))) -> Schwarz | C17: =IF(ISERROR(VLOOKUP(E17,Spieler,3,0)),"",VLOOKUP(E17,Spieler,3,0)) -> Detlef | D17: =IF(ISERROR(VLOOKUP(E17,Spieler,5,0)),"",VLOOKUP(E17,Spieler,5,0)) -> MC Möve Cuxhaven | E17: 49255 | F17: =IF(ISERROR(VLOOKUP(E17,Spieler,2,0)),"",VLOOKUP(E17,Spieler,2,0)) -> Sm 2 | G17: 25 | H17: 30 | I17: 27 | J17: 25 | K17: =IF(COUNT(G17:J17)>0,SUM(G17:J17),"") -> 107 | L17: =IF(K17<>"",K17/COUNT(G17:J17),"") -> 26.75 | M17: =IF(COUNT(G17:J17)>1,LARGE(G17:J17,1)-SMALL(G17:J17,1),"") -> 5 | N17: =IF(F17<>"",VLOOKUP(F17,Kategorieliste,2,0),"") -> 6
A18: 15 | B18: =IF(E18="","",IF(ISERROR(VLOOKUP(E18,Spieler,4,0)),"Falsche Nummer!",VLOOKUP(E18,Spieler,4,0))) -> Weigang | C18: =IF(ISERROR(VLOOKUP(E18,Spieler,3,0)),"",VLOOKUP(E18,Spieler,3,0)) -> Klaus-Dieter | D18: =IF(ISERROR(VLOOKUP(E18,Spieler,5,0)),"",VLOOKUP(E18,Spieler,5,0)) -> BGC Hannover | E18: 6605 | F18: =IF(ISERROR(VLOOKUP(E18,Spieler,2,0)),"",VLOOKUP(E18,Spieler,2,0)) -> Sm 2 | G18: 28 | H18: 28 | I18: 22 | J18: 29 | K18: =IF(COUNT(G18:J18)>0,SUM(G18:J18),"") -> 107 | L18: =IF(K18<>"",K18/COUNT(G18:J18),"") -> 26.75 | M18: =IF(COUNT(G18:J18)>1,LARGE(G18:J18,1)-SMALL(G18:J18,1),"") -> 7 | N18: =IF(F18<>"",VLOOKUP(F18,Kategorieliste,2,0),"") -> 6
A19: 16 | B19: =IF(E19="","",IF(ISERROR(VLOOKUP(E19,Spieler,4,0)),"Falsche Nummer!",VLOOKUP(E19,Spieler,4,0))) -> Wendlandt | C19: =IF(ISERROR(VLOOKUP(E19,Spieler,3,0)),"",VLOOKUP(E19,Spieler,3,0)) -> Dieter | D19: =IF(ISERROR(VLOOKUP(E19,Spieler,5,0)),"",VLOOKUP(E19,Spieler,5,0)) -> MC Möve Cuxhaven | E19: 49256 | F19: =IF(ISERROR(VLOOKUP(E19,Spieler,2,0)),"",VLOOKUP(E19,Spieler,2,0)) -> Sm 1 | G19: 30 | H19: 29 | I19: 22 | J19: 26 | K19: =IF(COUNT(G19:J19)>0,SUM(G19:J19),"") -> 107 | L19: =IF(K19<>"",K19/COUNT(G19:J19),"") -> 26.75 | M19: =IF(COUNT(G19:J19)>1,LARGE(G19:J19,1)-SMALL(G19:J19,1),"") -> 8 | N19: =IF(F19<>"",VLOOKUP(F19,Kategorieliste,2,0),"") -> 4
A20: 17 | B20: =IF(E20="","",IF(ISERROR(VLOOKUP(E20,Spieler,4,0)),"Falsche Nummer!",VLOOKUP(E20,Spieler,4,0))) -> Krause | C20: =IF(ISERROR(VLOOKUP(E20,Spieler,3,0)),"",VLOOKUP(E20,Spieler,3,0)) -> Dirk | D20: =IF(ISERROR(VLOOKUP(E20,Spieler,5,0)),"",VLOOKUP(E20,Spieler,5,0)) -> BGC Celle | E20: 48931 | F20: =IF(ISERROR(VLOOKUP(E20,Spieler,2,0)),"",VLOOKUP(E20,Spieler,2,0)) -> Sm 1 | G20: 30 | H20: 31 | I20: 22 | J20: 24 | K20: =IF(COUNT(G20:J20)>0,SUM(G20:J20),"") -> 107 | L20: =IF(K20<>"",K20/COUNT(G20:J20),"") -> 26.75 | M20: =IF(COUNT(G20:J20)>1,LARGE(G20:J20,1)-SMALL(G20:J20,1),"") -> 9 | N20: =IF(F20<>"",VLOOKUP(F20,Kategorieliste,2,0),"") -> 4
A21: 18 | B21: =IF(E21="","",IF(ISERROR(VLOOKUP(E21,Spieler,4,0)),"Falsche Nummer!",VLOOKUP(E21,Spieler,4,0))) -> Ehm | C21: =IF(ISERROR(VLOOKUP(E21,Spieler,3,0)),"",VLOOKUP(E21,Spieler,3,0)) -> Christoph | D21: =IF(ISERROR(VLOOKUP(E21,Spieler,5,0)),"",VLOOKUP(E21,Spieler,5,0)) -> BGC Celle | E21: 34006 | F21: =IF(ISERROR(VLOOKUP(E21,Spieler,2,0)),"",VLOOKUP(E21,Spieler,2,0)) -> H | G21: 28 | H21: 25 | I21: 28 | J21: 30 | K21: =IF(COUNT(G21:J21)>0,SUM(G21:J21),"") -> 111 | L21: =IF(K21<>"",K21/COUNT(G21:J21),"") -> 27.75 | M21: =IF(COUNT(G21:J21)>1,LARGE(G21:J21,1)-SMALL(G21:J21,1),"") -> 5 | N21: =IF(F21<>"",VLOOKUP(F21,Kategorieliste,2,0),"") -> 2
A22: 19 | B22: =IF(E22="","",IF(ISERROR(VLOOKUP(E22,Spieler,4,0)),"Falsche Nummer!",VLOOKUP(E22,Spieler,4,0))) -> Lührs | C22: =IF(ISERROR(VLOOKUP(E22,Spieler,3,0)),"",VLOOKUP(E22,Spieler,3,0)) -> Werner | D22: =IF(ISERROR(VLOOKUP(E22,Spieler,5,0)),"",VLOOKUP(E22,Spieler,5,0)) -> VfL Lüneburg | E22: 3261 | F22: =IF(ISERROR(VLOOKUP(E22,Spieler,2,0)),"",VLOOKUP(E22,Spieler,2,0)) -> Sm 2 | G22: 29 | H22: 31 | I22: 26 | J22: 26 | K22: =IF(COUNT(G22:J22)>0,SUM(G22:J22),"") -> 112 | L22: =IF(K22<>"",K22/COUNT(G22:J22),"") -> 28 | M22: =IF(COUNT(G22:J22)>1,LARGE(G22:J22,1)-SMALL(G22:J22,1),"") -> 5 | N22: =IF(F22<>"",VLOOKUP(F22,Kategorieliste,2,0),"") -> 6
A23: 20 | B23: =IF(E23="","",IF(ISERROR(VLOOKUP(E23,Spieler,4,0)),"Falsche Nummer!",VLOOKUP(E23,Spieler,4,0))) -> Müller | C23: =IF(ISERROR(VLOOKUP(E23,Spieler,3,0)),"",VLOOKUP(E23,Spieler,3,0)) -> Wolfgang | D23: =IF(ISERROR(VLOOKUP(E23,Spieler,5,0)),"",VLOOKUP(E23,Spieler,5,0)) -> VfL Lüneburg | E23: 18367 | F23: =IF(ISERROR(VLOOKUP(E23,Spieler,2,0)),"",VLOOKUP(E23,Spieler,2,0)) -> Sm 2 | G23: 31 | H23: 27 | I23: 26 | J23: 29 | K23: =IF(COUNT(G23:J23)>0,SUM(G23:J23),"") -> 113 | L23: =IF(K23<>"",K23/COUNT(G23:J23),"") -> 28.25 | M23: =IF(COUNT(G23:J23)>1,LARGE(G23:J23,1)-SMALL(G23:J23,1),"") -> 5 | N23: =IF(F23<>"",VLOOKUP(F23,Kategorieliste,2,0),"") -> 6
A24: 21 | B24: =IF(E24="","",IF(ISERROR(VLOOKUP(E24,Spieler,4,0)),"Falsche Nummer!",VLOOKUP(E24,Spieler,4,0))) -> Schaper | C24: =IF(ISERROR(VLOOKUP(E24,Spieler,3,0)),"",VLOOKUP(E24,Spieler,3,0)) -> Dirk | D24: =IF(ISERROR(VLOOKUP(E24,Spieler,5,0)),"",VLOOKUP(E24,Spieler,5,0)) -> BGC Hannover | E24: 5062 | F24: =IF(ISERROR(VLOOKUP(E24,Spieler,2,0)),"",VLOOKUP(E24,Spieler,2,0)) -> Sm 2 | G24: 28 | H24: 26 | I24: 27 | J24: 32 | K24: =IF(COUNT(G24:J24)>0,SUM(G24:J24),"") -> 113 | L24: =IF(K24<>"",K24/COUNT(G24:J24),"") -> 28.25 | M24: =IF(COUNT(G24:J24)>1,LARGE(G24:J24,1)-SMALL(G24:J24,1),"") -> 6 | N24: =IF(F24<>"",VLOOKUP(F24,Kategorieliste,2,0),"") -> 6
A25: 22 | B25: =IF(E25="","",IF(ISERROR(VLOOKUP(E25,Spieler,4,0)),"Falsche Nummer!",VLOOKUP(E25,Spieler,4,0))) -> Schilling | C25: =IF(ISERROR(VLOOKUP(E25,Spieler,3,0)),"",VLOOKUP(E25,Spieler,3,0)) -> Jan-Rainer | D25: =IF(ISERROR(VLOOKUP(E25,Spieler,5,0)),"",VLOOKUP(E25,Spieler,5,0)) -> VfL Lüneburg | E25: 66653 | F25: =IF(ISERROR(VLOOKUP(E25,Spieler,2,0)),"",VLOOKUP(E25,Spieler,2,0)) -> H | G25: 26 | H25: 27 | I25: 32 | J25: 29 | K25: =IF(COUNT(G25:J25)>0,SUM(G25:J25),"") -> 114 | L25: =IF(K25<>"",K25/COUNT(G25:J25),"") -> 28.5 | M25: =IF(COUNT(G25:J25)>1,LARGE(G25:J25,1)-SMALL(G25:J25,1),"") -> 6 | N25: =IF(F25<>"",VLOOKUP(F25,Kategorieliste,2,0),"") -> 2
A26: 23 | B26: =IF(E26="","",IF(ISERROR(VLOOKUP(E26,Spieler,4,0)),"Falsche Nummer!",VLOOKUP(E26,Spieler,4,0))) -> Symanzyk | C26: =IF(ISERROR(VLOOKUP(E26,Spieler,3,0)),"",VLOOKUP(E26,Spieler,3,0)) -> Daniela | D26: =IF(ISERROR(VLOOKUP(E26,Spieler,5,0)),"",VLOOKUP(E26,Spieler,5,0)) -> MC Möve Cuxhaven | E26: 31988 | F26: =IF(ISERROR(VLOOKUP(E26,Spieler,2,0)),"",VLOOKUP(E26,Spieler,2,0)) -> D | G26: 26 | H26: 29 | I26: 29 | J26: 31 | K26: =IF(COUNT(G26:J26)>0,SUM(G26:J26),"") -> 115 | L26: =IF(K26<>"",K26/COUNT(G26:J26),"") -> 28.75 | M26: =IF(COUNT(G26:J26)>1,LARGE(G26:J26,1)-SMALL(G26:J26,1),"") -> 5 | N26: =IF(F26<>"",VLOOKUP(F26,Kategorieliste,2,0),"") -> 1
A27: 24 | B27: =IF(E27="","",IF(ISERROR(VLOOKUP(E27,Spieler,4,0)),"Falsche Nummer!",VLOOKUP(E27,Spieler,4,0))) -> Dreyer | C27: =IF(ISERROR(VLOOKUP(E27,Spieler,3,0)),"",VLOOKUP(E27,Spieler,3,0)) -> Horst | D27: =IF(ISERROR(VLOOKUP(E27,Spieler,5,0)),"",VLOOKUP(E27,Spieler,5,0)) -> VfL Lüneburg | E27: 6203 | F27: =IF(ISERROR(VLOOKUP(E27,Spieler,2,0)),"",VLOOKUP(E27,Spieler,2,0)) -> Sm 2 | G27: 27 | H27: 25 | I27: 33 | J27: 30 | K27: =IF(COUNT(G27:J27)>0,SUM(G27:J27),"") -> 115 | L27: =IF(K27<>"",K27/COUNT(G27:J27),"") -> 28.75 | M27: =IF(COUNT(G27:J27)>1,LARGE(G27:J27,1)-SMALL(G27:J27,1),"") -> 8 | N27: =IF(F27<>"",VLOOKUP(F27,Kategorieliste,2,0),"") -> 6
A28: 25 | B28: =IF(E28="","",IF(ISERROR(VLOOKUP(E28,Spieler,4,0)),"Falsche Nummer!",VLOOKUP(E28,Spieler,4,0))) -> Reinicke | C28: =IF(ISERROR(VLOOKUP(E28,Spieler,3,0)),"",VLOOKUP(E28,Spieler,3,0)) -> Frank | D28: =IF(ISERROR(VLOOKUP(E28,Spieler,5,0)),"",VLOOKUP(E28,Spieler,5,0)) -> MC Möve Cuxhaven | E28: 42691 | F28: =IF(ISERROR(VLOOKUP(E28,Spieler,2,0)),"",VLOOKUP(E28,Spieler,2,0)) -> Sm 2 | G28: 33 | H28: 25 | I28: 31 | J28: 26 | K28: =IF(COUNT(G28:J28)>0,SUM(G28:J28),"") -> 115 | L28: =IF(K28<>"",K28/COUNT(G28:J28),"") -> 28.75 | M28: =IF(COUNT(G28:J28)>1,LARGE(G28:J28,1)-SMALL(G28:J28,1),"") -> 8 | N28: =IF(F28<>"",VLOOKUP(F28,Kategorieliste,2,0),"") -> 6
A29: 26 | B29: =IF(E29="","",IF(ISERROR(VLOOKUP(E29,Spieler,4,0)),"Falsche Nummer!",VLOOKUP(E29,Spieler,4,0))) -> Schlottermüller | C29: =IF(ISERROR(VLOOKUP(E29,Spieler,3,0)),"",VLOOKUP(E29,Spieler,3,0)) -> Rainer | D29: =IF(ISERROR(VLOOKUP(E29,Spieler,5,0)),"",VLOOKUP(E29,Spieler,5,0)) -> BGC Hannover | E29: 43245 | F29: =IF(ISERROR(VLOOKUP(E29,Spieler,2,0)),"",VLOOKUP(E29,Spieler,2,0)) -> Sm 1 | G29: 32 | H29: 29 | I29: 31 | J29: 24 | K29: =IF(COUNT(G29:J29)>0,SUM(G29:J29),"") -> 116 | L29: =IF(K29<>"",K29/COUNT(G29:J29),"") -> 29 | M29: =IF(COUNT(G29:J29)>1,LARGE(G29:J29,1)-SMALL(G29:J29,1),"") -> 8 | N29: =IF(F29<>"",VLOOKUP(F29,Kategorieliste,2,0),"") -> 4
A30: 27 | B30: =IF(E30="","",IF(ISERROR(VLOOKUP(E30,Spieler,4,0)),"Falsche Nummer!",VLOOKUP(E30,Spieler,4,0))) -> Lange | C30: =IF(ISERROR(VLOOKUP(E30,Spieler,3,0)),"",VLOOKUP(E30,Spieler,3,0)) -> Kevin | D30: =IF(ISERROR(VLOOKUP(E30,Spieler,5,0)),"",VLOOKUP(E30,Spieler,5,0)) -> BGC Diepholz | E30: 879 | F30: =IF(ISERROR(VLOOKUP(E30,Spieler,2,0)),"",VLOOKUP(E30,Spieler,2,0)) -> Jm | G30: 26 | H30: 27 | I30: 31 | J30: 36 | K30: =IF(COUNT(G30:J30)>0,SUM(G30:J30),"") -> 120 | L30: =IF(K30<>"",K30/COUNT(G30:J30),"") -> 30 | M30: =IF(COUNT(G30:J30)>1,LARGE(G30:J30,1)-SMALL(G30:J30,1),"") -> 10 | N30: =IF(F30<>"",VLOOKUP(F30,Kategorieliste,2,0),"") -> 8
A31: 28 | B31: =IF(E31="","",IF(ISERROR(VLOOKUP(E31,Spieler,4,0)),"Falsche Nummer!",VLOOKUP(E31,Spieler,4,0))) -> Wesemann | C31: =IF(ISERROR(VLOOKUP(E31,Spieler,3,0)),"",VLOOKUP(E31,Spieler,3,0)) -> Eike-Fabian | D31: =IF(ISERROR(VLOOKUP(E31,Spieler,5,0)),"",VLOOKUP(E31,Spieler,5,0)) -> BGC Diepholz | E31: 36292 | F31: =IF(ISERROR(VLOOKUP(E31,Spieler,2,0)),"",VLOOKUP(E31,Spieler,2,0)) -> H | G31: 30 | H31: 29 | I31: 32 | J31: 30 | K31: =IF(COUNT(G31:J31)>0,SUM(G31:J31),"") -> 121 | L31: =IF(K31<>"",K31/COUNT(G31:J31),"") -> 30.25 | M31: =IF(COUNT(G31:J31)>1,LARGE(G31:J31,1)-SMALL(G31:J31,1),"") -> 3 | N31: =IF(F31<>"",VLOOKUP(F31,Kategorieliste,2,0),"") -> 2
A32: 29 | B32: =IF(E32="","",IF(ISERROR(VLOOKUP(E32,Spieler,4,0)),"Falsche Nummer!",VLOOKUP(E32,Spieler,4,0))) -> Hunte | C32: =IF(ISERROR(VLOOKUP(E32,Spieler,3,0)),"",VLOOKUP(E32,Spieler,3,0)) -> Karl-Heinz | D32: =IF(ISERROR(VLOOKUP(E32,Spieler,5,0)),"",VLOOKUP(E32,Spieler,5,0)) -> BGC Diepholz | E32: 44723 | F32: =IF(ISERROR(VLOOKUP(E32,Spieler,2,0)),"",VLOOKUP(E32,Spieler,2,0)) -> Sm 1 | G32: 35 | H32: 28 | I32: 28 | J32: 31 | K32: =IF(COUNT(G32:J32)>0,SUM(G32:J32),"") -> 122 | L32: =IF(K32<>"",K32/COUNT(G32:J32),"") -> 30.5 | M32: =IF(COUNT(G32:J32)>1,LARGE(G32:J32,1)-SMALL(G32:J32,1),"") -> 7 | N32: =IF(F32<>"",VLOOKUP(F32,Kategorieliste,2,0),"") -> 4
A33: 30 | B33: =IF(E33="","",IF(ISERROR(VLOOKUP(E33,Spieler,4,0)),"Falsche Nummer!",VLOOKUP(E33,Spieler,4,0))) -> Wuttke | C33: =IF(ISERROR(VLOOKUP(E33,Spieler,3,0)),"",VLOOKUP(E33,Spieler,3,0)) -> Elke | D33: =IF(ISERROR(VLOOKUP(E33,Spieler,5,0)),"",VLOOKUP(E33,Spieler,5,0)) -> BGC Hannover | E33: 63375 | F33: =IF(ISERROR(VLOOKUP(E33,Spieler,2,0)),"",VLOOKUP(E33,Spieler,2,0)) -> Sw 2 | G33: 30 | H33: 37 | I33: 29 | J33: 27 | K33: =IF(COUNT(G33:J33)>0,SUM(G33:J33),"") -> 123 | L33: =IF(K33<>"",K33/COUNT(G33:J33),"") -> 30.75 | M33: =IF(COUNT(G33:J33)>1,LARGE(G33:J33,1)-SMALL(G33:J33,1),"") -> 10 | N33: =IF(F33<>"",VLOOKUP(F33,Kategorieliste,2,0),"") -> 5
A34: 31 | B34: =IF(E34="","",IF(ISERROR(VLOOKUP(E34,Spieler,4,0)),"Falsche Nummer!",VLOOKUP(E34,Spieler,4,0))) -> Hunte | C34: =IF(ISERROR(VLOOKUP(E34,Spieler,3,0)),"",VLOOKUP(E34,Spieler,3,0)) -> Stefanie | D34: =IF(ISERROR(VLOOKUP(E34,Spieler,5,0)),"",VLOOKUP(E34,Spieler,5,0)) -> BGC Diepholz | E34: 40603 | F34: =IF(ISERROR(VLOOKUP(E34,Spieler,2,0)),"",VLOOKUP(E34,Spieler,2,0)) -> Sw 1 | G34: 32 | H34: 29 | I34: 36 | J34: 35 | K34: =IF(COUNT(G34:J34)>0,SUM(G34:J34),"") -> 132 | L34: =IF(K34<>"",K34/COUNT(G34:J34),"") -> 33 | M34: =IF(COUNT(G34:J34)>1,LARGE(G34:J34,1)-SMALL(G34:J34,1),"") -> 7 | N34: =IF(F34<>"",VLOOKUP(F34,Kategorieliste,2,0),"") -> 3
A35: 32 | B35: =IF(E35="","",IF(ISERROR(VLOOKUP(E35,Spieler,4,0)),"Falsche Nummer!",VLOOKUP(E35,Spieler,4,0))) -> Horn | C35: =IF(ISERROR(VLOOKUP(E35,Spieler,3,0)),"",VLOOKUP(E35,Spieler,3,0)) -> Dennis | D35: =IF(ISERROR(VLOOKUP(E35,Spieler,5,0)),"",VLOOKUP(E35,Spieler,5,0)) -> BGC Diepholz | E35: 50002 | F35: =IF(ISERROR(VLOOKUP(E35,Spieler,2,0)),"",VLOOKUP(E35,Spieler,2,0)) -> Sm 1 | G35: 31 | H35: 35 | I35: 36 | J35: 34 | K35: =IF(COUNT(G35:J35)>0,SUM(G35:J35),"") -> 136 | L35: =IF(K35<>"",K35/COUNT(G35:J35),"") -> 34 | M35: =IF(COUNT(G35:J35)>1,LARGE(G35:J35,1)-SMALL(G35:J35,1),"") -> 5 | N35: =IF(F35<>"",VLOOKUP(F35,Kategorieliste,2,0),"") -> 4
B36: =IF(E36="","",IF(ISERROR(VLOOKUP(E36,Spieler,4,0)),"Falsche Nummer!",VLOOKUP(E36,Spieler,4,0))) ->  | C36: =IF(ISERROR(VLOOKUP(E36,Spieler,3,0)),"",VLOOKUP(E36,Spieler,3,0)) ->  | D36: =IF(ISERROR(VLOOKUP(E36,Spieler,5,0)),"",VLOOKUP(E36,Spieler,5,0)) ->  | F36: =IF(ISERROR(VLOOKUP(E36,Spieler,2,0)),"",VLOOKUP(E36,Spieler,2,0)) ->  | K36: =IF(COUNT(G36:J36)>0,SUM(G36:J36),"") ->  | L36: =IF(K36<>"",K36/COUNT(G36:J36),"") ->  | M36: =IF(COUNT(G36:J36)>1,LARGE(G36:J36,1)-SMALL(G36:J36,1),"") ->  | N36: =IF(F36<>"",VLOOKUP(F36,Kategorieliste,2,0),"") -> 

Sheet Kategoriewertung (hidden)
A2: I. Einzelwertung nach Kategorien
A3: Pl. | B3: Nachname | C3: Vorname | D3: Verein | E3: Sp.Nr. | F3: Kat. | G3: R1 | H3: R2 | I3: R3 | J3: R4 | K3: Ges. | L3: ø | M3: Diff.

Sheet Mannschaften
A1: J. Mannschaftswertung:
A4: 1 | B4: 1. BGC Celle I | I4: Schnitt: | J4: =IF(COUNTIF(INDIRECT("G"&ROW()+2&":J"&ROW()+AnzSp+1),">0")>0,K12/(COUNTIF(INDIRECT("G"&ROW()+2&":J"&ROW()+AnzSp+1),">0")-COUNTIF(INDIRECT("L"&ROW()+2&":O"&ROW()+AnzSp+1),"X")),0) -> 24.25
A5: Nr.: | B5: Nachname | C5: Vorname | E5: Sp.Nr. | F5: Kat. | G5: R1 | H5: R2 | I5: R3 | J5: R4 | K5: Wertung | P5: Gesamt
A6: 1 | B6: =IF(E6="","",IF(ISERROR(VLOOKUP(E6,Spieler,4,0)),"Falsche Nummer!",VLOOKUP(E6,Spieler,4,0))) -> Krause | C6: =IF(ISERROR(VLOOKUP(E6,Spieler,3,0)),"",VLOOKUP(E6,Spieler,3,0)) -> Dirk | E6: 48931 | F6: =IF(ISERROR(VLOOKUP(E6,Spieler,2,0)),"",VLOOKUP(E6,Spieler,2,0)) -> Sm 1 | G6: =IF(ISERROR(VLOOKUP($E6,Ergebnisse,COLUMN()-4,0)),0,VLOOKUP($E6,Ergebnisse,COLUMN()-4,0)) -> 30 | H6: 31 | I6: 22 | J6: 24 | K6: =IF(L6="X",0,G6)+IF(M6="X",0,H6)+IF(N6="X",0,I6)+IF(O6="X",0,J6) -> 46 | L6: =IF(G6>0,IF(AND(COUNTIF(INDIRECT("Z"&(ROW()+1-$A6&"S"&COLUMN()-5)&":Z"&(ROW()+AnzSp-$A6)&"S"&COLUMN()-5,0),">0")=AnzSp-1,G6=LARGE(INDIRECT("Z"&(ROW()+1-$A6&"S"&COLUMN()-5)&":Z"&(ROW()+AnzSp-$A6)&"S"&COLUMN()-5,0),1),COUNTIF(INDIRECT("Z"&(ROW()+1-$A6&"S"&COLUMN()-5)&":Z"&(ROW())&"S"&COLUMN()-5,0),G6)=1),"X",IF(AND(COUNTIF(INDIRECT("Z"&(ROW()+1-$A6&"S"&COLUMN()-5)&":Z"&(ROW()+AnzSp-$A6)&"S"&COLUMN()-5,0),">0")=AnzSp,INDIRECT("Z"&(ROW()+AnzSp+1-$A6)&"S6",0)>0,G6=LARGE(INDIRECT("Z"&(ROW()+1-$A6&"S"&COLUMN()-5)&":Z"&(ROW()+AnzSp-$A6)&"S"&COLUMN()-5,0),1),COUNTIF(INDIRECT("Z"&(ROW()+1-$A6&"S"&COLUMN()-5)&":Z"&(ROW())&"S"&COLUMN()-5,0),G6)<3),"X",IF(AND(COUNTIF(INDIRECT("Z"&(ROW()+1-$A6&"S"&COLUMN()-5)&":Z"&(ROW()+AnzSp-$A6)&"S"&COLUMN()-5,0),">0")=AnzSp,INDIRECT("Z"&(ROW()+AnzSp+1-$A6)&"S6",0)>0,G6=LARGE(INDIRECT("Z"&(ROW()+1-$A6&"S"&COLUMN()-5)&":Z"&(ROW()+AnzSp-$A6)&"S"&COLUMN()-5,0),2),COUNTIF(INDIRECT("Z"&(ROW()+1-$A6&"S"&COLUMN()-5)&":Z"&(ROW())&"S"&COLUMN()-5,0),G6)=1),"X",""))),"") -> X | M6: X | P6: =SUM(G6:J6) -> 107
A7: 2 | B7: Rotermund | C7: Marie Sophie | E7: 66952 | F7: Jw | G7: 28 | H7: 22 | I7: 22 | J7: 25 | K7: 97 | P7: =SUM(G7:J7) -> 97
A8: 3 | B8: Neumann | C8: Kevin | E8: 38363 | F8: H | G8: 25 | H8: 21 | I8: 24 | J8: 27 | K8: 70 | O8: X | P8: 97
A9: 4 | B9: Ehm | C9: Marion | E9: 46898 | F9: Sw 1 | G9: 25 | H9: 25 | I9: 27 | J9: 23 | K9: 48 | M9: X | N9: X | P9: 100
A10: 5 | B10: Lindenberg | C10: Mareike | E10: 40203 | F10: D | G10: 30 | H10: 24 | I10: 25 | J10: 25 | K10: 74 | L10: X | P10: 104
A11: 6 | B11: =IF(E11="","",IF(ISERROR(VLOOKUP(E11,Spieler,4,0)),"Falsche Nummer!",VLOOKUP(E11,Spieler,4,0))) -> Ehm | C11: =IF(ISERROR(VLOOKUP(E11,Spieler,3,0)),"",VLOOKUP(E11,Spieler,3,0)) -> Christoph | E11: 34006 | F11: =IF(ISERROR(VLOOKUP(E11,Spieler,2,0)),"",VLOOKUP(E11,Spieler,2,0)) -> H | G11: 28 | H11: 25 | I11: 28 | J11: 30 | K11: =IF(L11="X",0,G11)+IF(M11="X",0,H11)+IF(N11="X",0,I11)+IF(O11="X",0,J11) -> 53 | L11: =IF(G11>0,IF(AND(COUNTIF(INDIRECT("Z"&(ROW()+1-$A11&"S"&COLUMN()-5)&":Z"&(ROW()+AnzSp-$A11)&"S"&COLUMN()-5,0),">0")=AnzSp-1,G11=LARGE(INDIRECT("Z"&(ROW()+1-$A11&"S"&COLUMN()-5)&":Z"&(ROW()+AnzSp-$A11)&"S"&COLUMN()-5,0),1),COUNTIF(INDIRECT("Z"&(ROW()+1-$A11&"S"&COLUMN()-5)&":Z"&(ROW())&"S"&COLUMN()-5,0),G11)=1),"X",IF(AND(COUNTIF(INDIRECT("Z"&(ROW()+1-$A11&"S"&COLUMN()-5)&":Z"&(ROW()+AnzSp-$A11)&"S"&COLUMN()-5,0),">0")=AnzSp,INDIRECT("Z"&(ROW()+AnzSp+1-$A11)&"S6",0)>0,G11=LARGE(INDIRECT("Z"&(ROW()+1-$A11&"S"&COLUMN()-5)&":Z"&(ROW()+AnzSp-$A11)&"S"&COLUMN()-5,0),1),COUNTIF(INDIRECT("Z"&(ROW()+1-$A11&"S"&COLUMN()-5)&":Z"&(ROW())&"S"&COLUMN()-5,0),G11)<3),"X",IF(AND(COUNTIF(INDIRECT("Z"&(ROW()+1-$A11&"S"&COLUMN()-5)&":Z"&(ROW()+AnzSp-$A11)&"S"&COLUMN()-5,0),">0")=AnzSp,INDIRECT("Z"&(ROW()+AnzSp+1-$A11)&"S6",0)>0,G11=LARGE(INDIRECT("Z"&(ROW()+1-$A11&"S"&COLUMN()-5)&":Z"&(ROW()+AnzSp-$A11)&"S"&COLUMN()-5,0),2),COUNTIF(INDIRECT("Z"&(ROW()+1-$A11&"S"&COLUMN()-5)&":Z"&(ROW())&"S"&COLUMN()-5,0),G11)=1),"X",""))),"") ->  | M11: =IF(H11>0,IF(AND(COUNTIF(INDIRECT("Z"&(ROW()+1-$A11&"S"&COLUMN()-5)&":Z"&(ROW()+AnzSp-$A11)&"S"&COLUMN()-5,0),">0")=AnzSp-1,H11=LARGE(INDIRECT("Z"&(ROW()+1-$A11&"S"&COLUMN()-5)&":Z"&(ROW()+AnzSp-$A11)&"S"&COLUMN()-5,0),1),COUNTIF(INDIRECT("Z"&(ROW()+1-$A11&"S"&COLUMN()-5)&":Z"&(ROW())&"S"&COLUMN()-5,0),H11)=1),"X",IF(AND(COUNTIF(INDIRECT("Z"&(ROW()+1-$A11&"S"&COLUMN()-5)&":Z"&(ROW()+AnzSp-$A11)&"S"&COLUMN()-5,0),">0")=AnzSp,INDIRECT("Z"&(ROW()+AnzSp+1-$A11)&"S6",0)>0,H11=LARGE(INDIRECT("Z"&(ROW()+1-$A11&"S"&COLUMN()-5)&":Z"&(ROW()+AnzSp-$A11)&"S"&COLUMN()-5,0),1),COUNTIF(INDIRECT("Z"&(ROW()+1-$A11&"S"&COLUMN()-5)&":Z"&(ROW())&"S"&COLUMN()-5,0),H11)<3),"X",IF(AND(COUNTIF(INDIRECT("Z"&(ROW()+1-$A11&"S"&COLUMN()-5)&":Z"&(ROW()+AnzSp-$A11)&"S"&COLUMN()-5,0),">0")=AnzSp,INDIRECT("Z"&(ROW()+AnzSp+1-$A11)&"S6",0)>0,H11=LARGE(INDIRECT("Z"&(ROW()+1-$A11&"S"&COLUMN()-5)&":Z"&(ROW()+AnzSp-$A11)&"S"&COLUMN()-5,0),2),COUNTIF(INDIRECT("Z"&(ROW()+1-$A11&"S"&COLUMN()-5)&":Z"&(ROW())&"S"&COLUMN()-5,0),H11)=1),"X",""))),"") ->  | N11: =IF(I11>0,IF(AND(COUNTIF(INDIRECT("Z"&(ROW()+1-$A11&"S"&COLUMN()-5)&":Z"&(ROW()+AnzSp-$A11)&"S"&COLUMN()-5,0),">0")=AnzSp-1,I11=LARGE(INDIRECT("Z"&(ROW()+1-$A11&"S"&COLUMN()-5)&":Z"&(ROW()+AnzSp-$A11)&"S"&COLUMN()-5,0),1),COUNTIF(INDIRECT("Z"&(ROW()+1-$A11&"S"&COLUMN()-5)&":Z"&(ROW())&"S"&COLUMN()-5,0),I11)=1),"X",IF(AND(COUNTIF(INDIRECT("Z"&(ROW()+1-$A11&"S"&COLUMN()-5)&":Z"&(ROW()+AnzSp-$A11)&"S"&COLUMN()-5,0),">0")=AnzSp,INDIRECT("Z"&(ROW()+AnzSp+1-$A11)&"S6",0)>0,I11=LARGE(INDIRECT("Z"&(ROW()+1-$A11&"S"&COLUMN()-5)&":Z"&(ROW()+AnzSp-$A11)&"S"&COLUMN()-5,0),1),COUNTIF(INDIRECT("Z"&(ROW()+1-$A11&"S"&COLUMN()-5)&":Z"&(ROW())&"S"&COLUMN()-5,0),I11)<3),"X",IF(AND(COUNTIF(INDIRECT("Z"&(ROW()+1-$A11&"S"&COLUMN()-5)&":Z"&(ROW()+AnzSp-$A11)&"S"&COLUMN()-5,0),">0")=AnzSp,INDIRECT("Z"&(ROW()+AnzSp+1-$A11)&"S6",0)>0,I11=LARGE(INDIRECT("Z"&(ROW()+1-$A11&"S"&COLUMN()-5)&":Z"&(ROW()+AnzSp-$A11)&"S"&COLUMN()-5,0),2),COUNTIF(INDIRECT("Z"&(ROW()+1-$A11&"S"&COLUMN()-5)&":Z"&(ROW())&"S"&COLUMN()-5,0),I11)=1),"X",""))),"") -> X | O11: =IF(J11>0,IF(AND(COUNTIF(INDIRECT("Z"&(ROW()+1-$A11&"S"&COLUMN()-5)&":Z"&(ROW()+AnzSp-$A11)&"S"&COLUMN()-5,0),">0")=AnzSp-1,J11=LARGE(INDIRECT("Z"&(ROW()+1-$A11&"S"&COLUMN()-5)&":Z"&(ROW()+AnzSp-$A11)&"S"&COLUMN()-5,0),1),COUNTIF(INDIRECT("Z"&(ROW()+1-$A11&"S"&COLUMN()-5)&":Z"&(ROW())&"S"&COLUMN()-5,0),J11)=1),"X",IF(AND(COUNTIF(INDIRECT("Z"&(ROW()+1-$A11&"S"&COLUMN()-5)&":Z"&(ROW()+AnzSp-$A11)&"S"&COLUMN()-5,0),">0")=AnzSp,INDIRECT("Z"&(ROW()+AnzSp+1-$A11)&"S6",0)>0,J11=LARGE(INDIRECT("Z"&(ROW()+1-$A11&"S"&COLUMN()-5)&":Z"&(ROW()+AnzSp-$A11)&"S"&COLUMN()-5,0),1),COUNTIF(INDIRECT("Z"&(ROW()+1-$A11&"S"&COLUMN()-5)&":Z"&(ROW())&"S"&COLUMN()-5,0),J11)<3),"X",IF(AND(COUNTIF(INDIRECT("Z"&(ROW()+1-$A11&"S"&COLUMN()-5)&":Z"&(ROW()+AnzSp-$A11)&"S"&COLUMN()-5,0),">0")=AnzSp,INDIRECT("Z"&(ROW()+AnzSp+1-$A11)&"S6",0)>0,J11=LARGE(INDIRECT("Z"&(ROW()+1-$A11&"S"&COLUMN()-5)&":Z"&(ROW()+AnzSp-$A11)&"S"&COLUMN()-5,0),2),COUNTIF(INDIRECT("Z"&(ROW()+1-$A11&"S"&COLUMN()-5)&":Z"&(ROW())&"S"&COLUMN()-5,0),J11)=1),"X",""))),"") -> X | P11: =SUM(G11:J11) -> 111
B12: =IF(COUNT(INDIRECT("E"&ROW()-AnzSp&":E"&ROW()-1))<=AnzSp-2,"Kein Streicher",IF(COUNT(INDIRECT("E"&ROW()-AnzSp&":E"&ROW()-1))<=AnzSp-1,"1 Streicher",IF(AND(COUNT(INDIRECT("E"&ROW()-AnzSp&":E"&ROW()-1))<=AnzSp,F12>0),"2 Streicher","Spieler Nr. "&AnzSp&" löschen und als Einzelspieler erfassen!"))) -> 2 Streicher | F12: =COUNTIF(INDIRECT("F"&(ROW()-AnzSp)&":F"&ROW()-1),"Jw")+COUNTIF(INDIRECT("F"&ROW()-AnzSp&":F"&ROW()-1),"Jm")+COUNTIF(INDIRECT("F"&ROW()-AnzSp&":F"&ROW()-1),"Schw")+COUNTIF(INDIRECT("F"&ROW()-AnzSp&":F"&ROW()-1),"Schm") -> 1 | G12: =IF(COUNTIF(INDIRECT("G"&ROW()-AnzSp&":G"&ROW()-1),">0")=AnzSp-2,SUM(INDIRECT("G"&ROW()-AnzSp&":G"&ROW()-1)),IF(COUNTIF(INDIRECT("G"&ROW()-AnzSp&":G"&ROW()-1),">0")=AnzSp-1,SUM(INDIRECT("G"&ROW()-AnzSp&":G"&ROW()-1))-LARGE(INDIRECT("G"&ROW()-AnzSp&":G"&ROW()-1),1),IF(COUNTIF(INDIRECT("G"&ROW()-AnzSp&":G"&ROW()-1),">0")=AnzSp,SUM(INDIRECT("G"&ROW()-AnzSp&":G"&ROW()-1))-LARGE(INDIRECT("G"&ROW()-AnzSp&":G"&ROW()-1),1)-LARGE(INDIRECT("G"&ROW()-AnzSp&":G"&ROW()-1),2),0))) -> 106 | H12: =IF(COUNTIF(INDIRECT("H"&ROW()-AnzSp&":H"&ROW()-1),">0")=AnzSp-2,SUM(INDIRECT("H"&ROW()-AnzSp&":H"&ROW()-1)),IF(COUNTIF(INDIRECT("H"&ROW()-AnzSp&":H"&ROW()-1),">0")=AnzSp-1,SUM(INDIRECT("H"&ROW()-AnzSp&":H"&ROW()-1))-LARGE(INDIRECT("H"&ROW()-AnzSp&":H"&ROW()-1),1),IF(COUNTIF(INDIRECT("H"&ROW()-AnzSp&":H"&ROW()-1),">0")=AnzSp,SUM(INDIRECT("H"&ROW()-AnzSp&":H"&ROW()-1))-LARGE(INDIRECT("H"&ROW()-AnzSp&":H"&ROW()-1),1)-LARGE(INDIRECT("H"&ROW()-AnzSp&":H"&ROW()-1),2),0))) -> 92 | I12: =IF(COUNTIF(INDIRECT("I"&ROW()-AnzSp&":I"&ROW()-1),">0")=AnzSp-2,SUM(INDIRECT("I"&ROW()-AnzSp&":I"&ROW()-1)),IF(COUNTIF(INDIRECT("I"&ROW()-AnzSp&":I"&ROW()-1),">0")=AnzSp-1,SUM(INDIRECT("I"&ROW()-AnzSp&":I"&ROW()-1))-LARGE(INDIRECT("I"&ROW()-AnzSp&":I"&ROW()-1),1),IF(COUNTIF(INDIRECT("I"&ROW()-AnzSp&":I"&ROW()-1),">0")=AnzSp,SUM(INDIRECT("I"&ROW()-AnzSp&":I"&ROW()-1))-LARGE(INDIRECT("I"&ROW()-AnzSp&":I"&ROW()-1),1)-LARGE(INDIRECT("I"&ROW()-AnzSp&":I"&ROW()-1),2),0))) -> 93 | J12: =IF(COUNTIF(INDIRECT("J"&ROW()-AnzSp&":J"&ROW()-1),">0")=AnzSp-2,SUM(INDIRECT("J"&ROW()-AnzSp&":J"&ROW()-1)),IF(COUNTIF(INDIRECT("J"&ROW()-AnzSp&":J"&ROW()-1),">0")=AnzSp-1,SUM(INDIRECT("J"&ROW()-AnzSp&":J"&ROW()-1))-LARGE(INDIRECT("J"&ROW()-AnzSp&":J"&ROW()-1),1),IF(COUNTIF(INDIRECT("J"&ROW()-AnzSp&":J"&ROW()-1),">0")=AnzSp,SUM(INDIRECT("J"&ROW()-AnzSp&":J"&ROW()-1))-LARGE(INDIRECT("J"&ROW()-AnzSp&":J"&ROW()-1),1)-LARGE(INDIRECT("J"&ROW()-AnzSp&":J"&ROW()-1),2),0))) -> 97 | K12: =SUM(G12:J12) -> 388
A14: 2 | B14: 1. BGC Hannover III | I14: Schnitt: | J14: =IF(COUNTIF(INDIRECT("G"&ROW()+2&":J"&ROW()+AnzSp+1),">0")>0,K22/(COUNTIF(INDIRECT("G"&ROW()+2&":J"&ROW()+AnzSp+1),">0")-COUNTIF(INDIRECT("L"&ROW()+2&":O"&ROW()+AnzSp+1),"X")),0) -> 25.5625
A15: Nr.: | B15: Nachname | C15: Vorname | E15: Sp.Nr. | F15: Kat. | G15: R1 | H15: R2 | I15: R3 | J15: R4 | K15: Wertung | P15: Gesamt
A16: 1 | B16: =IF(E16="","",IF(ISERROR(VLOOKUP(E16,Spieler,4,0)),"Falsche Nummer!",VLOOKUP(E16,Spieler,4,0))) -> Außerwinkler | C16: =IF(ISERROR(VLOOKUP(E16,Spieler,3,0)),"",VLOOKUP(E16,Spieler,3,0)) -> Manfred | E16: 32897 | F16: =IF(ISERROR(VLOOKUP(E16,Spieler,2,0)),"",VLOOKUP(E16,Spieler,2,0)) -> Sm 2 | G16: =IF(ISERROR(VLOOKUP($E16,Ergebnisse,COLUMN()-4,0)),0,VLOOKUP($E16,Ergebnisse,COLUMN()-4,0)) -> 25 | H16: =IF(ISERROR(VLOOKUP($E16,Ergebnisse,COLUMN()-4,0)),0,VLOOKUP($E16,Ergebnisse,COLUMN()-4,0)) -> 24 | I16: =IF(ISERROR(VLOOKUP($E16,Ergebnisse,COLUMN()-4,0)),0,VLOOKUP($E16,Ergebnisse,COLUMN()-4,0)) -> 25 | J16: =IF(ISERROR(VLOOKUP($E16,Ergebnisse,COLUMN()-4,0)),0,VLOOKUP($E16,Ergebnisse,COLUMN()-4,0)) -> 22 | K16: =IF(L16="X",0,G16)+IF(M16="X",0,H16)+IF(N16="X",0,I16)+IF(O16="X",0,J16) -> 96 | L16: =IF(G16>0,IF(AND(COUNTIF(INDIRECT("Z"&(ROW()+1-$A16&"S"&COLUMN()-5)&":Z"&(ROW()+AnzSp-$A16)&"S"&COLUMN()-5,0),">0")=AnzSp-1,G16=LARGE(INDIRECT("Z"&(ROW()+1-$A16&"S"&COLUMN()-5)&":Z"&(ROW()+AnzSp-$A16)&"S"&COLUMN()-5,0),1),COUNTIF(INDIRECT("Z"&(ROW()+1-$A16&"S"&COLUMN()-5)&":Z"&(ROW())&"S"&COLUMN()-5,0),G16)=1),"X",IF(AND(COUNTIF(INDIRECT("Z"&(ROW()+1-$A16&"S"&COLUMN()-5)&":Z"&(ROW()+AnzSp-$A16)&"S"&COLUMN()-5,0),">0")=AnzSp,INDIRECT("Z"&(ROW()+AnzSp+1-$A16)&"S6",0)>0,G16=LARGE(INDIRECT("Z"&(ROW()+1-$A16&"S"&COLUMN()-5)&":Z"&(ROW()+AnzSp-$A16)&"S"&COLUMN()-5,0),1),COUNTIF(INDIRECT("Z"&(ROW()+1-$A16&"S"&COLUMN()-5)&":Z"&(ROW())&"S"&COLUMN()-5,0),G16)<3),"X",IF(AND(COUNTIF(INDIRECT("Z"&(ROW()+1-$A16&"S"&COLUMN()-5)&":Z"&(ROW()+AnzSp-$A16)&"S"&COLUMN()-5,0),">0")=AnzSp,INDIRECT("Z"&(ROW()+AnzSp+1-$A16)&"S6",0)>0,G16=LARGE(INDIRECT("Z"&(ROW()+1-$A16&"S"&COLUMN()-5)&":Z"&(ROW()+AnzSp-$A16)&"S"&COLUMN()-5,0),2),COUNTIF(INDIRECT("Z"&(ROW()+1-$A16&"S"&COLUMN()-5)&":Z"&(ROW())&"S"&COLUMN()-5,0),G16)=1),"X",""))),"") ->  | M16: =IF(H16>0,IF(AND(COUNTIF(INDIRECT("Z"&(ROW()+1-$A16&"S"&COLUMN()-5)&":Z"&(ROW()+AnzSp-$A16)&"S"&COLUMN()-5,0),">0")=AnzSp-1,H16=LARGE(INDIRECT("Z"&(ROW()+1-$A16&"S"&COLUMN()-5)&":Z"&(ROW()+AnzSp-$A16)&"S"&COLUMN()-5,0),1),COUNTIF(INDIRECT("Z"&(ROW()+1-$A16&"S"&COLUMN()-5)&":Z"&(ROW())&"S"&COLUMN()-5,0),H16)=1),"X",IF(AND(COUNTIF(INDIRECT("Z"&(ROW()+1-$A16&"S"&COLUMN()-5)&":Z"&(ROW()+AnzSp-$A16)&"S"&COLUMN()-5,0),">0")=AnzSp,INDIRECT("Z"&(ROW()+AnzSp+1-$A16)&"S6",0)>0,H16=LARGE(INDIRECT("Z"&(ROW()+1-$A16&"S"&COLUMN()-5)&":Z"&(ROW()+AnzSp-$A16)&"S"&COLUMN()-5,0),1),COUNTIF(INDIRECT("Z"&(ROW()+1-$A16&"S"&COLUMN()-5)&":Z"&(ROW())&"S"&COLUMN()-5,0),H16)<3),"X",IF(AND(COUNTIF(INDIRECT("Z"&(ROW()+1-$A16&"S"&COLUMN()-5)&":Z"&(ROW()+AnzSp-$A16)&"S"&COLUMN()-5,0),">0")=AnzSp,INDIRECT("Z"&(ROW()+AnzSp+1-$A16)&"S6",0)>0,H16=LARGE(INDIRECT("Z"&(ROW()+1-$A16&"S"&COLUMN()-5)&":Z"&(ROW()+AnzSp-$A16)&"S"&COLUMN()-5,0),2),COUNTIF(INDIRECT("Z"&(ROW()+1-$A16&"S"&COLUMN()-5)&":Z"&(ROW())&"S"&COLUMN()-5,0),H16)=1),"X",""))),"") ->  | N16: =IF(I16>0,IF(AND(COUNTIF(INDIRECT("Z"&(ROW()+1-$A16&"S"&COLUMN()-5)&":Z"&(ROW()+AnzSp-$A16)&"S"&COLUMN()-5,0),">0")=AnzSp-1,I16=LARGE(INDIRECT("Z"&(ROW()+1-$A16&"S"&COLUMN()-5)&":Z"&(ROW()+AnzSp-$A16)&"S"&COLUMN()-5,0),1),COUNTIF(INDIRECT("Z"&(ROW()+1-$A16&"S"&COLUMN()-5)&":Z"&(ROW())&"S"&COLUMN()-5,0),I16)=1),"X",IF(AND(COUNTIF(INDIRECT("Z"&(ROW()+1-$A16&"S"&COLUMN()-5)&":Z"&(ROW()+AnzSp-$A16)&"S"&COLUMN()-5,0),">0")=AnzSp,INDIRECT("Z"&(ROW()+AnzSp+1-$A16)&"S6",0)>0,I16=LARGE(INDIRECT("Z"&(ROW()+1-$A16&"S"&COLUMN()-5)&":Z"&(ROW()+AnzSp-$A16)&"S"&COLUMN()-5,0),1),COUNTIF(INDIRECT("Z"&(ROW()+1-$A16&"S"&COLUMN()-5)&":Z"&(ROW())&"S"&COLUMN()-5,0),I16)<3),"X",IF(AND(COUNTIF(INDIRECT("Z"&(ROW()+1-$A16&"S"&COLUMN()-5)&":Z"&(ROW()+AnzSp-$A16)&"S"&COLUMN()-5,0),">0")=AnzSp,INDIRECT("Z"&(ROW()+AnzSp+1-$A16)&"S6",0)>0,I16=LARGE(INDIRECT("Z"&(ROW()+1-$A16&"S"&COLUMN()-5)&":Z"&(ROW()+AnzSp-$A16)&"S"&COLUMN()-5,0),2),COUNTIF(INDIRECT("Z"&(ROW()+1-$A16&"S"&COLUMN()-5)&":Z"&(ROW())&"S"&COLUMN()-5,0),I16)=1),"X",""))),"") ->  | O16: =IF(J16>0,IF(AND(COUNTIF(INDIRECT("Z"&(ROW()+1-$A16&"S"&COLUMN()-5)&":Z"&(ROW()+AnzSp-$A16)&"S"&COLUMN()-5,0),">0")=AnzSp-1,J16=LARGE(INDIRECT("Z"&(ROW()+1-$A16&"S"&COLUMN()-5)&":Z"&(ROW()+AnzSp-$A16)&"S"&COLUMN()-5,0),1),COUNTIF(INDIRECT("Z"&(ROW()+1-$A16&"S"&COLUMN()-5)&":Z"&(ROW())&"S"&COLUMN()-5,0),J16)=1),"X",IF(AND(COUNTIF(INDIRECT("Z"&(ROW()+1-$A16&"S"&COLUMN()-5)&":Z"&(ROW()+AnzSp-$A16)&"S"&COLUMN()-5,0),">0")=AnzSp,INDIRECT("Z"&(ROW()+AnzSp+1-$A16)&"S6",0)>0,J16=LARGE(INDIRECT("Z"&(ROW()+1-$A16&"S"&COLUMN()-5)&":Z"&(ROW()+AnzSp-$A16)&"S"&COLUMN()-5,0),1),COUNTIF(INDIRECT("Z"&(ROW()+1-$A16&"S"&COLUMN()-5)&":Z"&(ROW())&"S"&COLUMN()-5,0),J16)<3),"X",IF(AND(COUNTIF(INDIRECT("Z"&(ROW()+1-$A16&"S"&COLUMN()-5)&":Z"&(ROW()+AnzSp-$A16)&"S"&COLUMN()-5,0),">0")=AnzSp,INDIRECT("Z"&(ROW()+AnzSp+1-$A16)&"S6",0)>0,J16=LARGE(INDIRECT("Z"&(ROW()+1-$A16&"S"&COLUMN()-5)&":Z"&(ROW()+AnzSp-$A16)&"S"&COLUMN()-5,0),2),COUNTIF(INDIRECT("Z"&(ROW()+1-$A16&"S"&COLUMN()-5)&":Z"&(ROW())&"S"&COLUMN()-5,0),J16)=1),"X",""))),"") ->  | P16: =SUM(G16:J16) -> 96
A17: 2 | B17: Schaper | C17: Dirk | E17: 5062 | F17: Sm 2 | G17: =IF(ISERROR(VLOOKUP($E17,Ergebnisse,COLUMN()-4,0)),0,VLOOKUP($E17,Ergebnisse,COLUMN()-4,0)) -> 28 | H17: =IF(ISERROR(VLOOKUP($E17,Ergebnisse,COLUMN()-4,0)),0,VLOOKUP($E17,Ergebnisse,COLUMN()-4,0)) -> 26 | I17: =IF(ISERROR(VLOOKUP($E17,Ergebnisse,COLUMN()-4,0)),0,VLOOKUP($E17,Ergebnisse,COLUMN()-4,0)) -> 27 | J17: =IF(ISERROR(VLOOKUP($E17,Ergebnisse,COLUMN()-4,0)),0,VLOOKUP($E17,Ergebnisse,COLUMN()-4,0)) -> 32 | K17: 81 | L17: =IF(G17>0,IF(AND(COUNTIF(INDIRECT("Z"&(ROW()+1-$A17&"S"&COLUMN()-5)&":Z"&(ROW()+AnzSp-$A17)&"S"&COLUMN()-5,0),">0")=AnzSp-1,G17=LARGE(INDIRECT("Z"&(ROW()+1-$A17&"S"&COLUMN()-5)&":Z"&(ROW()+AnzSp-$A17)&"S"&COLUMN()-5,0),1),COUNTIF(INDIRECT("Z"&(ROW()+1-$A17&"S"&COLUMN()-5)&":Z"&(ROW())&"S"&COLUMN()-5,0),G17)=1),"X",IF(AND(COUNTIF(INDIRECT("Z"&(ROW()+1-$A17&"S"&COLUMN()-5)&":Z"&(ROW()+AnzSp-$A17)&"S"&COLUMN()-5,0),">0")=AnzSp,INDIRECT("Z"&(ROW()+AnzSp+1-$A17)&"S6",0)>0,G17=LARGE(INDIRECT("Z"&(ROW()+1-$A17&"S"&COLUMN()-5)&":Z"&(ROW()+AnzSp-$A17)&"S"&COLUMN()-5,0),1),COUNTIF(INDIRECT("Z"&(ROW()+1-$A17&"S"&COLUMN()-5)&":Z"&(ROW())&"S"&COLUMN()-5,0),G17)<3),"X",IF(AND(COUNTIF(INDIRECT("Z"&(ROW()+1-$A17&"S"&COLUMN()-5)&":Z"&(ROW()+AnzSp-$A17)&"S"&COLUMN()-5,0),">0")=AnzSp,INDIRECT("Z"&(ROW()+AnzSp+1-$A17)&"S6",0)>0,G17=LARGE(INDIRECT("Z"&(ROW()+1-$A17&"S"&COLUMN()-5)&":Z"&(ROW()+AnzSp-$A17)&"S"&COLUMN()-5,0),2),COUNTIF(INDIRECT("Z"&(ROW()+1-$A17&"S"&COLUMN()-5)&":Z"&(ROW())&"S"&COLUMN()-5,0),G17)=1),"X",""))),"") ->  | M17: =IF(H17>0,IF(AND(COUNTIF(INDIRECT("Z"&(ROW()+1-$A17&"S"&COLUMN()-5)&":Z"&(ROW()+AnzSp-$A17)&"S"&COLUMN()-5,0),">0")=AnzSp-1,H17=LARGE(INDIRECT("Z"&(ROW()+1-$A17&"S"&COLUMN()-5)&":Z"&(ROW()+AnzSp-$A17)&"S"&COLUMN()-5,0),1),COUNTIF(INDIRECT("Z"&(ROW()+1-$A17&"S"&COLUMN()-5)&":Z"&(ROW())&"S"&COLUMN()-5,0),H17)=1),"X",IF(AND(COUNTIF(INDIRECT("Z"&(ROW()+1-$A17&"S"&COLUMN()-5)&":Z"&(ROW()+AnzSp-$A17)&"S"&COLUMN()-5,0),">0")=AnzSp,INDIRECT("Z"&(ROW()+AnzSp+1-$A17)&"S6",0)>0,H17=LARGE(INDIRECT("Z"&(ROW()+1-$A17&"S"&COLUMN()-5)&":Z"&(ROW()+AnzSp-$A17)&"S"&COLUMN()-5,0),1),COUNTIF(INDIRECT("Z"&(ROW()+1-$A17&"S"&COLUMN()-5)&":Z"&(ROW())&"S"&COLUMN()-5,0),H17)<3),"X",IF(AND(COUNTIF(INDIRECT("Z"&(ROW()+1-$A17&"S"&COLUMN()-5)&":Z"&(ROW()+AnzSp-$A17)&"S"&COLUMN()-5,0),">0")=AnzSp,INDIRECT("Z"&(ROW()+AnzSp+1-$A17)&"S6",0)>0,H17=LARGE(INDIRECT("Z"&(ROW()+1-$A17&"S"&COLUMN()-5)&":Z"&(ROW()+AnzSp-$A17)&"S"&COLUMN()-5,0),2),COUNTIF(INDIRECT("Z"&(ROW()+1-$A17&"S"&COLUMN()-5)&":Z"&(ROW())&"S"&COLUMN()-5,0),H17)=1),"X",""))),"") ->  | N17: =IF(I17>0,IF(AND(COUNTIF(INDIRECT("Z"&(ROW()+1-$A17&"S"&COLUMN()-5)&":Z"&(ROW()+AnzSp-$A17)&"S"&COLUMN()-5,0),">0")=AnzSp-1,I17=LARGE(INDIRECT("Z"&(ROW()+1-$A17&"S"&COLUMN()-5)&":Z"&(ROW()+AnzSp-$A17)&"S"&COLUMN()-5,0),1),COUNTIF(INDIRECT("Z"&(ROW()+1-$A17&"S"&COLUMN()-5)&":Z"&(ROW())&"S"&COLUMN()-5,0),I17)=1),"X",IF(AND(COUNTIF(INDIRECT("Z"&(ROW()+1-$A17&"S"&COLUMN()-5)&":Z"&(ROW()+AnzSp-$A17)&"S"&COLUMN()-5,0),">0")=AnzSp,INDIRECT("Z"&(ROW()+AnzSp+1-$A17)&"S6",0)>0,I17=LARGE(INDIRECT("Z"&(ROW()+1-$A17&"S"&COLUMN()-5)&":Z"&(ROW()+AnzSp-$A17)&"S"&COLUMN()-5,0),1),COUNTIF(INDIRECT("Z"&(ROW()+1-$A17&"S"&COLUMN()-5)&":Z"&(ROW())&"S"&COLUMN()-5,0),I17)<3),"X",IF(AND(COUNTIF(INDIRECT("Z"&(ROW()+1-$A17&"S"&COLUMN()-5)&":Z"&(ROW()+AnzSp-$A17)&"S"&COLUMN()-5,0),">0")=AnzSp,INDIRECT("Z"&(ROW()+AnzSp+1-$A17)&"S6",0)>0,I17=LARGE(INDIRECT("Z"&(ROW()+1-$A17&"S"&COLUMN()-5)&":Z"&(ROW()+AnzSp-$A17)&"S"&COLUMN()-5,0),2),COUNTIF(INDIRECT("Z"&(ROW()+1-$A17&"S"&COLUMN()-5)&":Z"&(ROW())&"S"&COLUMN()-5,0),I17)=1),"X",""))),"") ->  | O17: =IF(J17>0,IF(AND(COUNTIF(INDIRECT("Z"&(ROW()+1-$A17&"S"&COLUMN()-5)&":Z"&(ROW()+AnzSp-$A17)&"S"&COLUMN()-5,0),">0")=AnzSp-1,J17=LARGE(INDIRECT("Z"&(ROW()+1-$A17&"S"&COLUMN()-5)&":Z"&(ROW()+AnzSp-$A17)&"S"&COLUMN()-5,0),1),COUNTIF(INDIRECT("Z"&(ROW()+1-$A17&"S"&COLUMN()-5)&":Z"&(ROW())&"S"&COLUMN()-5,0),J17)=1),"X",IF(AND(COUNTIF(INDIRECT("Z"&(ROW()+1-$A17&"S"&COLUMN()-5)&":Z"&(ROW()+AnzSp-$A17)&"S"&COLUMN()-5,0),">0")=AnzSp,INDIRECT("Z"&(ROW()+AnzSp+1-$A17)&"S6",0)>0,J17=LARGE(INDIRECT("Z"&(ROW()+1-$A17&"S"&COLUMN()-5)&":Z"&(ROW()+AnzSp-$A17)&"S"&COLUMN()-5,0),1),COUNTIF(INDIRECT("Z"&(ROW()+1-$A17&"S"&COLUMN()-5)&":Z"&(ROW())&"S"&COLUMN()-5,0),J17)<3),"X",IF(AND(COUNTIF(INDIRECT("Z"&(ROW()+1-$A17&"S"&COLUMN()-5)&":Z"&(ROW()+AnzSp-$A17)&"S"&COLUMN()-5,0),">0")=AnzSp,INDIRECT("Z"&(ROW()+AnzSp+1-$A17)&"S6",0)>0,J17=LARGE(INDIRECT("Z"&(ROW()+1-$A17&"S"&COLUMN()-5)&":Z"&(ROW()+AnzSp-$A17)&"S"&COLUMN()-5,0),2),COUNTIF(INDIRECT("Z"&(ROW()+1-$A17&"S"&COLUMN()-5)&":Z"&(ROW())&"S"&COLUMN()-5,0),J17)=1),"X",""))),"") -> X | P17: =SUM(G17:J17) -> 113
A18: 3 | B18: Weigang | C18: Barbara | E18: 46277 | F18: Sw 2 | G18: =IF(ISERROR(VLOOKUP($E18,Ergebnisse,COLUMN()-4,0)),0,VLOOKUP($E18,Ergebnisse,COLUMN()-4,0)) -> 25 | H18: =IF(ISERROR(VLOOKUP($E18,Ergebnisse,COLUMN()-4,0)),0,VLOOKUP($E18,Ergebnisse,COLUMN()-4,0)) -> 24 | I18: =IF(ISERROR(VLOOKUP($E18,Ergebnisse,COLUMN()-4,0)),0,VLOOKUP($E18,Ergebnisse,COLUMN()-4,0)) -> 26 | J18: =IF(ISERROR(VLOOKUP($E18,Ergebnisse,COLUMN()-4,0)),0,VLOOKUP($E18,Ergebnisse,COLUMN()-4,0)) -> 26 | K18: 101 | L18: =IF(G18>0,IF(AND(COUNTIF(INDIRECT("Z"&(ROW()+1-$A18&"S"&COLUMN()-5)&":Z"&(ROW()+AnzSp-$A18)&"S"&COLUMN()-5,0),">0")=AnzSp-1,G18=LARGE(INDIRECT("Z"&(ROW()+1-$A18&"S"&COLUMN()-5)&":Z"&(ROW()+AnzSp-$A18)&"S"&COLUMN()-5,0),1),COUNTIF(INDIRECT("Z"&(ROW()+1-$A18&"S"&COLUMN()-5)&":Z"&(ROW())&"S"&COLUMN()-5,0),G18)=1),"X",IF(AND(COUNTIF(INDIRECT("Z"&(ROW()+1-$A18&"S"&COLUMN()-5)&":Z"&(ROW()+AnzSp-$A18)&"S"&COLUMN()-5,0),">0")=AnzSp,INDIRECT("Z"&(ROW()+AnzSp+1-$A18)&"S6",0)>0,G18=LARGE(INDIRECT("Z"&(ROW()+1-$A18&"S"&COLUMN()-5)&":Z"&(ROW()+AnzSp-$A18)&"S"&COLUMN()-5,0),1),COUNTIF(INDIRECT("Z"&(ROW()+1-$A18&"S"&COLUMN()-5)&":Z"&(ROW())&"S"&COLUMN()-5,0),G18)<3),"X",IF(AND(COUNTIF(INDIRECT("Z"&(ROW()+1-$A18&"S"&COLUMN()-5)&":Z"&(ROW()+AnzSp-$A18)&"S"&COLUMN()-5,0),">0")=AnzSp,INDIRECT("Z"&(ROW()+AnzSp+1-$A18)&"S6",0)>0,G18=LARGE(INDIRECT("Z"&(ROW()+1-$A18&"S"&COLUMN()-5)&":Z"&(ROW()+AnzSp-$A18)&"S"&COLUMN()-5,0),2),COUNTIF(INDIRECT("Z"&(ROW()+1-$A18&"S"&COLUMN()-5)&":Z"&(ROW())&"S"&COLUMN()-5,0),G18)=1),"X",""))),"") ->  | M18: =IF(H18>0,IF(AND(COUNTIF(INDIRECT("Z"&(ROW()+1-$A18&"S"&COLUMN()-5)&":Z"&(ROW()+AnzSp-$A18)&"S"&COLUMN()-5,0),">0")=AnzSp-1,H18=LARGE(INDIRECT("Z"&(ROW()+1-$A18&"S"&COLUMN()-5)&":Z"&(ROW()+AnzSp-$A18)&"S"&COLUMN()-5,0),1),COUNTIF(INDIRECT("Z"&(ROW()+1-$A18&"S"&COLUMN()-5)&":Z"&(ROW())&"S"&COLUMN()-5,0),H18)=1),"X",IF(AND(COUNTIF(INDIRECT("Z"&(ROW()+1-$A18&"S"&COLUMN()-5)&":Z"&(ROW()+AnzSp-$A18)&"S"&COLUMN()-5,0),">0")=AnzSp,INDIRECT("Z"&(ROW()+AnzSp+1-$A18)&"S6",0)>0,H18=LARGE(INDIRECT("Z"&(ROW()+1-$A18&"S"&COLUMN()-5)&":Z"&(ROW()+AnzSp-$A18)&"S"&COLUMN()-5,0),1),COUNTIF(INDIRECT("Z"&(ROW()+1-$A18&"S"&COLUMN()-5)&":Z"&(ROW())&"S"&COLUMN()-5,0),H18)<3),"X",IF(AND(COUNTIF(INDIRECT("Z"&(ROW()+1-$A18&"S"&COLUMN()-5)&":Z"&(ROW()+AnzSp-$A18)&"S"&COLUMN()-5,0),">0")=AnzSp,INDIRECT("Z"&(ROW()+AnzSp+1-$A18)&"S6",0)>0,H18=LARGE(INDIRECT("Z"&(ROW()+1-$A18&"S"&COLUMN()-5)&":Z"&(ROW()+AnzSp-$A18)&"S"&COLUMN()-5,0),2),COUNTIF(INDIRECT("Z"&(ROW()+1-$A18&"S"&COLUMN()-5)&":Z"&(ROW())&"S"&COLUMN()-5,0),H18)=1),"X",""))),"") ->  | N18: =IF(I18>0,IF(AND(COUNTIF(INDIRECT("Z"&(ROW()+1-$A18&"S"&COLUMN()-5)&":Z"&(ROW()+AnzSp-$A18)&"S"&COLUMN()-5,0),">0")=AnzSp-1,I18=LARGE(INDIRECT("Z"&(ROW()+1-$A18&"S"&COLUMN()-5)&":Z"&(ROW()+AnzSp-$A18)&"S"&COLUMN()-5,0),1),COUNTIF(INDIRECT("Z"&(ROW()+1-$A18&"S"&COLUMN()-5)&":Z"&(ROW())&"S"&COLUMN()-5,0),I18)=1),"X",IF(AND(COUNTIF(INDIRECT("Z"&(ROW()+1-$A18&"S"&COLUMN()-5)&":Z"&(ROW()+AnzSp-$A18)&"S"&COLUMN()-5,0),">0")=AnzSp,INDIRECT("Z"&(ROW()+AnzSp+1-$A18)&"S6",0)>0,I18=LARGE(INDIRECT("Z"&(ROW()+1-$A18&"S"&COLUMN()-5)&":Z"&(ROW()+AnzSp-$A18)&"S"&COLUMN()-5,0),1),COUNTIF(INDIRECT("Z"&(ROW()+1-$A18&"S"&COLUMN()-5)&":Z"&(ROW())&"S"&COLUMN()-5,0),I18)<3),"X",IF(AND(COUNTIF(INDIRECT("Z"&(ROW()+1-$A18&"S"&COLUMN()-5)&":Z"&(ROW()+AnzSp-$A18)&"S"&COLUMN()-5,0),">0")=AnzSp,INDIRECT("Z"&(ROW()+AnzSp+1-$A18)&"S6",0)>0,I18=LARGE(INDIRECT("Z"&(ROW()+1-$A18&"S"&COLUMN()-5)&":Z"&(ROW()+AnzSp-$A18)&"S"&COLUMN()-5,0),2),COUNTIF(INDIRECT("Z"&(ROW()+1-$A18&"S"&COLUMN()-5)&":Z"&(ROW())&"S"&COLUMN()-5,0),I18)=1),"X",""))),"") ->  | O18: =IF(J18>0,IF(AND(COUNTIF(INDIRECT("Z"&(ROW()+1-$A18&"S"&COLUMN()-5)&":Z"&(ROW()+AnzSp-$A18)&"S"&COLUMN()-5,0),">0")=AnzSp-1,J18=LARGE(INDIRECT("Z"&(ROW()+1-$A18&"S"&COLUMN()-5)&":Z"&(ROW()+AnzSp-$A18)&"S"&COLUMN()-5,0),1),COUNTIF(INDIRECT("Z"&(ROW()+1-$A18&"S"&COLUMN()-5)&":Z"&(ROW())&"S"&COLUMN()-5,0),J18)=1),"X",IF(AND(COUNTIF(INDIRECT("Z"&(ROW()+1-$A18&"S"&COLUMN()-5)&":Z"&(ROW()+AnzSp-$A18)&"S"&COLUMN()-5,0),">0")=AnzSp,INDIRECT("Z"&(ROW()+AnzSp+1-$A18)&"S6",0)>0,J18=LARGE(INDIRECT("Z"&(ROW()+1-$A18&"S"&COLUMN()-5)&":Z"&(ROW()+AnzSp-$A18)&"S"&COLUMN()-5,0),1),COUNTIF(INDIRECT("Z"&(ROW()+1-$A18&"S"&COLUMN()-5)&":Z"&(ROW())&"S"&COLUMN()-5,0),J18)<3),"X",IF(AND(COUNTIF(INDIRECT("Z"&(ROW()+1-$A18&"S"&COLUMN()-5)&":Z"&(ROW()+AnzSp-$A18)&"S"&COLUMN()-5,0),">0")=AnzSp,INDIRECT("Z"&(ROW()+AnzSp+1-$A18)&"S6",0)>0,J18=LARGE(INDIRECT("Z"&(ROW()+1-$A18&"S"&COLUMN()-5)&":Z"&(ROW()+AnzSp-$A18)&"S"&COLUMN()-5,0),2),COUNTIF(INDIRECT("Z"&(ROW()+1-$A18&"S"&COLUMN()-5)&":Z"&(ROW())&"S"&COLUMN()-5,0),J18)=1),"X",""))),"") ->  | P18: 101
A19: 4 | B19: Schlottermüller | C19: Rainer | E19: 43245 | F19: Sm 1 | G19: =IF(ISERROR(VLOOKUP($E19,Ergebnisse,COLUMN()-4,0)),0,VLOOKUP($E19,Ergebnisse,COLUMN()-4,0)) -> 32 | H19: =IF(ISERROR(VLOOKUP($E19,Ergebnisse,COLUMN()-4,0)),0,VLOOKUP($E19,Ergebnisse,COLUMN()-4,0)) -> 29 | I19: =IF(ISERROR(VLOOKUP($E19,Ergebnisse,COLUMN()-4,0)),0,VLOOKUP($E19,Ergebnisse,COLUMN()-4,0)) -> 31 | J19: =IF(ISERROR(VLOOKUP($E19,Ergebnisse,COLUMN()-4,0)),0,VLOOKUP($E19,Ergebnisse,COLUMN()-4,0)) -> 24 | K19: 24 | L19: =IF(G19>0,IF(AND(COUNTIF(INDIRECT("Z"&(ROW()+1-$A19&"S"&COLUMN()-5)&":Z"&(ROW()+AnzSp-$A19)&"S"&COLUMN()-5,0),">0")=AnzSp-1,G19=LARGE(INDIRECT("Z"&(ROW()+1-$A19&"S"&COLUMN()-5)&":Z"&(ROW()+AnzSp-$A19)&"S"&COLUMN()-5,0),1),COUNTIF(INDIRECT("Z"&(ROW()+1-$A19&"S"&COLUMN()-5)&":Z"&(ROW())&"S"&COLUMN()-5,0),G19)=1),"X",IF(AND(COUNTIF(INDIRECT("Z"&(ROW()+1-$A19&"S"&COLUMN()-5)&":Z"&(ROW()+AnzSp-$A19)&"S"&COLUMN()-5,0),">0")=AnzSp,INDIRECT("Z"&(ROW()+AnzSp+1-$A19)&"S6",0)>0,G19=LARGE(INDIRECT("Z"&(ROW()+1-$A19&"S"&COLUMN()-5)&":Z"&(ROW()+AnzSp-$A19)&"S"&COLUMN()-5,0),1),COUNTIF(INDIRECT("Z"&(ROW()+1-$A19&"S"&COLUMN()-5)&":Z"&(ROW())&"S"&COLUMN()-5,0),G19)<3),"X",IF(AND(COUNTIF(INDIRECT("Z"&(ROW()+1-$A19&"S"&COLUMN()-5)&":Z"&(ROW()+AnzSp-$A19)&"S"&COLUMN()-5,0),">0")=AnzSp,INDIRECT("Z"&(ROW()+AnzSp+1-$A19)&"S6",0)>0,G19=LARGE(INDIRECT("Z"&(ROW()+1-$A19&"S"&COLUMN()-5)&":Z"&(ROW()+AnzSp-$A19)&"S"&COLUMN()-5,0),2),COUNTIF(INDIRECT("Z"&(ROW()+1-$A19&"S"&COLUMN()-5)&":Z"&(ROW())&"S"&COLUMN()-5,0),G19)=1),"X",""))),"") -> X | M19: =IF(H19>0,IF(AND(COUNTIF(INDIRECT("Z"&(ROW()+1-$A19&"S"&COLUMN()-5)&":Z"&(ROW()+AnzSp-$A19)&"S"&COLUMN()-5,0),">0")=AnzSp-1,H19=LARGE(INDIRECT("Z"&(ROW()+1-$A19&"S"&COLUMN()-5)&":Z"&(ROW()+AnzSp-$A19)&"S"&COLUMN()-5,0),1),COUNTIF(INDIRECT("Z"&(ROW()+1-$A19&"S"&COLUMN()-5)&":Z"&(ROW())&"S"&COLUMN()-5,0),H19)=1),"X",IF(AND(COUNTIF(INDIRECT("Z"&(ROW()+1-$A19&"S"&COLUMN()-5)&":Z"&(ROW()+AnzSp-$A19)&"S"&COLUMN()-5,0),">0")=AnzSp,INDIRECT("Z"&(ROW()+AnzSp+1-$A19)&"S6",0)>0,H19=LARGE(INDIRECT("Z"&(ROW()+1-$A19&"S"&COLUMN()-5)&":Z"&(ROW()+AnzSp-$A19)&"S"&COLUMN()-5,0),1),COUNTIF(INDIRECT("Z"&(ROW()+1-$A19&"S"&COLUMN()-5)&":Z"&(ROW())&"S"&COLUMN()-5,0),H19)<3),"X",IF(AND(COUNTIF(INDIRECT("Z"&(ROW()+1-$A19&"S"&COLUMN()-5)&":Z"&(ROW()+AnzSp-$A19)&"S"&COLUMN()-5,0),">0")=AnzSp,INDIRECT("Z"&(ROW()+AnzSp+1-$A19)&"S6",0)>0,H19=LARGE(INDIRECT("Z"&(ROW()+1-$A19&"S"&COLUMN()-5)&":Z"&(ROW()+AnzSp-$A19)&"S"&COLUMN()-5,0),2),COUNTIF(INDIRECT("Z"&(ROW()+1-$A19&"S"&COLUMN()-5)&":Z"&(ROW())&"S"&COLUMN()-5,0),H19)=1),"X",""))),"") -> X | N19: =IF(I19>0,IF(AND(COUNTIF(INDIRECT("Z"&(ROW()+1-$A19&"S"&COLUMN()-5)&":Z"&(ROW()+AnzSp-$A19)&"S"&COLUMN()-5,0),">0")=AnzSp-1,I19=LARGE(INDIRECT("Z"&(ROW()+1-$A19&"S"&COLUMN()-5)&":Z"&(ROW()+AnzSp-$A19)&"S"&COLUMN()-5,0),1),COUNTIF(INDIRECT("Z"&(ROW()+1-$A19&"S"&COLUMN()-5)&":Z"&(ROW())&"S"&COLUMN()-5,0),I19)=1),"X",IF(AND(COUNTIF(INDIRECT("Z"&(ROW()+1-$A19&"S"&COLUMN()-5)&":Z"&(ROW()+AnzSp-$A19)&"S"&COLUMN()-5,0),">0")=AnzSp,INDIRECT("Z"&(ROW()+AnzSp+1-$A19)&"S6",0)>0,I19=LARGE(INDIRECT("Z"&(ROW()+1-$A19&"S"&COLUMN()-5)&":Z"&(ROW()+AnzSp-$A19)&"S"&COLUMN()-5,0),1),COUNTIF(INDIRECT("Z"&(ROW()+1-$A19&"S"&COLUMN()-5)&":Z"&(ROW())&"S"&COLUMN()-5,0),I19)<3),"X",IF(AND(COUNTIF(INDIRECT("Z"&(ROW()+1-$A19&"S"&COLUMN()-5)&":Z"&(ROW()+AnzSp-$A19)&"S"&COLUMN()-5,0),">0")=AnzSp,INDIRECT("Z"&(ROW()+AnzSp+1-$A19)&"S6",0)>0,I19=LARGE(INDIRECT("Z"&(ROW()+1-$A19&"S"&COLUMN()-5)&":Z"&(ROW()+AnzSp-$A19)&"S"&COLUMN()-5,0),2),COUNTIF(INDIRECT("Z"&(ROW()+1-$A19&"S"&COLUMN()-5)&":Z"&(ROW())&"S"&COLUMN()-5,0),I19)=1),"X",""))),"") -> X | O19: =IF(J19>0,IF(AND(COUNTIF(INDIRECT("Z"&(ROW()+1-$A19&"S"&COLUMN()-5)&":Z"&(ROW()+AnzSp-$A19)&"S"&COLUMN()-5,0),">0")=AnzSp-1,J19=LARGE(INDIRECT("Z"&(ROW()+1-$A19&"S"&COLUMN()-5)&":Z"&(ROW()+AnzSp-$A19)&"S"&COLUMN()-5,0),1),COUNTIF(INDIRECT("Z"&(ROW()+1-$A19&"S"&COLUMN()-5)&":Z"&(ROW())&"S"&COLUMN()-5,0),J19)=1),"X",IF(AND(COUNTIF(INDIRECT("Z"&(ROW()+1-$A19&"S"&COLUMN()-5)&":Z"&(ROW()+AnzSp-$A19)&"S"&COLUMN()-5,0),">0")=AnzSp,INDIRECT("Z"&(ROW()+AnzSp+1-$A19)&"S6",0)>0,J19=LARGE(INDIRECT("Z"&(ROW()+1-$A19&"S"&COLUMN()-5)&":Z"&(ROW()+AnzSp-$A19)&"S"&COLUMN()-5,0),1),COUNTIF(INDIRECT("Z"&(ROW()+1-$A19&"S"&COLUMN()-5)&":Z"&(ROW())&"S"&COLUMN()-5,0),J19)<3),"X",IF(AND(COUNTIF(INDIRECT("Z"&(ROW()+1-$A19&"S"&COLUMN()-5)&":Z"&(ROW()+AnzSp-$A19)&"S"&COLUMN()-5,0),">0")=AnzSp,INDIRECT("Z"&(ROW()+AnzSp+1-$A19)&"S6",0)>0,J19=LARGE(INDIRECT("Z"&(ROW()+1-$A19&"S"&COLUMN()-5)&":Z"&(ROW()+AnzSp-$A19)&"S"&COLUMN()-5,0),2),COUNTIF(INDIRECT("Z"&(ROW()+1-$A19&"S"&COLUMN()-5)&":Z"&(ROW())&"S"&COLUMN()-5,0),J19)=1),"X",""))),"") ->  | P19: 116
A20: 5 | B20: Weigang | C20: Klaus-Dieter | E20: 6605 | F20: Sm 2 | G20: =IF(ISERROR(VLOOKUP($E20,Ergebnisse,COLUMN()-4,0)),0,VLOOKUP($E20,Ergebnisse,COLUMN()-4,0)) -> 28 | H20: =IF(ISERROR(VLOOKUP($E20,Ergebnisse,COLUMN()-4,0)),0,VLOOKUP($E20,Ergebnisse,COLUMN()-4,0)) -> 28 | I20: =IF(ISERROR(VLOOKUP($E20,Ergebnisse,COLUMN()-4,0)),0,VLOOKUP($E20,Ergebnisse,COLUMN()-4,0)) -> 22 | J20: =IF(ISERROR(VLOOKUP($E20,Ergebnisse,COLUMN()-4,0)),0,VLOOKUP($E20,Ergebnisse,COLUMN()-4,0)) -> 29 | K20: 107 | L20: =IF(G20>0,IF(AND(COUNTIF(INDIRECT("Z"&(ROW()+1-$A20&"S"&COLUMN()-5)&":Z"&(ROW()+AnzSp-$A20)&"S"&COLUMN()-5,0),">0")=AnzSp-1,G20=LARGE(INDIRECT("Z"&(ROW()+1-$A20&"S"&COLUMN()-5)&":Z"&(ROW()+AnzSp-$A20)&"S"&COLUMN()-5,0),1),COUNTIF(INDIRECT("Z"&(ROW()+1-$A20&"S"&COLUMN()-5)&":Z"&(ROW())&"S"&COLUMN()-5,0),G20)=1),"X",IF(AND(COUNTIF(INDIRECT("Z"&(ROW()+1-$A20&"S"&COLUMN()-5)&":Z"&(ROW()+AnzSp-$A20)&"S"&COLUMN()-5,0),">0")=AnzSp,INDIRECT("Z"&(ROW()+AnzSp+1-$A20)&"S6",0)>0,G20=LARGE(INDIRECT("Z"&(ROW()+1-$A20&"S"&COLUMN()-5)&":Z"&(ROW()+AnzSp-$A20)&"S"&COLUMN()-5,0),1),COUNTIF(INDIRECT("Z"&(ROW()+1-$A20&"S"&COLUMN()-5)&":Z"&(ROW())&"S"&COLUMN()-5,0),G20)<3),"X",IF(AND(COUNTIF(INDIRECT("Z"&(ROW()+1-$A20&"S"&COLUMN()-5)&":Z"&(ROW()+AnzSp-$A20)&"S"&COLUMN()-5,0),">0")=AnzSp,INDIRECT("Z"&(ROW()+AnzSp+1-$A20)&"S6",0)>0,G20=LARGE(INDIRECT("Z"&(ROW()+1-$A20&"S"&COLUMN()-5)&":Z"&(ROW()+AnzSp-$A20)&"S"&COLUMN()-5,0),2),COUNTIF(INDIRECT("Z"&(ROW()+1-$A20&"S"&COLUMN()-5)&":Z"&(ROW())&"S"&COLUMN()-5,0),G20)=1),"X",""))),"") ->  | M20: =IF(H20>0,IF(AND(COUNTIF(INDIRECT("Z"&(ROW()+1-$A20&"S"&COLUMN()-5)&":Z"&(ROW()+AnzSp-$A20)&"S"&COLUMN()-5,0),">0")=AnzSp-1,H20=LARGE(INDIRECT("Z"&(ROW()+1-$A20&"S"&COLUMN()-5)&":Z"&(ROW()+AnzSp-$A20)&"S"&COLUMN()-5,0),1),COUNTIF(INDIRECT("Z"&(ROW()+1-$A20&"S"&COLUMN()-5)&":Z"&(ROW())&"S"&COLUMN()-5,0),H20)=1),"X",IF(AND(COUNTIF(INDIRECT("Z"&(ROW()+1-$A20&"S"&COLUMN()-5)&":Z"&(ROW()+AnzSp-$A20)&"S"&COLUMN()-5,0),">0")=AnzSp,INDIRECT("Z"&(ROW()+AnzSp+1-$A20)&"S6",0)>0,H20=LARGE(INDIRECT("Z"&(ROW()+1-$A20&"S"&COLUMN()-5)&":Z"&(ROW()+AnzSp-$A20)&"S"&COLUMN()-5,0),1),COUNTIF(INDIRECT("Z"&(ROW()+1-$A20&"S"&COLUMN()-5)&":Z"&(ROW())&"S"&COLUMN()-5,0),H20)<3),"X",IF(AND(COUNTIF(INDIRECT("Z"&(ROW()+1-$A20&"S"&COLUMN()-5)&":Z"&(ROW()+AnzSp-$A20)&"S"&COLUMN()-5,0),">0")=AnzSp,INDIRECT("Z"&(ROW()+AnzSp+1-$A20)&"S6",0)>0,H20=LARGE(INDIRECT("Z"&(ROW()+1-$A20&"S"&COLUMN()-5)&":Z"&(ROW()+AnzSp-$A20)&"S"&COLUMN()-5,0),2),COUNTIF(INDIRECT("Z"&(ROW()+1-$A20&"S"&COLUMN()-5)&":Z"&(ROW())&"S"&COLUMN()-5,0),H20)=1),"X",""))),"") ->  | N20: =IF(I20>0,IF(AND(COUNTIF(INDIRECT("Z"&(ROW()+1-$A20&"S"&COLUMN()-5)&":Z"&(ROW()+AnzSp-$A20)&"S"&COLUMN()-5,0),">0")=AnzSp-1,I20=LARGE(INDIRECT("Z"&(ROW()+1-$A20&"S"&COLUMN()-5)&":Z"&(ROW()+AnzSp-$A20)&"S"&COLUMN()-5,0),1),COUNTIF(INDIRECT("Z"&(ROW()+1-$A20&"S"&COLUMN()-5)&":Z"&(ROW())&"S"&COLUMN()-5,0),I20)=1),"X",IF(AND(COUNTIF(INDIRECT("Z"&(ROW()+1-$A20&"S"&COLUMN()-5)&":Z"&(ROW()+AnzSp-$A20)&"S"&COLUMN()-5,0),">0")=AnzSp,INDIRECT("Z"&(ROW()+AnzSp+1-$A20)&"S6",0)>0,I20=LARGE(INDIRECT("Z"&(ROW()+1-$A20&"S"&COLUMN()-5)&":Z"&(ROW()+AnzSp-$A20)&"S"&COLUMN()-5,0),1),COUNTIF(INDIRECT("Z"&(ROW()+1-$A20&"S"&COLUMN()-5)&":Z"&(ROW())&"S"&COLUMN()-5,0),I20)<3),"X",IF(AND(COUNTIF(INDIRECT("Z"&(ROW()+1-$A20&"S"&COLUMN()-5)&":Z"&(ROW()+AnzSp-$A20)&"S"&COLUMN()-5,0),">0")=AnzSp,INDIRECT("Z"&(ROW()+AnzSp+1-$A20)&"S6",0)>0,I20=LARGE(INDIRECT("Z"&(ROW()+1-$A20&"S"&COLUMN()-5)&":Z"&(ROW()+AnzSp-$A20)&"S"&COLUMN()-5,0),2),COUNTIF(INDIRECT("Z"&(ROW()+1-$A20&"S"&COLUMN()-5)&":Z"&(ROW())&"S"&COLUMN()-5,0),I20)=1),"X",""))),"") ->  | O20: =IF(J20>0,IF(AND(COUNTIF(INDIRECT("Z"&(ROW()+1-$A20&"S"&COLUMN()-5)&":Z"&(ROW()+AnzSp-$A20)&"S"&COLUMN()-5,0),">0")=AnzSp-1,J20=LARGE(INDIRECT("Z"&(ROW()+1-$A20&"S"&COLUMN()-5)&":Z"&(ROW()+AnzSp-$A20)&"S"&COLUMN()-5,0),1),COUNTIF(INDIRECT("Z"&(ROW()+1-$A20&"S"&COLUMN()-5)&":Z"&(ROW())&"S"&COLUMN()-5,0),J20)=1),"X",IF(AND(COUNTIF(INDIRECT("Z"&(ROW()+1-$A20&"S"&COLUMN()-5)&":Z"&(ROW()+AnzSp-$A20)&"S"&COLUMN()-5,0),">0")=AnzSp,INDIRECT("Z"&(ROW()+AnzSp+1-$A20)&"S6",0)>0,J20=LARGE(INDIRECT("Z"&(ROW()+1-$A20&"S"&COLUMN()-5)&":Z"&(ROW()+AnzSp-$A20)&"S"&COLUMN()-5,0),1),COUNTIF(INDIRECT("Z"&(ROW()+1-$A20&"S"&COLUMN()-5)&":Z"&(ROW())&"S"&COLUMN()-5,0),J20)<3),"X",IF(AND(COUNTIF(INDIRECT("Z"&(ROW()+1-$A20&"S"&COLUMN()-5)&":Z"&(ROW()+AnzSp-$A20)&"S"&COLUMN()-5,0),">0")=AnzSp,INDIRECT("Z"&(ROW()+AnzSp+1-$A20)&"S6",0)>0,J20=LARGE(INDIRECT("Z"&(ROW()+1-$A20&"S"&COLUMN()-5)&":Z"&(ROW()+AnzSp-$A20)&"S"&COLUMN()-5,0),2),COUNTIF(INDIRECT("Z"&(ROW()+1-$A20&"S"&COLUMN()-5)&":Z"&(ROW())&"S"&COLUMN()-5,0),J20)=1),"X",""))),"") ->  | P20: 107
A21: 6 | G21: =IF(ISERROR(VLOOKUP($E21,Ergebnisse,COLUMN()-4,0)),0,VLOOKUP($E21,Ergebnisse,COLUMN()-4,0)) -> 0 | H21: =IF(ISERROR(VLOOKUP($E21,Ergebnisse,COLUMN()-4,0)),0,VLOOKUP($E21,Ergebnisse,COLUMN()-4,0)) -> 0 | I21: =IF(ISERROR(VLOOKUP($E21,Ergebnisse,COLUMN()-4,0)),0,VLOOKUP($E21,Ergebnisse,COLUMN()-4,0)) -> 0 | J21: =IF(ISERROR(VLOOKUP($E21,Ergebnisse,COLUMN()-4,0)),0,VLOOKUP($E21,Ergebnisse,COLUMN()-4,0)) -> 0 | K21: 0 | L21: =IF(G21>0,IF(AND(COUNTIF(INDIRECT("Z"&(ROW()+1-$A21&"S"&COLUMN()-5)&":Z"&(ROW()+AnzSp-$A21)&"S"&COLUMN()-5,0),">0")=AnzSp-1,G21=LARGE(INDIRECT("Z"&(ROW()+1-$A21&"S"&COLUMN()-5)&":Z"&(ROW()+AnzSp-$A21)&"S"&COLUMN()-5,0),1),COUNTIF(INDIRECT("Z"&(ROW()+1-$A21&"S"&COLUMN()-5)&":Z"&(ROW())&"S"&COLUMN()-5,0),G21)=1),"X",IF(AND(COUNTIF(INDIRECT("Z"&(ROW()+1-$A21&"S"&COLUMN()-5)&":Z"&(ROW()+AnzSp-$A21)&"S"&COLUMN()-5,0),">0")=AnzSp,INDIRECT("Z"&(ROW()+AnzSp+1-$A21)&"S6",0)>0,G21=LARGE(INDIRECT("Z"&(ROW()+1-$A21&"S"&COLUMN()-5)&":Z"&(ROW()+AnzSp-$A21)&"S"&COLUMN()-5,0),1),COUNTIF(INDIRECT("Z"&(ROW()+1-$A21&"S"&COLUMN()-5)&":Z"&(ROW())&"S"&COLUMN()-5,0),G21)<3),"X",IF(AND(COUNTIF(INDIRECT("Z"&(ROW()+1-$A21&"S"&COLUMN()-5)&":Z"&(ROW()+AnzSp-$A21)&"S"&COLUMN()-5,0),">0")=AnzSp,INDIRECT("Z"&(ROW()+AnzSp+1-$A21)&"S6",0)>0,G21=LARGE(INDIRECT("Z"&(ROW()+1-$A21&"S"&COLUMN()-5)&":Z"&(ROW()+AnzSp-$A21)&"S"&COLUMN()-5,0),2),COUNTIF(INDIRECT("Z"&(ROW()+1-$A21&"S"&COLUMN()-5)&":Z"&(ROW())&"S"&COLUMN()-5,0),G21)=1),"X",""))),"") ->  | M21: =IF(H21>0,IF(AND(COUNTIF(INDIRECT("Z"&(ROW()+1-$A21&"S"&COLUMN()-5)&":Z"&(ROW()+AnzSp-$A21)&"S"&COLUMN()-5,0),">0")=AnzSp-1,H21=LARGE(INDIRECT("Z"&(ROW()+1-$A21&"S"&COLUMN()-5)&":Z"&(ROW()+AnzSp-$A21)&"S"&COLUMN()-5,0),1),COUNTIF(INDIRECT("Z"&(ROW()+1-$A21&"S"&COLUMN()-5)&":Z"&(ROW())&"S"&COLUMN()-5,0),H21)=1),"X",IF(AND(COUNTIF(INDIRECT("Z"&(ROW()+1-$A21&"S"&COLUMN()-5)&":Z"&(ROW()+AnzSp-$A21)&"S"&COLUMN()-5,0),">0")=AnzSp,INDIRECT("Z"&(ROW()+AnzSp+1-$A21)&"S6",0)>0,H21=LARGE(INDIRECT("Z"&(ROW()+1-$A21&"S"&COLUMN()-5)&":Z"&(ROW()+AnzSp-$A21)&"S"&COLUMN()-5,0),1),COUNTIF(INDIRECT("Z"&(ROW()+1-$A21&"S"&COLUMN()-5)&":Z"&(ROW())&"S"&COLUMN()-5,0),H21)<3),"X",IF(AND(COUNTIF(INDIRECT("Z"&(ROW()+1-$A21&"S"&COLUMN()-5)&":Z"&(ROW()+AnzSp-$A21)&"S"&COLUMN()-5,0),">0")=AnzSp,INDIRECT("Z"&(ROW()+AnzSp+1-$A21)&"S6",0)>0,H21=LARGE(INDIRECT("Z"&(ROW()+1-$A21&"S"&COLUMN()-5)&":Z"&(ROW()+AnzSp-$A21)&"S"&COLUMN()-5,0),2),COUNTIF(INDIRECT("Z"&(ROW()+1-$A21&"S"&COLUMN()-5)&":Z"&(ROW())&"S"&COLUMN()-5,0),H21)=1),"X",""))),"") ->  | N21: =IF(I21>0,IF(AND(COUNTIF(INDIRECT("Z"&(ROW()+1-$A21&"S"&COLUMN()-5)&":Z"&(ROW()+AnzSp-$A21)&"S"&COLUMN()-5,0),">0")=AnzSp-1,I21=LARGE(INDIRECT("Z"&(ROW()+1-$A21&"S"&COLUMN()-5)&":Z"&(ROW()+AnzSp-$A21)&"S"&COLUMN()-5,0),1),COUNTIF(INDIRECT("Z"&(ROW()+1-$A21&"S"&COLUMN()-5)&":Z"&(ROW())&"S"&COLUMN()-5,0),I21)=1),"X",IF(AND(COUNTIF(INDIRECT("Z"&(ROW()+1-$A21&"S"&COLUMN()-5)&":Z"&(ROW()+AnzSp-$A21)&"S"&COLUMN()-5,0),">0")=AnzSp,INDIRECT("Z"&(ROW()+AnzSp+1-$A21)&"S6",0)>0,I21=LARGE(INDIRECT("Z"&(ROW()+1-$A21&"S"&COLUMN()-5)&":Z"&(ROW()+AnzSp-$A21)&"S"&COLUMN()-5,0),1),COUNTIF(INDIRECT("Z"&(ROW()+1-$A21&"S"&COLUMN()-5)&":Z"&(ROW())&"S"&COLUMN()-5,0),I21)<3),"X",IF(AND(COUNTIF(INDIRECT("Z"&(ROW()+1-$A21&"S"&COLUMN()-5)&":Z"&(ROW()+AnzSp-$A21)&"S"&COLUMN()-5,0),">0")=AnzSp,INDIRECT("Z"&(ROW()+AnzSp+1-$A21)&"S6",0)>0,I21=LARGE(INDIRECT("Z"&(ROW()+1-$A21&"S"&COLUMN()-5)&":Z"&(ROW()+AnzSp-$A21)&"S"&COLUMN()-5,0),2),COUNTIF(INDIRECT("Z"&(ROW()+1-$A21&"S"&COLUMN()-5)&":Z"&(ROW())&"S"&COLUMN()-5,0),I21)=1),"X",""))),"") ->  | O21: =IF(J21>0,IF(AND(COUNTIF(INDIRECT("Z"&(ROW()+1-$A21&"S"&COLUMN()-5)&":Z"&(ROW()+AnzSp-$A21)&"S"&COLUMN()-5,0),">0")=AnzSp-1,J21=LARGE(INDIRECT("Z"&(ROW()+1-$A21&"S"&COLUMN()-5)&":Z"&(ROW()+AnzSp-$A21)&"S"&COLUMN()-5,0),1),COUNTIF(INDIRECT("Z"&(ROW()+1-$A21&"S"&COLUMN()-5)&":Z"&(ROW())&"S"&COLUMN()-5,0),J21)=1),"X",IF(AND(COUNTIF(INDIRECT("Z"&(ROW()+1-$A21&"S"&COLUMN()-5)&":Z"&(ROW()+AnzSp-$A21)&"S"&COLUMN()-5,0),">0")=AnzSp,INDIRECT("Z"&(ROW()+AnzSp+1-$A21)&"S6",0)>0,J21=LARGE(INDIRECT("Z"&(ROW()+1-$A21&"S"&COLUMN()-5)&":Z"&(ROW()+AnzSp-$A21)&"S"&COLUMN()-5,0),1),COUNTIF(INDIRECT("Z"&(ROW()+1-$A21&"S"&COLUMN()-5)&":Z"&(ROW())&"S"&COLUMN()-5,0),J21)<3),"X",IF(AND(COUNTIF(INDIRECT("Z"&(ROW()+1-$A21&"S"&COLUMN()-5)&":Z"&(ROW()+AnzSp-$A21)&"S"&COLUMN()-5,0),">0")=AnzSp,INDIRECT("Z"&(ROW()+AnzSp+1-$A21)&"S6",0)>0,J21=LARGE(INDIRECT("Z"&(ROW()+1-$A21&"S"&COLUMN()-5)&":Z"&(ROW()+AnzSp-$A21)&"S"&COLUMN()-5,0),2),COUNTIF(INDIRECT("Z"&(ROW()+1-$A21&"S"&COLUMN()-5)&":Z"&(ROW())&"S"&COLUMN()-5,0),J21)=1),"X",""))),"") ->  | P21: 0
B22: =IF(COUNT(INDIRECT("E"&ROW()-AnzSp&":E"&ROW()-1))<=AnzSp-2,"Kein Streicher",IF(COUNT(INDIRECT("E"&ROW()-AnzSp&":E"&ROW()-1))<=AnzSp-1,"1 Streicher",IF(AND(COUNT(INDIRECT("E"&ROW()-AnzSp&":E"&ROW()-1))<=AnzSp,F22>0),"2 Streicher","Spieler Nr. "&AnzSp&" löschen und als Einzelspieler erfassen!"))) -> 1 Streicher | F22: =COUNTIF(INDIRECT("F"&(ROW()-AnzSp)&":F"&ROW()-1),"Jw")+COUNTIF(INDIRECT("F"&ROW()-AnzSp&":F"&ROW()-1),"Jm")+COUNTIF(INDIRECT("F"&ROW()-AnzSp&":F"&ROW()-1),"Schw")+COUNTIF(INDIRECT("F"&ROW()-AnzSp&":F"&ROW()-1),"Schm") -> 0 | G22: =IF(COUNTIF(INDIRECT("G"&ROW()-AnzSp&":G"&ROW()-1),">0")=AnzSp-2,SUM(INDIRECT("G"&ROW()-AnzSp&":G"&ROW()-1)),IF(COUNTIF(INDIRECT("G"&ROW()-AnzSp&":G"&ROW()-1),">0")=AnzSp-1,SUM(INDIRECT("G"&ROW()-AnzSp&":G"&ROW()-1))-LARGE(INDIRECT("G"&ROW()-AnzSp&":G"&ROW()-1),1),IF(COUNTIF(INDIRECT("G"&ROW()-AnzSp&":G"&ROW()-1),">0")=AnzSp,SUM(INDIRECT("G"&ROW()-AnzSp&":G"&ROW()-1))-LARGE(INDIRECT("G"&ROW()-AnzSp&":G"&ROW()-1),1)-LARGE(INDIRECT("G"&ROW()-AnzSp&":G"&ROW()-1),2),0))) -> 106 | H22: =IF(COUNTIF(INDIRECT("H"&ROW()-AnzSp&":H"&ROW()-1),">0")=AnzSp-2,SUM(INDIRECT("H"&ROW()-AnzSp&":H"&ROW()-1)),IF(COUNTIF(INDIRECT("H"&ROW()-AnzSp&":H"&ROW()-1),">0")=AnzSp-1,SUM(INDIRECT("H"&ROW()-AnzSp&":H"&ROW()-1))-LARGE(INDIRECT("H"&ROW()-AnzSp&":H"&ROW()-1),1),IF(COUNTIF(INDIRECT("H"&ROW()-AnzSp&":H"&ROW()-1),">0")=AnzSp,SUM(INDIRECT("H"&ROW()-AnzSp&":H"&ROW()-1))-LARGE(INDIRECT("H"&ROW()-AnzSp&":H"&ROW()-1),1)-LARGE(INDIRECT("H"&ROW()-AnzSp&":H"&ROW()-1),2),0))) -> 102 | I22: =IF(COUNTIF(INDIRECT("I"&ROW()-AnzSp&":I"&ROW()-1),">0")=AnzSp-2,SUM(INDIRECT("I"&ROW()-AnzSp&":I"&ROW()-1)),IF(COUNTIF(INDIRECT("I"&ROW()-AnzSp&":I"&ROW()-1),">0")=AnzSp-1,SUM(INDIRECT("I"&ROW()-AnzSp&":I"&ROW()-1))-LARGE(INDIRECT("I"&ROW()-AnzSp&":I"&ROW()-1),1),IF(COUNTIF(INDIRECT("I"&ROW()-AnzSp&":I"&ROW()-1),">0")=AnzSp,SUM(INDIRECT("I"&ROW()-AnzSp&":I"&ROW()-1))-LARGE(INDIRECT("I"&ROW()-AnzSp&":I"&ROW()-1),1)-LARGE(INDIRECT("I"&ROW()-AnzSp&":I"&ROW()-1),2),0))) -> 100 | J22: =IF(COUNTIF(INDIRECT("J"&ROW()-AnzSp&":J"&ROW()-1),">0")=AnzSp-2,SUM(INDIRECT("J"&ROW()-AnzSp&":J"&ROW()-1)),IF(COUNTIF(INDIRECT("J"&ROW()-AnzSp&":J"&ROW()-1),">0")=AnzSp-1,SUM(INDIRECT("J"&ROW()-AnzSp&":J"&ROW()-1))-LARGE(INDIRECT("J"&ROW()-AnzSp&":J"&ROW()-1),1),IF(COUNTIF(INDIRECT("J"&ROW()-AnzSp&":J"&ROW()-1),">0")=AnzSp,SUM(INDIRECT("J"&ROW()-AnzSp&":J"&ROW()-1))-LARGE(INDIRECT("J"&ROW()-AnzSp&":J"&ROW()-1),1)-LARGE(INDIRECT("J"&ROW()-AnzSp&":J"&ROW()-1),2),0))) -> 101 | K22: =SUM(G22:J22) -> 409
A24: 3 | B24: VfL Lüneburg I | I24: Schnitt: | J24: =IF(COUNTIF(INDIRECT("G"&ROW()+2&":J"&ROW()+AnzSp+1),">0")>0,K32/(COUNTIF(INDIRECT("G"&ROW()+2&":J"&ROW()+AnzSp+1),">0")-COUNTIF(INDIRECT("L"&ROW()+2&":O"&ROW()+AnzSp+1),"X")),0) -> 26.1875
A25: Nr.: | B25: Nachname | C25: Vorname | E25: Sp.Nr. | F25: Kat. | G25: R1 | H25: R2 | I25: R3 | J25: R4 | K25: Wertung | P25: Gesamt
A26: 1 | B26: =IF(E26="","",IF(ISERROR(VLOOKUP(E26,Spieler,4,0)),"Falsche Nummer!",VLOOKUP(E26,Spieler,4,0))) -> Müller | C26: =IF(ISERROR(VLOOKUP(E26,Spieler,3,0)),"",VLOOKUP(E26,Spieler,3,0)) -> Wolfgang | E26: 18367 | F26: =IF(ISERROR(VLOOKUP(E26,Spieler,2,0)),"",VLOOKUP(E26,Spieler,2,0)) -> Sm 2 | G26: =IF(ISERROR(VLOOKUP($E26,Ergebnisse,COLUMN()-4,0)),0,VLOOKUP($E26,Ergebnisse,COLUMN()-4,0)) -> 31 | H26: =IF(ISERROR(VLOOKUP($E26,Ergebnisse,COLUMN()-4,0)),0,VLOOKUP($E26,Ergebnisse,COLUMN()-4,0)) -> 27 | I26: =IF(ISERROR(VLOOKUP($E26,Ergebnisse,COLUMN()-4,0)),0,VLOOKUP($E26,Ergebnisse,COLUMN()-4,0)) -> 26 | J26: =IF(ISERROR(VLOOKUP($E26,Ergebnisse,COLUMN()-4,0)),0,VLOOKUP($E26,Ergebnisse,COLUMN()-4,0)) -> 29 | K26: =IF(L26="X",0,G26)+IF(M26="X",0,H26)+IF(N26="X",0,I26)+IF(O26="X",0,J26) -> 82 | L26: =IF(G26>0,IF(AND(COUNTIF(INDIRECT("Z"&(ROW()+1-$A26&"S"&COLUMN()-5)&":Z"&(ROW()+AnzSp-$A26)&"S"&COLUMN()-5,0),">0")=AnzSp-1,G26=LARGE(INDIRECT("Z"&(ROW()+1-$A26&"S"&COLUMN()-5)&":Z"&(ROW()+AnzSp-$A26)&"S"&COLUMN()-5,0),1),COUNTIF(INDIRECT("Z"&(ROW()+1-$A26&"S"&COLUMN()-5)&":Z"&(ROW())&"S"&COLUMN()-5,0),G26)=1),"X",IF(AND(COUNTIF(INDIRECT("Z"&(ROW()+1-$A26&"S"&COLUMN()-5)&":Z"&(ROW()+AnzSp-$A26)&"S"&COLUMN()-5,0),">0")=AnzSp,INDIRECT("Z"&(ROW()+AnzSp+1-$A26)&"S6",0)>0,G26=LARGE(INDIRECT("Z"&(ROW()+1-$A26&"S"&COLUMN()-5)&":Z"&(ROW()+AnzSp-$A26)&"S"&COLUMN()-5,0),1),COUNTIF(INDIRECT("Z"&(ROW()+1-$A26&"S"&COLUMN()-5)&":Z"&(ROW())&"S"&COLUMN()-5,0),G26)<3),"X",IF(AND(COUNTIF(INDIRECT("Z"&(ROW()+1-$A26&"S"&COLUMN()-5)&":Z"&(ROW()+AnzSp-$A26)&"S"&COLUMN()-5,0),">0")=AnzSp,INDIRECT("Z"&(ROW()+AnzSp+1-$A26)&"S6",0)>0,G26=LARGE(INDIRECT("Z"&(ROW()+1-$A26&"S"&COLUMN()-5)&":Z"&(ROW()+AnzSp-$A26)&"S"&COLUMN()-5,0),2),COUNTIF(INDIRECT("Z"&(ROW()+1-$A26&"S"&COLUMN()-5)&":Z"&(ROW())&"S"&COLUMN()-5,0),G26)=1),"X",""))),"") -> X | M26: =IF(H26>0,IF(AND(COUNTIF(INDIRECT("Z"&(ROW()+1-$A26&"S"&COLUMN()-5)&":Z"&(ROW()+AnzSp-$A26)&"S"&COLUMN()-5,0),">0")=AnzSp-1,H26=LARGE(INDIRECT("Z"&(ROW()+1-$A26&"S"&COLUMN()-5)&":Z"&(ROW()+AnzSp-$A26)&"S"&COLUMN()-5,0),1),COUNTIF(INDIRECT("Z"&(ROW()+1-$A26&"S"&COLUMN()-5)&":Z"&(ROW())&"S"&COLUMN()-5,0),H26)=1),"X",IF(AND(COUNTIF(INDIRECT("Z"&(ROW()+1-$A26&"S"&COLUMN()-5)&":Z"&(ROW()+AnzSp-$A26)&"S"&COLUMN()-5,0),">0")=AnzSp,INDIRECT("Z"&(ROW()+AnzSp+1-$A26)&"S6",0)>0,H26=LARGE(INDIRECT("Z"&(ROW()+1-$A26&"S"&COLUMN()-5)&":Z"&(ROW()+AnzSp-$A26)&"S"&COLUMN()-5,0),1),COUNTIF(INDIRECT("Z"&(ROW()+1-$A26&"S"&COLUMN()-5)&":Z"&(ROW())&"S"&COLUMN()-5,0),H26)<3),"X",IF(AND(COUNTIF(INDIRECT("Z"&(ROW()+1-$A26&"S"&COLUMN()-5)&":Z"&(ROW()+AnzSp-$A26)&"S"&COLUMN()-5,0),">0")=AnzSp,INDIRECT("Z"&(ROW()+AnzSp+1-$A26)&"S6",0)>0,H26=LARGE(INDIRECT("Z"&(ROW()+1-$A26&"S"&COLUMN()-5)&":Z"&(ROW()+AnzSp-$A26)&"S"&COLUMN()-5,0),2),COUNTIF(INDIRECT("Z"&(ROW()+1-$A26&"S"&COLUMN()-5)&":Z"&(ROW())&"S"&COLUMN()-5,0),H26)=1),"X",""))),"") ->  | N26: =IF(I26>0,IF(AND(COUNTIF(INDIRECT("Z"&(ROW()+1-$A26&"S"&COLUMN()-5)&":Z"&(ROW()+AnzSp-$A26)&"S"&COLUMN()-5,0),">0")=AnzSp-1,I26=LARGE(INDIRECT("Z"&(ROW()+1-$A26&"S"&COLUMN()-5)&":Z"&(ROW()+AnzSp-$A26)&"S"&COLUMN()-5,0),1),COUNTIF(INDIRECT("Z"&(ROW()+1-$A26&"S"&COLUMN()-5)&":Z"&(ROW())&"S"&COLUMN()-5,0),I26)=1),"X",IF(AND(COUNTIF(INDIRECT("Z"&(ROW()+1-$A26&"S"&COLUMN()-5)&":Z"&(ROW()+AnzSp-$A26)&"S"&COLUMN()-5,0),">0")=AnzSp,INDIRECT("Z"&(ROW()+AnzSp+1-$A26)&"S6",0)>0,I26=LARGE(INDIRECT("Z"&(ROW()+1-$A26&"S"&COLUMN()-5)&":Z"&(ROW()+AnzSp-$A26)&"S"&COLUMN()-5,0),1),COUNTIF(INDIRECT("Z"&(ROW()+1-$A26&"S"&COLUMN()-5)&":Z"&(ROW())&"S"&COLUMN()-5,0),I26)<3),"X",IF(AND(COUNTIF(INDIRECT("Z"&(ROW()+1-$A26&"S"&COLUMN()-5)&":Z"&(ROW()+AnzSp-$A26)&"S"&COLUMN()-5,0),">0")=AnzSp,INDIRECT("Z"&(ROW()+AnzSp+1-$A26)&"S6",0)>0,I26=LARGE(INDIRECT("Z"&(ROW()+1-$A26&"S"&COLUMN()-5)&":Z"&(ROW()+AnzSp-$A26)&"S"&COLUMN()-5,0),2),COUNTIF(INDIRECT("Z"&(ROW()+1-$A26&"S"&COLUMN()-5)&":Z"&(ROW())&"S"&COLUMN()-5,0),I26)=1),"X",""))),"") ->  | O26: =IF(J26>0,IF(AND(COUNTIF(INDIRECT("Z"&(ROW()+1-$A26&"S"&COLUMN()-5)&":Z"&(ROW()+AnzSp-$A26)&"S"&COLUMN()-5,0),">0")=AnzSp-1,J26=LARGE(INDIRECT("Z"&(ROW()+1-$A26&"S"&COLUMN()-5)&":Z"&(ROW()+AnzSp-$A26)&"S"&COLUMN()-5,0),1),COUNTIF(INDIRECT("Z"&(ROW()+1-$A26&"S"&COLUMN()-5)&":Z"&(ROW())&"S"&COLUMN()-5,0),J26)=1),"X",IF(AND(COUNTIF(INDIRECT("Z"&(ROW()+1-$A26&"S"&COLUMN()-5)&":Z"&(ROW()+AnzSp-$A26)&"S"&COLUMN()-5,0),">0")=AnzSp,INDIRECT("Z"&(ROW()+AnzSp+1-$A26)&"S6",0)>0,J26=LARGE(INDIRECT("Z"&(ROW()+1-$A26&"S"&COLUMN()-5)&":Z"&(ROW()+AnzSp-$A26)&"S"&COLUMN()-5,0),1),COUNTIF(INDIRECT("Z"&(ROW()+1-$A26&"S"&COLUMN()-5)&":Z"&(ROW())&"S"&COLUMN()-5,0),J26)<3),"X",IF(AND(COUNTIF(INDIRECT("Z"&(ROW()+1-$A26&"S"&COLUMN()-5)&":Z"&(ROW()+AnzSp-$A26)&"S"&COLUMN()-5,0),">0")=AnzSp,INDIRECT("Z"&(ROW()+AnzSp+1-$A26)&"S6",0)>0,J26=LARGE(INDIRECT("Z"&(ROW()+1-$A26&"S"&COLUMN()-5)&":Z"&(ROW()+AnzSp-$A26)&"S"&COLUMN()-5,0),2),COUNTIF(INDIRECT("Z"&(ROW()+1-$A26&"S"&COLUMN()-5)&":Z"&(ROW())&"S"&COLUMN()-5,0),J26)=1),"X",""))),"") ->  | P26: =SUM(G26:J26) -> 113
A27: 2 | B27: Dreyer | C27: Horst | E27: 6203 | F27: Sm 2 | G27: =IF(ISERROR(VLOOKUP($E27,Ergebnisse,COLUMN()-4,0)),0,VLOOKUP($E27,Ergebnisse,COLUMN()-4,0)) -> 27 | H27: =IF(ISERROR(VLOOKUP($E27,Ergebnisse,COLUMN()-4,0)),0,VLOOKUP($E27,Ergebnisse,COLUMN()-4,0)) -> 25 | I27: =IF(ISERROR(VLOOKUP($E27,Ergebnisse,COLUMN()-4,0)),0,VLOOKUP($E27,Ergebnisse,COLUMN()-4,0)) -> 33 | J27: =IF(ISERROR(VLOOKUP($E27,Ergebnisse,COLUMN()-4,0)),0,VLOOKUP($E27,Ergebnisse,COLUMN()-4,0)) -> 30 | K27: 52 | L27: =IF(G27>0,IF(AND(COUNTIF(INDIRECT("Z"&(ROW()+1-$A27&"S"&COLUMN()-5)&":Z"&(ROW()+AnzSp-$A27)&"S"&COLUMN()-5,0),">0")=AnzSp-1,G27=LARGE(INDIRECT("Z"&(ROW()+1-$A27&"S"&COLUMN()-5)&":Z"&(ROW()+AnzSp-$A27)&"S"&COLUMN()-5,0),1),COUNTIF(INDIRECT("Z"&(ROW()+1-$A27&"S"&COLUMN()-5)&":Z"&(ROW())&"S"&COLUMN()-5,0),G27)=1),"X",IF(AND(COUNTIF(INDIRECT("Z"&(ROW()+1-$A27&"S"&COLUMN()-5)&":Z"&(ROW()+AnzSp-$A27)&"S"&COLUMN()-5,0),">0")=AnzSp,INDIRECT("Z"&(ROW()+AnzSp+1-$A27)&"S6",0)>0,G27=LARGE(INDIRECT("Z"&(ROW()+1-$A27&"S"&COLUMN()-5)&":Z"&(ROW()+AnzSp-$A27)&"S"&COLUMN()-5,0),1),COUNTIF(INDIRECT("Z"&(ROW()+1-$A27&"S"&COLUMN()-5)&":Z"&(ROW())&"S"&COLUMN()-5,0),G27)<3),"X",IF(AND(COUNTIF(INDIRECT("Z"&(ROW()+1-$A27&"S"&COLUMN()-5)&":Z"&(ROW()+AnzSp-$A27)&"S"&COLUMN()-5,0),">0")=AnzSp,INDIRECT("Z"&(ROW()+AnzSp+1-$A27)&"S6",0)>0,G27=LARGE(INDIRECT("Z"&(ROW()+1-$A27&"S"&COLUMN()-5)&":Z"&(ROW()+AnzSp-$A27)&"S"&COLUMN()-5,0),2),COUNTIF(INDIRECT("Z"&(ROW()+1-$A27&"S"&COLUMN()-5)&":Z"&(ROW())&"S"&COLUMN()-5,0),G27)=1),"X",""))),"") ->  | M27: =IF(H27>0,IF(AND(COUNTIF(INDIRECT("Z"&(ROW()+1-$A27&"S"&COLUMN()-5)&":Z"&(ROW()+AnzSp-$A27)&"S"&COLUMN()-5,0),">0")=AnzSp-1,H27=LARGE(INDIRECT("Z"&(ROW()+1-$A27&"S"&COLUMN()-5)&":Z"&(ROW()+AnzSp-$A27)&"S"&COLUMN()-5,0),1),COUNTIF(INDIRECT("Z"&(ROW()+1-$A27&"S"&COLUMN()-5)&":Z"&(ROW())&"S"&COLUMN()-5,0),H27)=1),"X",IF(AND(COUNTIF(INDIRECT("Z"&(ROW()+1-$A27&"S"&COLUMN()-5)&":Z"&(ROW()+AnzSp-$A27)&"S"&COLUMN()-5,0),">0")=AnzSp,INDIRECT("Z"&(ROW()+AnzSp+1-$A27)&"S6",0)>0,H27=LARGE(INDIRECT("Z"&(ROW()+1-$A27&"S"&COLUMN()-5)&":Z"&(ROW()+AnzSp-$A27)&"S"&COLUMN()-5,0),1),COUNTIF(INDIRECT("Z"&(ROW()+1-$A27&"S"&COLUMN()-5)&":Z"&(ROW())&"S"&COLUMN()-5,0),H27)<3),"X",IF(AND(COUNTIF(INDIRECT("Z"&(ROW()+1-$A27&"S"&COLUMN()-5)&":Z"&(ROW()+AnzSp-$A27)&"S"&COLUMN()-5,0),">0")=AnzSp,INDIRECT("Z"&(ROW()+AnzSp+1-$A27)&"S6",0)>0,H27=LARGE(INDIRECT("Z"&(ROW()+1-$A27&"S"&COLUMN()-5)&":Z"&(ROW()+AnzSp-$A27)&"S"&COLUMN()-5,0),2),COUNTIF(INDIRECT("Z"&(ROW()+1-$A27&"S"&COLUMN()-5)&":Z"&(ROW())&"S"&COLUMN()-5,0),H27)=1),"X",""))),"") ->  | N27: =IF(I27>0,IF(AND(COUNTIF(INDIRECT("Z"&(ROW()+1-$A27&"S"&COLUMN()-5)&":Z"&(ROW()+AnzSp-$A27)&"S"&COLUMN()-5,0),">0")=AnzSp-1,I27=LARGE(INDIRECT("Z"&(ROW()+1-$A27&"S"&COLUMN()-5)&":Z"&(ROW()+AnzSp-$A27)&"S"&COLUMN()-5,0),1),COUNTIF(INDIRECT("Z"&(ROW()+1-$A27&"S"&COLUMN()-5)&":Z"&(ROW())&"S"&COLUMN()-5,0),I27)=1),"X",IF(AND(COUNTIF(INDIRECT("Z"&(ROW()+1-$A27&"S"&COLUMN()-5)&":Z"&(ROW()+AnzSp-$A27)&"S"&COLUMN()-5,0),">0")=AnzSp,INDIRECT("Z"&(ROW()+AnzSp+1-$A27)&"S6",0)>0,I27=LARGE(INDIRECT("Z"&(ROW()+1-$A27&"S"&COLUMN()-5)&":Z"&(ROW()+AnzSp-$A27)&"S"&COLUMN()-5,0),1),COUNTIF(INDIRECT("Z"&(ROW()+1-$A27&"S"&COLUMN()-5)&":Z"&(ROW())&"S"&COLUMN()-5,0),I27)<3),"X",IF(AND(COUNTIF(INDIRECT("Z"&(ROW()+1-$A27&"S"&COLUMN()-5)&":Z"&(ROW()+AnzSp-$A27)&"S"&COLUMN()-5,0),">0")=AnzSp,INDIRECT("Z"&(ROW()+AnzSp+1-$A27)&"S6",0)>0,I27=LARGE(INDIRECT("Z"&(ROW()+1-$A27&"S"&COLUMN()-5)&":Z"&(ROW()+AnzSp-$A27)&"S"&COLUMN()-5,0),2),COUNTIF(INDIRECT("Z"&(ROW()+1-$A27&"S"&COLUMN()-5)&":Z"&(ROW())&"S"&COLUMN()-5,0),I27)=1),"X",""))),"") -> X | O27: =IF(J27>0,IF(AND(COUNTIF(INDIRECT("Z"&(ROW()+1-$A27&"S"&COLUMN()-5)&":Z"&(ROW()+AnzSp-$A27)&"S"&COLUMN()-5,0),">0")=AnzSp-1,J27=LARGE(INDIRECT("Z"&(ROW()+1-$A27&"S"&COLUMN()-5)&":Z"&(ROW()+AnzSp-$A27)&"S"&COLUMN()-5,0),1),COUNTIF(INDIRECT("Z"&(ROW()+1-$A27&"S"&COLUMN()-5)&":Z"&(ROW())&"S"&COLUMN()-5,0),J27)=1),"X",IF(AND(COUNTIF(INDIRECT("Z"&(ROW()+1-$A27&"S"&COLUMN()-5)&":Z"&(ROW()+AnzSp-$A27)&"S"&COLUMN()-5,0),">0")=AnzSp,INDIRECT("Z"&(ROW()+AnzSp+1-$A27)&"S6",0)>0,J27=LARGE(INDIRECT("Z"&(ROW()+1-$A27&"S"&COLUMN()-5)&":Z"&(ROW()+AnzSp-$A27)&"S"&COLUMN()-5,0),1),COUNTIF(INDIRECT("Z"&(ROW()+1-$A27&"S"&COLUMN()-5)&":Z"&(ROW())&"S"&COLUMN()-5,0),J27)<3),"X",IF(AND(COUNTIF(INDIRECT("Z"&(ROW()+1-$A27&"S"&COLUMN()-5)&":Z"&(ROW()+AnzSp-$A27)&"S"&COLUMN()-5,0),">0")=AnzSp,INDIRECT("Z"&(ROW()+AnzSp+1-$A27)&"S6",0)>0,J27=LARGE(INDIRECT("Z"&(ROW()+1-$A27&"S"&COLUMN()-5)&":Z"&(ROW()+AnzSp-$A27)&"S"&COLUMN()-5,0),2),COUNTIF(INDIRECT("Z"&(ROW()+1-$A27&"S"&COLUMN()-5)&":Z"&(ROW())&"S"&COLUMN()-5,0),J27)=1),"X",""))),"") -> X | P27: =SUM(G27:J27) -> 115
A28: 3 | B28: Lührs | C28: Werner | E28: 3261 | F28: Sm 2 | G28: =IF(ISERROR(VLOOKUP($E28,Ergebnisse,COLUMN()-4,0)),0,VLOOKUP($E28,Ergebnisse,COLUMN()-4,0)) -> 29 | H28: =IF(ISERROR(VLOOKUP($E28,Ergebnisse,COLUMN()-4,0)),0,VLOOKUP($E28,Ergebnisse,COLUMN()-4,0)) -> 31 | I28: =IF(ISERROR(VLOOKUP($E28,Ergebnisse,COLUMN()-4,0)),0,VLOOKUP($E28,Ergebnisse,COLUMN()-4,0)) -> 26 | J28: =IF(ISERROR(VLOOKUP($E28,Ergebnisse,COLUMN()-4,0)),0,VLOOKUP($E28,Ergebnisse,COLUMN()-4,0)) -> 26 | K28: 81 | L28: =IF(G28>0,IF(AND(COUNTIF(INDIRECT("Z"&(ROW()+1-$A28&"S"&COLUMN()-5)&":Z"&(ROW()+AnzSp-$A28)&"S"&COLUMN()-5,0),">0")=AnzSp-1,G28=LARGE(INDIRECT("Z"&(ROW()+1-$A28&"S"&COLUMN()-5)&":Z"&(ROW()+AnzSp-$A28)&"S"&COLUMN()-5,0),1),COUNTIF(INDIRECT("Z"&(ROW()+1-$A28&"S"&COLUMN()-5)&":Z"&(ROW())&"S"&COLUMN()-5,0),G28)=1),"X",IF(AND(COUNTIF(INDIRECT("Z"&(ROW()+1-$A28&"S"&COLUMN()-5)&":Z"&(ROW()+AnzSp-$A28)&"S"&COLUMN()-5,0),">0")=AnzSp,INDIRECT("Z"&(ROW()+AnzSp+1-$A28)&"S6",0)>0,G28=LARGE(INDIRECT("Z"&(ROW()+1-$A28&"S"&COLUMN()-5)&":Z"&(ROW()+AnzSp-$A28)&"S"&COLUMN()-5,0),1),COUNTIF(INDIRECT("Z"&(ROW()+1-$A28&"S"&COLUMN()-5)&":Z"&(ROW())&"S"&COLUMN()-5,0),G28)<3),"X",IF(AND(COUNTIF(INDIRECT("Z"&(ROW()+1-$A28&"S"&COLUMN()-5)&":Z"&(ROW()+AnzSp-$A28)&"S"&COLUMN()-5,0),">0")=AnzSp,INDIRECT("Z"&(ROW()+AnzSp+1-$A28)&"S6",0)>0,G28=LARGE(INDIRECT("Z"&(ROW()+1-$A28&"S"&COLUMN()-5)&":Z"&(ROW()+AnzSp-$A28)&"S"&COLUMN()-5,0),2),COUNTIF(INDIRECT("Z"&(ROW()+1-$A28&"S"&COLUMN()-5)&":Z"&(ROW())&"S"&COLUMN()-5,0),G28)=1),"X",""))),"") ->  | M28: =IF(H28>0,IF(AND(COUNTIF(INDIRECT("Z"&(ROW()+1-$A28&"S"&COLUMN()-5)&":Z"&(ROW()+AnzSp-$A28)&"S"&COLUMN()-5,0),">0")=AnzSp-1,H28=LARGE(INDIRECT("Z"&(ROW()+1-$A28&"S"&COLUMN()-5)&":Z"&(ROW()+AnzSp-$A28)&"S"&COLUMN()-5,0),1),COUNTIF(INDIRECT("Z"&(ROW()+1-$A28&"S"&COLUMN()-5)&":Z"&(ROW())&"S"&COLUMN()-5,0),H28)=1),"X",IF(AND(COUNTIF(INDIRECT("Z"&(ROW()+1-$A28&"S"&COLUMN()-5)&":Z"&(ROW()+AnzSp-$A28)&"S"&COLUMN()-5,0),">0")=AnzSp,INDIRECT("Z"&(ROW()+AnzSp+1-$A28)&"S6",0)>0,H28=LARGE(INDIRECT("Z"&(ROW()+1-$A28&"S"&COLUMN()-5)&":Z"&(ROW()+AnzSp-$A28)&"S"&COLUMN()-5,0),1),COUNTIF(INDIRECT("Z"&(ROW()+1-$A28&"S"&COLUMN()-5)&":Z"&(ROW())&"S"&COLUMN()-5,0),H28)<3),"X",IF(AND(COUNTIF(INDIRECT("Z"&(ROW()+1-$A28&"S"&COLUMN()-5)&":Z"&(ROW()+AnzSp-$A28)&"S"&COLUMN()-5,0),">0")=AnzSp,INDIRECT("Z"&(ROW()+AnzSp+1-$A28)&"S6",0)>0,H28=LARGE(INDIRECT("Z"&(ROW()+1-$A28&"S"&COLUMN()-5)&":Z"&(ROW()+AnzSp-$A28)&"S"&COLUMN()-5,0),2),COUNTIF(INDIRECT("Z"&(ROW()+1-$A28&"S"&COLUMN()-5)&":Z"&(ROW())&"S"&COLUMN()-5,0),H28)=1),"X",""))),"") -> X | N28: =IF(I28>0,IF(AND(COUNTIF(INDIRECT("Z"&(ROW()+1-$A28&"S"&COLUMN()-5)&":Z"&(ROW()+AnzSp-$A28)&"S"&COLUMN()-5,0),">0")=AnzSp-1,I28=LARGE(INDIRECT("Z"&(ROW()+1-$A28&"S"&COLUMN()-5)&":Z"&(ROW()+AnzSp-$A28)&"S"&COLUMN()-5,0),1),COUNTIF(INDIRECT("Z"&(ROW()+1-$A28&"S"&COLUMN()-5)&":Z"&(ROW())&"S"&COLUMN()-5,0),I28)=1),"X",IF(AND(COUNTIF(INDIRECT("Z"&(ROW()+1-$A28&"S"&COLUMN()-5)&":Z"&(ROW()+AnzSp-$A28)&"S"&COLUMN()-5,0),">0")=AnzSp,INDIRECT("Z"&(ROW()+AnzSp+1-$A28)&"S6",0)>0,I28=LARGE(INDIRECT("Z"&(ROW()+1-$A28&"S"&COLUMN()-5)&":Z"&(ROW()+AnzSp-$A28)&"S"&COLUMN()-5,0),1),COUNTIF(INDIRECT("Z"&(ROW()+1-$A28&"S"&COLUMN()-5)&":Z"&(ROW())&"S"&COLUMN()-5,0),I28)<3),"X",IF(AND(COUNTIF(INDIRECT("Z"&(ROW()+1-$A28&"S"&COLUMN()-5)&":Z"&(ROW()+AnzSp-$A28)&"S"&COLUMN()-5,0),">0")=AnzSp,INDIRECT("Z"&(ROW()+AnzSp+1-$A28)&"S6",0)>0,I28=LARGE(INDIRECT("Z"&(ROW()+1-$A28&"S"&COLUMN()-5)&":Z"&(ROW()+AnzSp-$A28)&"S"&COLUMN()-5,0),2),COUNTIF(INDIRECT("Z"&(ROW()+1-$A28&"S"&COLUMN()-5)&":Z"&(ROW())&"S"&COLUMN()-5,0),I28)=1),"X",""))),"") ->  | O28: =IF(J28>0,IF(AND(COUNTIF(INDIRECT("Z"&(ROW()+1-$A28&"S"&COLUMN()-5)&":Z"&(ROW()+AnzSp-$A28)&"S"&COLUMN()-5,0),">0")=AnzSp-1,J28=LARGE(INDIRECT("Z"&(ROW()+1-$A28&"S"&COLUMN()-5)&":Z"&(ROW()+AnzSp-$A28)&"S"&COLUMN()-5,0),1),COUNTIF(INDIRECT("Z"&(ROW()+1-$A28&"S"&COLUMN()-5)&":Z"&(ROW())&"S"&COLUMN()-5,0),J28)=1),"X",IF(AND(COUNTIF(INDIRECT("Z"&(ROW()+1-$A28&"S"&COLUMN()-5)&":Z"&(ROW()+AnzSp-$A28)&"S"&COLUMN()-5,0),">0")=AnzSp,INDIRECT("Z"&(ROW()+AnzSp+1-$A28)&"S6",0)>0,J28=LARGE(INDIRECT("Z"&(ROW()+1-$A28&"S"&COLUMN()-5)&":Z"&(ROW()+AnzSp-$A28)&"S"&COLUMN()-5,0),1),COUNTIF(INDIRECT("Z"&(ROW()+1-$A28&"S"&COLUMN()-5)&":Z"&(ROW())&"S"&COLUMN()-5,0),J28)<3),"X",IF(AND(COUNTIF(INDIRECT("Z"&(ROW()+1-$A28&"S"&COLUMN()-5)&":Z"&(ROW()+AnzSp-$A28)&"S"&COLUMN()-5,0),">0")=AnzSp,INDIRECT("Z"&(ROW()+AnzSp+1-$A28)&"S6",0)>0,J28=LARGE(INDIRECT("Z"&(ROW()+1-$A28&"S"&COLUMN()-5)&":Z"&(ROW()+AnzSp-$A28)&"S"&COLUMN()-5,0),2),COUNTIF(INDIRECT("Z"&(ROW()+1-$A28&"S"&COLUMN()-5)&":Z"&(ROW())&"S"&COLUMN()-5,0),J28)=1),"X",""))),"") ->  | P28: 112
A29: 4 | B29: Prediger | C29: Lars | E29: 66608 | F29: H | G29: =IF(ISERROR(VLOOKUP($E29,Ergebnisse,COLUMN()-4,0)),0,VLOOKUP($E29,Ergebnisse,COLUMN()-4,0)) -> 24 | H29: =IF(ISERROR(VLOOKUP($E29,Ergebnisse,COLUMN()-4,0)),0,VLOOKUP($E29,Ergebnisse,COLUMN()-4,0)) -> 23 | I29: =IF(ISERROR(VLOOKUP($E29,Ergebnisse,COLUMN()-4,0)),0,VLOOKUP($E29,Ergebnisse,COLUMN()-4,0)) -> 28 | J29: =IF(ISERROR(VLOOKUP($E29,Ergebnisse,COLUMN()-4,0)),0,VLOOKUP($E29,Ergebnisse,COLUMN()-4,0)) -> 28 | K29: 103 | L29: =IF(G29>0,IF(AND(COUNTIF(INDIRECT("Z"&(ROW()+1-$A29&"S"&COLUMN()-5)&":Z"&(ROW()+AnzSp-$A29)&"S"&COLUMN()-5,0),">0")=AnzSp-1,G29=LARGE(INDIRECT("Z"&(ROW()+1-$A29&"S"&COLUMN()-5)&":Z"&(ROW()+AnzSp-$A29)&"S"&COLUMN()-5,0),1),COUNTIF(INDIRECT("Z"&(ROW()+1-$A29&"S"&COLUMN()-5)&":Z"&(ROW())&"S"&COLUMN()-5,0),G29)=1),"X",IF(AND(COUNTIF(INDIRECT("Z"&(ROW()+1-$A29&"S"&COLUMN()-5)&":Z"&(ROW()+AnzSp-$A29)&"S"&COLUMN()-5,0),">0")=AnzSp,INDIRECT("Z"&(ROW()+AnzSp+1-$A29)&"S6",0)>0,G29=LARGE(INDIRECT("Z"&(ROW()+1-$A29&"S"&COLUMN()-5)&":Z"&(ROW()+AnzSp-$A29)&"S"&COLUMN()-5,0),1),COUNTIF(INDIRECT("Z"&(ROW()+1-$A29&"S"&COLUMN()-5)&":Z"&(ROW())&"S"&COLUMN()-5,0),G29)<3),"X",IF(AND(COUNTIF(INDIRECT("Z"&(ROW()+1-$A29&"S"&COLUMN()-5)&":Z"&(ROW()+AnzSp-$A29)&"S"&COLUMN()-5,0),">0")=AnzSp,INDIRECT("Z"&(ROW()+AnzSp+1-$A29)&"S6",0)>0,G29=LARGE(INDIRECT("Z"&(ROW()+1-$A29&"S"&COLUMN()-5)&":Z"&(ROW()+AnzSp-$A29)&"S"&COLUMN()-5,0),2),COUNTIF(INDIRECT("Z"&(ROW()+1-$A29&"S"&COLUMN()-5)&":Z"&(ROW())&"S"&COLUMN()-5,0),G29)=1),"X",""))),"") ->  | M29: =IF(H29>0,IF(AND(COUNTIF(INDIRECT("Z"&(ROW()+1-$A29&"S"&COLUMN()-5)&":Z"&(ROW()+AnzSp-$A29)&"S"&COLUMN()-5,0),">0")=AnzSp-1,H29=LARGE(INDIRECT("Z"&(ROW()+1-$A29&"S"&COLUMN()-5)&":Z"&(ROW()+AnzSp-$A29)&"S"&COLUMN()-5,0),1),COUNTIF(INDIRECT("Z"&(ROW()+1-$A29&"S"&COLUMN()-5)&":Z"&(ROW())&"S"&COLUMN()-5,0),H29)=1),"X",IF(AND(COUNTIF(INDIRECT("Z"&(ROW()+1-$A29&"S"&COLUMN()-5)&":Z"&(ROW()+AnzSp-$A29)&"S"&COLUMN()-5,0),">0")=AnzSp,INDIRECT("Z"&(ROW()+AnzSp+1-$A29)&"S6",0)>0,H29=LARGE(INDIRECT("Z"&(ROW()+1-$A29&"S"&COLUMN()-5)&":Z"&(ROW()+AnzSp-$A29)&"S"&COLUMN()-5,0),1),COUNTIF(INDIRECT("Z"&(ROW()+1-$A29&"S"&COLUMN()-5)&":Z"&(ROW())&"S"&COLUMN()-5,0),H29)<3),"X",IF(AND(COUNTIF(INDIRECT("Z"&(ROW()+1-$A29&"S"&COLUMN()-5)&":Z"&(ROW()+AnzSp-$A29)&"S"&COLUMN()-5,0),">0")=AnzSp,INDIRECT("Z"&(ROW()+AnzSp+1-$A29)&"S6",0)>0,H29=LARGE(INDIRECT("Z"&(ROW()+1-$A29&"S"&COLUMN()-5)&":Z"&(ROW()+AnzSp-$A29)&"S"&COLUMN()-5,0),2),COUNTIF(INDIRECT("Z"&(ROW()+1-$A29&"S"&COLUMN()-5)&":Z"&(ROW())&"S"&COLUMN()-5,0),H29)=1),"X",""))),"") ->  | N29: =IF(I29>0,IF(AND(COUNTIF(INDIRECT("Z"&(ROW()+1-$A29&"S"&COLUMN()-5)&":Z"&(ROW()+AnzSp-$A29)&"S"&COLUMN()-5,0),">0")=AnzSp-1,I29=LARGE(INDIRECT("Z"&(ROW()+1-$A29&"S"&COLUMN()-5)&":Z"&(ROW()+AnzSp-$A29)&"S"&COLUMN()-5,0),1),COUNTIF(INDIRECT("Z"&(ROW()+1-$A29&"S"&COLUMN()-5)&":Z"&(ROW())&"S"&COLUMN()-5,0),I29)=1),"X",IF(AND(COUNTIF(INDIRECT("Z"&(ROW()+1-$A29&"S"&COLUMN()-5)&":Z"&(ROW()+AnzSp-$A29)&"S"&COLUMN()-5,0),">0")=AnzSp,INDIRECT("Z"&(ROW()+AnzSp+1-$A29)&"S6",0)>0,I29=LARGE(INDIRECT("Z"&(ROW()+1-$A29&"S"&COLUMN()-5)&":Z"&(ROW()+AnzSp-$A29)&"S"&COLUMN()-5,0),1),COUNTIF(INDIRECT("Z"&(ROW()+1-$A29&"S"&COLUMN()-5)&":Z"&(ROW())&"S"&COLUMN()-5,0),I29)<3),"X",IF(AND(COUNTIF(INDIRECT("Z"&(ROW()+1-$A29&"S"&COLUMN()-5)&":Z"&(ROW()+AnzSp-$A29)&"S"&COLUMN()-5,0),">0")=AnzSp,INDIRECT("Z"&(ROW()+AnzSp+1-$A29)&"S6",0)>0,I29=LARGE(INDIRECT("Z"&(ROW()+1-$A29&"S"&COLUMN()-5)&":Z"&(ROW()+AnzSp-$A29)&"S"&COLUMN()-5,0),2),COUNTIF(INDIRECT("Z"&(ROW()+1-$A29&"S"&COLUMN()-5)&":Z"&(ROW())&"S"&COLUMN()-5,0),I29)=1),"X",""))),"") ->  | O29: =IF(J29>0,IF(AND(COUNTIF(INDIRECT("Z"&(ROW()+1-$A29&"S"&COLUMN()-5)&":Z"&(ROW()+AnzSp-$A29)&"S"&COLUMN()-5,0),">0")=AnzSp-1,J29=LARGE(INDIRECT("Z"&(ROW()+1-$A29&"S"&COLUMN()-5)&":Z"&(ROW()+AnzSp-$A29)&"S"&COLUMN()-5,0),1),COUNTIF(INDIRECT("Z"&(ROW()+1-$A29&"S"&COLUMN()-5)&":Z"&(ROW())&"S"&COLUMN()-5,0),J29)=1),"X",IF(AND(COUNTIF(INDIRECT("Z"&(ROW()+1-$A29&"S"&COLUMN()-5)&":Z"&(ROW()+AnzSp-$A29)&"S"&COLUMN()-5,0),">0")=AnzSp,INDIRECT("Z"&(ROW()+AnzSp+1-$A29)&"S6",0)>0,J29=LARGE(INDIRECT("Z"&(ROW()+1-$A29&"S"&COLUMN()-5)&":Z"&(ROW()+AnzSp-$A29)&"S"&COLUMN()-5,0),1),COUNTIF(INDIRECT("Z"&(ROW()+1-$A29&"S"&COLUMN()-5)&":Z"&(ROW())&"S"&COLUMN()-5,0),J29)<3),"X",IF(AND(COUNTIF(INDIRECT("Z"&(ROW()+1-$A29&"S"&COLUMN()-5)&":Z"&(ROW()+AnzSp-$A29)&"S"&COLUMN()-5,0),">0")=AnzSp,INDIRECT("Z"&(ROW()+AnzSp+1-$A29)&"S6",0)>0,J29=LARGE(INDIRECT("Z"&(ROW()+1-$A29&"S"&COLUMN()-5)&":Z"&(ROW()+AnzSp-$A29)&"S"&COLUMN()-5,0),2),COUNTIF(INDIRECT("Z"&(ROW()+1-$A29&"S"&COLUMN()-5)&":Z"&(ROW())&"S"&COLUMN()-5,0),J29)=1),"X",""))),"") ->  | P29: 103
A30: 5 | B30: Gaute | C30: Wolfgang | E30: 34092 | F30: Sm 1 | G30: =IF(ISERROR(VLOOKUP($E30,Ergebnisse,COLUMN()-4,0)),0,VLOOKUP($E30,Ergebnisse,COLUMN()-4,0)) -> 22 | H30: =IF(ISERROR(VLOOKUP($E30,Ergebnisse,COLUMN()-4,0)),0,VLOOKUP($E30,Ergebnisse,COLUMN()-4,0)) -> 26 | I30: =IF(ISERROR(VLOOKUP($E30,Ergebnisse,COLUMN()-4,0)),0,VLOOKUP($E30,Ergebnisse,COLUMN()-4,0)) -> 24 | J30: =IF(ISERROR(VLOOKUP($E30,Ergebnisse,COLUMN()-4,0)),0,VLOOKUP($E30,Ergebnisse,COLUMN()-4,0)) -> 29 | K30: 101 | L30: =IF(G30>0,IF(AND(COUNTIF(INDIRECT("Z"&(ROW()+1-$A30&"S"&COLUMN()-5)&":Z"&(ROW()+AnzSp-$A30)&"S"&COLUMN()-5,0),">0")=AnzSp-1,G30=LARGE(INDIRECT("Z"&(ROW()+1-$A30&"S"&COLUMN()-5)&":Z"&(ROW()+AnzSp-$A30)&"S"&COLUMN()-5,0),1),COUNTIF(INDIRECT("Z"&(ROW()+1-$A30&"S"&COLUMN()-5)&":Z"&(ROW())&"S"&COLUMN()-5,0),G30)=1),"X",IF(AND(COUNTIF(INDIRECT("Z"&(ROW()+1-$A30&"S"&COLUMN()-5)&":Z"&(ROW()+AnzSp-$A30)&"S"&COLUMN()-5,0),">0")=AnzSp,INDIRECT("Z"&(ROW()+AnzSp+1-$A30)&"S6",0)>0,G30=LARGE(INDIRECT("Z"&(ROW()+1-$A30&"S"&COLUMN()-5)&":Z"&(ROW()+AnzSp-$A30)&"S"&COLUMN()-5,0),1),COUNTIF(INDIRECT("Z"&(ROW()+1-$A30&"S"&COLUMN()-5)&":Z"&(ROW())&"S"&COLUMN()-5,0),G30)<3),"X",IF(AND(COUNTIF(INDIRECT("Z"&(ROW()+1-$A30&"S"&COLUMN()-5)&":Z"&(ROW()+AnzSp-$A30)&"S"&COLUMN()-5,0),">0")=AnzSp,INDIRECT("Z"&(ROW()+AnzSp+1-$A30)&"S6",0)>0,G30=LARGE(INDIRECT("Z"&(ROW()+1-$A30&"S"&COLUMN()-5)&":Z"&(ROW()+AnzSp-$A30)&"S"&COLUMN()-5,0),2),COUNTIF(INDIRECT("Z"&(ROW()+1-$A30&"S"&COLUMN()-5)&":Z"&(ROW())&"S"&COLUMN()-5,0),G30)=1),"X",""))),"") ->  | M30: =IF(H30>0,IF(AND(COUNTIF(INDIRECT("Z"&(ROW()+1-$A30&"S"&COLUMN()-5)&":Z"&(ROW()+AnzSp-$A30)&"S"&COLUMN()-5,0),">0")=AnzSp-1,H30=LARGE(INDIRECT("Z"&(ROW()+1-$A30&"S"&COLUMN()-5)&":Z"&(ROW()+AnzSp-$A30)&"S"&COLUMN()-5,0),1),COUNTIF(INDIRECT("Z"&(ROW()+1-$A30&"S"&COLUMN()-5)&":Z"&(ROW())&"S"&COLUMN()-5,0),H30)=1),"X",IF(AND(COUNTIF(INDIRECT("Z"&(ROW()+1-$A30&"S"&COLUMN()-5)&":Z"&(ROW()+AnzSp-$A30)&"S"&COLUMN()-5,0),">0")=AnzSp,INDIRECT("Z"&(ROW()+AnzSp+1-$A30)&"S6",0)>0,H30=LARGE(INDIRECT("Z"&(ROW()+1-$A30&"S"&COLUMN()-5)&":Z"&(ROW()+AnzSp-$A30)&"S"&COLUMN()-5,0),1),COUNTIF(INDIRECT("Z"&(ROW()+1-$A30&"S"&COLUMN()-5)&":Z"&(ROW())&"S"&COLUMN()-5,0),H30)<3),"X",IF(AND(COUNTIF(INDIRECT("Z"&(ROW()+1-$A30&"S"&COLUMN()-5)&":Z"&(ROW()+AnzSp-$A30)&"S"&COLUMN()-5,0),">0")=AnzSp,INDIRECT("Z"&(ROW()+AnzSp+1-$A30)&"S6",0)>0,H30=LARGE(INDIRECT("Z"&(ROW()+1-$A30&"S"&COLUMN()-5)&":Z"&(ROW()+AnzSp-$A30)&"S"&COLUMN()-5,0),2),COUNTIF(INDIRECT("Z"&(ROW()+1-$A30&"S"&COLUMN()-5)&":Z"&(ROW())&"S"&COLUMN()-5,0),H30)=1),"X",""))),"") ->  | N30: =IF(I30>0,IF(AND(COUNTIF(INDIRECT("Z"&(ROW()+1-$A30&"S"&COLUMN()-5)&":Z"&(ROW()+AnzSp-$A30)&"S"&COLUMN()-5,0),">0")=AnzSp-1,I30=LARGE(INDIRECT("Z"&(ROW()+1-$A30&"S"&COLUMN()-5)&":Z"&(ROW()+AnzSp-$A30)&"S"&COLUMN()-5,0),1),COUNTIF(INDIRECT("Z"&(ROW()+1-$A30&"S"&COLUMN()-5)&":Z"&(ROW())&"S"&COLUMN()-5,0),I30)=1),"X",IF(AND(COUNTIF(INDIRECT("Z"&(ROW()+1-$A30&"S"&COLUMN()-5)&":Z"&(ROW()+AnzSp-$A30)&"S"&COLUMN()-5,0),">0")=AnzSp,INDIRECT("Z"&(ROW()+AnzSp+1-$A30)&"S6",0)>0,I30=LARGE(INDIRECT("Z"&(ROW()+1-$A30&"S"&COLUMN()-5)&":Z"&(ROW()+AnzSp-$A30)&"S"&COLUMN()-5,0),1),COUNTIF(INDIRECT("Z"&(ROW()+1-$A30&"S"&COLUMN()-5)&":Z"&(ROW())&"S"&COLUMN()-5,0),I30)<3),"X",IF(AND(COUNTIF(INDIRECT("Z"&(ROW()+1-$A30&"S"&COLUMN()-5)&":Z"&(ROW()+AnzSp-$A30)&"S"&COLUMN()-5,0),">0")=AnzSp,INDIRECT("Z"&(ROW()+AnzSp+1-$A30)&"S6",0)>0,I30=LARGE(INDIRECT("Z"&(ROW()+1-$A30&"S"&COLUMN()-5)&":Z"&(ROW()+AnzSp-$A30)&"S"&COLUMN()-5,0),2),COUNTIF(INDIRECT("Z"&(ROW()+1-$A30&"S"&COLUMN()-5)&":Z"&(ROW())&"S"&COLUMN()-5,0),I30)=1),"X",""))),"") ->  | O30: =IF(J30>0,IF(AND(COUNTIF(INDIRECT("Z"&(ROW()+1-$A30&"S"&COLUMN()-5)&":Z"&(ROW()+AnzSp-$A30)&"S"&COLUMN()-5,0),">0")=AnzSp-1,J30=LARGE(INDIRECT("Z"&(ROW()+1-$A30&"S"&COLUMN()-5)&":Z"&(ROW()+AnzSp-$A30)&"S"&COLUMN()-5,0),1),COUNTIF(INDIRECT("Z"&(ROW()+1-$A30&"S"&COLUMN()-5)&":Z"&(ROW())&"S"&COLUMN()-5,0),J30)=1),"X",IF(AND(COUNTIF(INDIRECT("Z"&(ROW()+1-$A30&"S"&COLUMN()-5)&":Z"&(ROW()+AnzSp-$A30)&"S"&COLUMN()-5,0),">0")=AnzSp,INDIRECT("Z"&(ROW()+AnzSp+1-$A30)&"S6",0)>0,J30=LARGE(INDIRECT("Z"&(ROW()+1-$A30&"S"&COLUMN()-5)&":Z"&(ROW()+AnzSp-$A30)&"S"&COLUMN()-5,0),1),COUNTIF(INDIRECT("Z"&(ROW()+1-$A30&"S"&COLUMN()-5)&":Z"&(ROW())&"S"&COLUMN()-5,0),J30)<3),"X",IF(AND(COUNTIF(INDIRECT("Z"&(ROW()+1-$A30&"S"&COLUMN()-5)&":Z"&(ROW()+AnzSp-$A30)&"S"&COLUMN()-5,0),">0")=AnzSp,INDIRECT("Z"&(ROW()+AnzSp+1-$A30)&"S6",0)>0,J30=LARGE(INDIRECT("Z"&(ROW()+1-$A30&"S"&COLUMN()-5)&":Z"&(ROW()+AnzSp-$A30)&"S"&COLUMN()-5,0),2),COUNTIF(INDIRECT("Z"&(ROW()+1-$A30&"S"&COLUMN()-5)&":Z"&(ROW())&"S"&COLUMN()-5,0),J30)=1),"X",""))),"") ->  | P30: 101
A31: 6 | G31: =IF(ISERROR(VLOOKUP($E31,Ergebnisse,COLUMN()-4,0)),0,VLOOKUP($E31,Ergebnisse,COLUMN()-4,0)) -> 0 | H31: =IF(ISERROR(VLOOKUP($E31,Ergebnisse,COLUMN()-4,0)),0,VLOOKUP($E31,Ergebnisse,COLUMN()-4,0)) -> 0 | I31: =IF(ISERROR(VLOOKUP($E31,Ergebnisse,COLUMN()-4,0)),0,VLOOKUP($E31,Ergebnisse,COLUMN()-4,0)) -> 0 | J31: =IF(ISERROR(VLOOKUP($E31,Ergebnisse,COLUMN()-4,0)),0,VLOOKUP($E31,Ergebnisse,COLUMN()-4,0)) -> 0 | K31: 0 | L31: =IF(G31>0,IF(AND(COUNTIF(INDIRECT("Z"&(ROW()+1-$A31&"S"&COLUMN()-5)&":Z"&(ROW()+AnzSp-$A31)&"S"&COLUMN()-5,0),">0")=AnzSp-1,G31=LARGE(INDIRECT("Z"&(ROW()+1-$A31&"S"&COLUMN()-5)&":Z"&(ROW()+AnzSp-$A31)&"S"&COLUMN()-5,0),1),COUNTIF(INDIRECT("Z"&(ROW()+1-$A31&"S"&COLUMN()-5)&":Z"&(ROW())&"S"&COLUMN()-5,0),G31)=1),"X",IF(AND(COUNTIF(INDIRECT("Z"&(ROW()+1-$A31&"S"&COLUMN()-5)&":Z"&(ROW()+AnzSp-$A31)&"S"&COLUMN()-5,0),">0")=AnzSp,INDIRECT("Z"&(ROW()+AnzSp+1-$A31)&"S6",0)>0,G31=LARGE(INDIRECT("Z"&(ROW()+1-$A31&"S"&COLUMN()-5)&":Z"&(ROW()+AnzSp-$A31)&"S"&COLUMN()-5,0),1),COUNTIF(INDIRECT("Z"&(ROW()+1-$A31&"S"&COLUMN()-5)&":Z"&(ROW())&"S"&COLUMN()-5,0),G31)<3),"X",IF(AND(COUNTIF(INDIRECT("Z"&(ROW()+1-$A31&"S"&COLUMN()-5)&":Z"&(ROW()+AnzSp-$A31)&"S"&COLUMN()-5,0),">0")=AnzSp,INDIRECT("Z"&(ROW()+AnzSp+1-$A31)&"S6",0)>0,G31=LARGE(INDIRECT("Z"&(ROW()+1-$A31&"S"&COLUMN()-5)&":Z"&(ROW()+AnzSp-$A31)&"S"&COLUMN()-5,0),2),COUNTIF(INDIRECT("Z"&(ROW()+1-$A31&"S"&COLUMN()-5)&":Z"&(ROW())&"S"&COLUMN()-5,0),G31)=1),"X",""))),"") ->  | M31: =IF(H31>0,IF(AND(COUNTIF(INDIRECT("Z"&(ROW()+1-$A31&"S"&COLUMN()-5)&":Z"&(ROW()+AnzSp-$A31)&"S"&COLUMN()-5,0),">0")=AnzSp-1,H31=LARGE(INDIRECT("Z"&(ROW()+1-$A31&"S"&COLUMN()-5)&":Z"&(ROW()+AnzSp-$A31)&"S"&COLUMN()-5,0),1),COUNTIF(INDIRECT("Z"&(ROW()+1-$A31&"S"&COLUMN()-5)&":Z"&(ROW())&"S"&COLUMN()-5,0),H31)=1),"X",IF(AND(COUNTIF(INDIRECT("Z"&(ROW()+1-$A31&"S"&COLUMN()-5)&":Z"&(ROW()+AnzSp-$A31)&"S"&COLUMN()-5,0),">0")=AnzSp,INDIRECT("Z"&(ROW()+AnzSp+1-$A31)&"S6",0)>0,H31=LARGE(INDIRECT("Z"&(ROW()+1-$A31&"S"&COLUMN()-5)&":Z"&(ROW()+AnzSp-$A31)&"S"&COLUMN()-5,0),1),COUNTIF(INDIRECT("Z"&(ROW()+1-$A31&"S"&COLUMN()-5)&":Z"&(ROW())&"S"&COLUMN()-5,0),H31)<3),"X",IF(AND(COUNTIF(INDIRECT("Z"&(ROW()+1-$A31&"S"&COLUMN()-5)&":Z"&(ROW()+AnzSp-$A31)&"S"&COLUMN()-5,0),">0")=AnzSp,INDIRECT("Z"&(ROW()+AnzSp+1-$A31)&"S6",0)>0,H31=LARGE(INDIRECT("Z"&(ROW()+1-$A31&"S"&COLUMN()-5)&":Z"&(ROW()+AnzSp-$A31)&"S"&COLUMN()-5,0),2),COUNTIF(INDIRECT("Z"&(ROW()+1-$A31&"S"&COLUMN()-5)&":Z"&(ROW())&"S"&COLUMN()-5,0),H31)=1),"X",""))),"") ->  | N31: =IF(I31>0,IF(AND(COUNTIF(INDIRECT("Z"&(ROW()+1-$A31&"S"&COLUMN()-5)&":Z"&(ROW()+AnzSp-$A31)&"S"&COLUMN()-5,0),">0")=AnzSp-1,I31=LARGE(INDIRECT("Z"&(ROW()+1-$A31&"S"&COLUMN()-5)&":Z"&(ROW()+AnzSp-$A31)&"S"&COLUMN()-5,0),1),COUNTIF(INDIRECT("Z"&(ROW()+1-$A31&"S"&COLUMN()-5)&":Z"&(ROW())&"S"&COLUMN()-5,0),I31)=1),"X",IF(AND(COUNTIF(INDIRECT("Z"&(ROW()+1-$A31&"S"&COLUMN()-5)&":Z"&(ROW()+AnzSp-$A31)&"S"&COLUMN()-5,0),">0")=AnzSp,INDIRECT("Z"&(ROW()+AnzSp+1-$A31)&"S6",0)>0,I31=LARGE(INDIRECT("Z"&(ROW()+1-$A31&"S"&COLUMN()-5)&":Z"&(ROW()+AnzSp-$A31)&"S"&COLUMN()-5,0),1),COUNTIF(INDIRECT("Z"&(ROW()+1-$A31&"S"&COLUMN()-5)&":Z"&(ROW())&"S"&COLUMN()-5,0),I31)<3),"X",IF(AND(COUNTIF(INDIRECT("Z"&(ROW()+1-$A31&"S"&COLUMN()-5)&":Z"&(ROW()+AnzSp-$A31)&"S"&COLUMN()-5,0),">0")=AnzSp,INDIRECT("Z"&(ROW()+AnzSp+1-$A31)&"S6",0)>0,I31=LARGE(INDIRECT("Z"&(ROW()+1-$A31&"S"&COLUMN()-5)&":Z"&(ROW()+AnzSp-$A31)&"S"&COLUMN()-5,0),2),COUNTIF(INDIRECT("Z"&(ROW()+1-$A31&"S"&COLUMN()-5)&":Z"&(ROW())&"S"&COLUMN()-5,0),I31)=1),"X",""))),"") ->  | O31: =IF(J31>0,IF(AND(COUNTIF(INDIRECT("Z"&(ROW()+1-$A31&"S"&COLUMN()-5)&":Z"&(ROW()+AnzSp-$A31)&"S"&COLUMN()-5,0),">0")=AnzSp-1,J31=LARGE(INDIRECT("Z"&(ROW()+1-$A31&"S"&COLUMN()-5)&":Z"&(ROW()+AnzSp-$A31)&"S"&COLUMN()-5,0),1),COUNTIF(INDIRECT("Z"&(ROW()+1-$A31&"S"&COLUMN()-5)&":Z"&(ROW())&"S"&COLUMN()-5,0),J31)=1),"X",IF(AND(COUNTIF(INDIRECT("Z"&(ROW()+1-$A31&"S"&COLUMN()-5)&":Z"&(ROW()+AnzSp-$A31)&"S"&COLUMN()-5,0),">0")=AnzSp,INDIRECT("Z"&(ROW()+AnzSp+1-$A31)&"S6",0)>0,J31=LARGE(INDIRECT("Z"&(ROW()+1-$A31&"S"&COLUMN()-5)&":Z"&(ROW()+AnzSp-$A31)&"S"&COLUMN()-5,0),1),COUNTIF(INDIRECT("Z"&(ROW()+1-$A31&"S"&COLUMN()-5)&":Z"&(ROW())&"S"&COLUMN()-5,0),J31)<3),"X",IF(AND(COUNTIF(INDIRECT("Z"&(ROW()+1-$A31&"S"&COLUMN()-5)&":Z"&(ROW()+AnzSp-$A31)&"S"&COLUMN()-5,0),">0")=AnzSp,INDIRECT("Z"&(ROW()+AnzSp+1-$A31)&"S6",0)>0,J31=LARGE(INDIRECT("Z"&(ROW()+1-$A31&"S"&COLUMN()-5)&":Z"&(ROW()+AnzSp-$A31)&"S"&COLUMN()-5,0),2),COUNTIF(INDIRECT("Z"&(ROW()+1-$A31&"S"&COLUMN()-5)&":Z"&(ROW())&"S"&COLUMN()-5,0),J31)=1),"X",""))),"") ->  | P31: 0
B32: =IF(COUNT(INDIRECT("E"&ROW()-AnzSp&":E"&ROW()-1))<=AnzSp-2,"Kein Streicher",IF(COUNT(INDIRECT("E"&ROW()-AnzSp&":E"&ROW()-1))<=AnzSp-1,"1 Streicher",IF(AND(COUNT(INDIRECT("E"&ROW()-AnzSp&":E"&ROW()-1))<=AnzSp,F32>0),"2 Streicher","Spieler Nr. "&AnzSp&" löschen und als Einzelspieler erfassen!"))) -> 1 Streicher | F32: =COUNTIF(INDIRECT("F"&(ROW()-AnzSp)&":F"&ROW()-1),"Jw")+COUNTIF(INDIRECT("F"&ROW()-AnzSp&":F"&ROW()-1),"Jm")+COUNTIF(INDIRECT("F"&ROW()-AnzSp&":F"&ROW()-1),"Schw")+COUNTIF(INDIRECT("F"&ROW()-AnzSp&":F"&ROW()-1),"Schm") -> 0 | G32: =IF(COUNTIF(INDIRECT("G"&ROW()-AnzSp&":G"&ROW()-1),">0")=AnzSp-2,SUM(INDIRECT("G"&ROW()-AnzSp&":G"&ROW()-1)),IF(COUNTIF(INDIRECT("G"&ROW()-AnzSp&":G"&ROW()-1),">0")=AnzSp-1,SUM(INDIRECT("G"&ROW()-AnzSp&":G"&ROW()-1))-LARGE(INDIRECT("G"&ROW()-AnzSp&":G"&ROW()-1),1),IF(COUNTIF(INDIRECT("G"&ROW()-AnzSp&":G"&ROW()-1),">0")=AnzSp,SUM(INDIRECT("G"&ROW()-AnzSp&":G"&ROW()-1))-LARGE(INDIRECT("G"&ROW()-AnzSp&":G"&ROW()-1),1)-LARGE(INDIRECT("G"&ROW()-AnzSp&":G"&ROW()-1),2),0))) -> 102 | H32: =IF(COUNTIF(INDIRECT("H"&ROW()-AnzSp&":H"&ROW()-1),">0")=AnzSp-2,SUM(INDIRECT("H"&ROW()-AnzSp&":H"&ROW()-1)),IF(COUNTIF(INDIRECT("H"&ROW()-AnzSp&":H"&ROW()-1),">0")=AnzSp-1,SUM(INDIRECT("H"&ROW()-AnzSp&":H"&ROW()-1))-LARGE(INDIRECT("H"&ROW()-AnzSp&":H"&ROW()-1),1),IF(COUNTIF(INDIRECT("H"&ROW()-AnzSp&":H"&ROW()-1),">0")=AnzSp,SUM(INDIRECT("H"&ROW()-AnzSp&":H"&ROW()-1))-LARGE(INDIRECT("H"&ROW()-AnzSp&":H"&ROW()-1),1)-LARGE(INDIRECT("H"&ROW()-AnzSp&":H"&ROW()-1),2),0))) -> 101 | I32: =IF(COUNTIF(INDIRECT("I"&ROW()-AnzSp&":I"&ROW()-1),">0")=AnzSp-2,SUM(INDIRECT("I"&ROW()-AnzSp&":I"&ROW()-1)),IF(COUNTIF(INDIRECT("I"&ROW()-AnzSp&":I"&ROW()-1),">0")=AnzSp-1,SUM(INDIRECT("I"&ROW()-AnzSp&":I"&ROW()-1))-LARGE(INDIRECT("I"&ROW()-AnzSp&":I"&ROW()-1),1),IF(COUNTIF(INDIRECT("I"&ROW()-AnzSp&":I"&ROW()-1),">0")=AnzSp,SUM(INDIRECT("I"&ROW()-AnzSp&":I"&ROW()-1))-LARGE(INDIRECT("I"&ROW()-AnzSp&":I"&ROW()-1),1)-LARGE(INDIRECT("I"&ROW()-AnzSp&":I"&ROW()-1),2),0))) -> 104 | J32: =IF(COUNTIF(INDIRECT("J"&ROW()-AnzSp&":J"&ROW()-1),">0")=AnzSp-2,SUM(INDIRECT("J"&ROW()-AnzSp&":J"&ROW()-1)),IF(COUNTIF(INDIRECT("J"&ROW()-AnzSp&":J"&ROW()-1),">0")=AnzSp-1,SUM(INDIRECT("J"&ROW()-AnzSp&":J"&ROW()-1))-LARGE(INDIRECT("J"&ROW()-AnzSp&":J"&ROW()-1),1),IF(COUNTIF(INDIRECT("J"&ROW()-AnzSp&":J"&ROW()-1),">0")=AnzSp,SUM(INDIRECT("J"&ROW()-AnzSp&":J"&ROW()-1))-LARGE(INDIRECT("J"&ROW()-AnzSp&":J"&ROW()-1),1)-LARGE(INDIRECT("J"&ROW()-AnzSp&":J"&ROW()-1),2),0))) -> 112 | K32: =SUM(G32:J32) -> 419
A34: 4 | B34: MC "Möve" Cuxhaven III | I34: Schnitt: | J34: =IF(COUNTIF(INDIRECT("G"&ROW()+2&":J"&ROW()+AnzSp+1),">0")>0,K42/(COUNTIF(INDIRECT("G"&ROW()+2&":J"&ROW()+AnzSp+1),">0")-COUNTIF(INDIRECT("L"&ROW()+2&":O"&ROW()+AnzSp+1),"X")),0) -> 26.4375
A35: Nr.: | B35: Nachname | C35: Vorname | E35: Sp.Nr. | F35: Kat. | G35: R1 | H35: R2 | I35: R3 | J35: R4 | K35: Wertung | P35: Gesamt
A36: 1 | B36: =IF(E36="","",IF(ISERROR(VLOOKUP(E36,Spieler,4,0)),"Falsche Nummer!",VLOOKUP(E36,Spieler,4,0))) -> Wendlandt | C36: =IF(ISERROR(VLOOKUP(E36,Spieler,3,0)),"",VLOOKUP(E36,Spieler,3,0)) -> Dieter | E36: 49256 | F36: =IF(ISERROR(VLOOKUP(E36,Spieler,2,0)),"",VLOOKUP(E36,Spieler,2,0)) -> Sm 1 | G36: =IF(ISERROR(VLOOKUP($E36,Ergebnisse,COLUMN()-4,0)),0,VLOOKUP($E36,Ergebnisse,COLUMN()-4,0)) -> 30 | H36: 29 | I36: 22 | J36: 26 | K36: =IF(L36="X",0,G36)+IF(M36="X",0,H36)+IF(N36="X",0,I36)+IF(O36="X",0,J36) -> 107 | L36: =IF(G36>0,IF(AND(COUNTIF(INDIRECT("Z"&(ROW()+1-$A36&"S"&COLUMN()-5)&":Z"&(ROW()+AnzSp-$A36)&"S"&COLUMN()-5,0),">0")=AnzSp-1,G36=LARGE(INDIRECT("Z"&(ROW()+1-$A36&"S"&COLUMN()-5)&":Z"&(ROW()+AnzSp-$A36)&"S"&COLUMN()-5,0),1),COUNTIF(INDIRECT("Z"&(ROW()+1-$A36&"S"&COLUMN()-5)&":Z"&(ROW())&"S"&COLUMN()-5,0),G36)=1),"X",IF(AND(COUNTIF(INDIRECT("Z"&(ROW()+1-$A36&"S"&COLUMN()-5)&":Z"&(ROW()+AnzSp-$A36)&"S"&COLUMN()-5,0),">0")=AnzSp,INDIRECT("Z"&(ROW()+AnzSp+1-$A36)&"S6",0)>0,G36=LARGE(INDIRECT("Z"&(ROW()+1-$A36&"S"&COLUMN()-5)&":Z"&(ROW()+AnzSp-$A36)&"S"&COLUMN()-5,0),1),COUNTIF(INDIRECT("Z"&(ROW()+1-$A36&"S"&COLUMN()-5)&":Z"&(ROW())&"S"&COLUMN()-5,0),G36)<3),"X",IF(AND(COUNTIF(INDIRECT("Z"&(ROW()+1-$A36&"S"&COLUMN()-5)&":Z"&(ROW()+AnzSp-$A36)&"S"&COLUMN()-5,0),">0")=AnzSp,INDIRECT("Z"&(ROW()+AnzSp+1-$A36)&"S6",0)>0,G36=LARGE(INDIRECT("Z"&(ROW()+1-$A36&"S"&COLUMN()-5)&":Z"&(ROW()+AnzSp-$A36)&"S"&COLUMN()-5,0),2),COUNTIF(INDIRECT("Z"&(ROW()+1-$A36&"S"&COLUMN()-5)&":Z"&(ROW())&"S"&COLUMN()-5,0),G36)=1),"X",""))),"") ->  | M36: =IF(H36>0,IF(AND(COUNTIF(INDIRECT("Z"&(ROW()+1-$A36&"S"&COLUMN()-5)&":Z"&(ROW()+AnzSp-$A36)&"S"&COLUMN()-5,0),">0")=AnzSp-1,H36=LARGE(INDIRECT("Z"&(ROW()+1-$A36&"S"&COLUMN()-5)&":Z"&(ROW()+AnzSp-$A36)&"S"&COLUMN()-5,0),1),COUNTIF(INDIRECT("Z"&(ROW()+1-$A36&"S"&COLUMN()-5)&":Z"&(ROW())&"S"&COLUMN()-5,0),H36)=1),"X",IF(AND(COUNTIF(INDIRECT("Z"&(ROW()+1-$A36&"S"&COLUMN()-5)&":Z"&(ROW()+AnzSp-$A36)&"S"&COLUMN()-5,0),">0")=AnzSp,INDIRECT("Z"&(ROW()+AnzSp+1-$A36)&"S6",0)>0,H36=LARGE(INDIRECT("Z"&(ROW()+1-$A36&"S"&COLUMN()-5)&":Z"&(ROW()+AnzSp-$A36)&"S"&COLUMN()-5,0),1),COUNTIF(INDIRECT("Z"&(ROW()+1-$A36&"S"&COLUMN()-5)&":Z"&(ROW())&"S"&COLUMN()-5,0),H36)<3),"X",IF(AND(COUNTIF(INDIRECT("Z"&(ROW()+1-$A36&"S"&COLUMN()-5)&":Z"&(ROW()+AnzSp-$A36)&"S"&COLUMN()-5,0),">0")=AnzSp,INDIRECT("Z"&(ROW()+AnzSp+1-$A36)&"S6",0)>0,H36=LARGE(INDIRECT("Z"&(ROW()+1-$A36&"S"&COLUMN()-5)&":Z"&(ROW()+AnzSp-$A36)&"S"&COLUMN()-5,0),2),COUNTIF(INDIRECT("Z"&(ROW()+1-$A36&"S"&COLUMN()-5)&":Z"&(ROW())&"S"&COLUMN()-5,0),H36)=1),"X",""))),"") ->  | N36: =IF(I36>0,IF(AND(COUNTIF(INDIRECT("Z"&(ROW()+1-$A36&"S"&COLUMN()-5)&":Z"&(ROW()+AnzSp-$A36)&"S"&COLUMN()-5,0),">0")=AnzSp-1,I36=LARGE(INDIRECT("Z"&(ROW()+1-$A36&"S"&COLUMN()-5)&":Z"&(ROW()+AnzSp-$A36)&"S"&COLUMN()-5,0),1),COUNTIF(INDIRECT("Z"&(ROW()+1-$A36&"S"&COLUMN()-5)&":Z"&(ROW())&"S"&COLUMN()-5,0),I36)=1),"X",IF(AND(COUNTIF(INDIRECT("Z"&(ROW()+1-$A36&"S"&COLUMN()-5)&":Z"&(ROW()+AnzSp-$A36)&"S"&COLUMN()-5,0),">0")=AnzSp,INDIRECT("Z"&(ROW()+AnzSp+1-$A36)&"S6",0)>0,I36=LARGE(INDIRECT("Z"&(ROW()+1-$A36&"S"&COLUMN()-5)&":Z"&(ROW()+AnzSp-$A36)&"S"&COLUMN()-5,0),1),COUNTIF(INDIRECT("Z"&(ROW()+1-$A36&"S"&COLUMN()-5)&":Z"&(ROW())&"S"&COLUMN()-5,0),I36)<3),"X",IF(AND(COUNTIF(INDIRECT("Z"&(ROW()+1-$A36&"S"&COLUMN()-5)&":Z"&(ROW()+AnzSp-$A36)&"S"&COLUMN()-5,0),">0")=AnzSp,INDIRECT("Z"&(ROW()+AnzSp+1-$A36)&"S6",0)>0,I36=LARGE(INDIRECT("Z"&(ROW()+1-$A36&"S"&COLUMN()-5)&":Z"&(ROW()+AnzSp-$A36)&"S"&COLUMN()-5,0),2),COUNTIF(INDIRECT("Z"&(ROW()+1-$A36&"S"&COLUMN()-5)&":Z"&(ROW())&"S"&COLUMN()-5,0),I36)=1),"X",""))),"") ->  | O36: =IF(J36>0,IF(AND(COUNTIF(INDIRECT("Z"&(ROW()+1-$A36&"S"&COLUMN()-5)&":Z"&(ROW()+AnzSp-$A36)&"S"&COLUMN()-5,0),">0")=AnzSp-1,J36=LARGE(INDIRECT("Z"&(ROW()+1-$A36&"S"&COLUMN()-5)&":Z"&(ROW()+AnzSp-$A36)&"S"&COLUMN()-5,0),1),COUNTIF(INDIRECT("Z"&(ROW()+1-$A36&"S"&COLUMN()-5)&":Z"&(ROW())&"S"&COLUMN()-5,0),J36)=1),"X",IF(AND(COUNTIF(INDIRECT("Z"&(ROW()+1-$A36&"S"&COLUMN()-5)&":Z"&(ROW()+AnzSp-$A36)&"S"&COLUMN()-5,0),">0")=AnzSp,INDIRECT("Z"&(ROW()+AnzSp+1-$A36)&"S6",0)>0,J36=LARGE(INDIRECT("Z"&(ROW()+1-$A36&"S"&COLUMN()-5)&":Z"&(ROW()+AnzSp-$A36)&"S"&COLUMN()-5,0),1),COUNTIF(INDIRECT("Z"&(ROW()+1-$A36&"S"&COLUMN()-5)&":Z"&(ROW())&"S"&COLUMN()-5,0),J36)<3),"X",IF(AND(COUNTIF(INDIRECT("Z"&(ROW()+1-$A36&"S"&COLUMN()-5)&":Z"&(ROW()+AnzSp-$A36)&"S"&COLUMN()-5,0),">0")=AnzSp,INDIRECT("Z"&(ROW()+AnzSp+1-$A36)&"S6",0)>0,J36=LARGE(INDIRECT("Z"&(ROW()+1-$A36&"S"&COLUMN()-5)&":Z"&(ROW()+AnzSp-$A36)&"S"&COLUMN()-5,0),2),COUNTIF(INDIRECT("Z"&(ROW()+1-$A36&"S"&COLUMN()-5)&":Z"&(ROW())&"S"&COLUMN()-5,0),J36)=1),"X",""))),"") ->  | P36: =SUM(G36:J36) -> 107
A37: 2 | B37: Schwarz | C37: Detlef | E37: 49255 | F37: Sm 2 | G37: 25 | H37: 30 | I37: 27 | J37: 25 | K37: 77 | M37: X | P37: =SUM(G37:J37) -> 107
A38: 3 | B38: Symanzyk | C38: Daniela | E38: 31988 | F38: D | G38: 26 | H38: 29 | I38: 29 | J38: 31 | K38: 84 | O38: X | P38: 115
A39: 4 | B39: Reinicke | C39: Frank | E39: 42691 | F39: Sm 2 | G39: 33 | H39: 25 | I39: 31 | J39: 26 | K39: 51 | L39: X | N39: X | P39: 115
A40: 5 | B40: Beier | C40: Christian | E40: 66569 | F40: Sm 2 | G40: 30 | H40: 22 | I40: 24 | J40: 28 | K40: 104 | P40: 104
A41: 6 | G41: 0 | H41: 0 | I41: 0 | J41: 0 | K41: 0 | P41: 0
B42: =IF(COUNT(INDIRECT("E"&ROW()-AnzSp&":E"&ROW()-1))<=AnzSp-2,"Kein Streicher",IF(COUNT(INDIRECT("E"&ROW()-AnzSp&":E"&ROW()-1))<=AnzSp-1,"1 Streicher",IF(AND(COUNT(INDIRECT("E"&ROW()-AnzSp&":E"&ROW()-1))<=AnzSp,F42>0),"2 Streicher","Spieler Nr. "&AnzSp&" löschen und als Einzelspieler erfassen!"))) -> 1 Streicher | F42: =COUNTIF(INDIRECT("F"&(ROW()-AnzSp)&":F"&ROW()-1),"Jw")+COUNTIF(INDIRECT("F"&ROW()-AnzSp&":F"&ROW()-1),"Jm")+COUNTIF(INDIRECT("F"&ROW()-AnzSp&":F"&ROW()-1),"Schw")+COUNTIF(INDIRECT("F"&ROW()-AnzSp&":F"&ROW()-1),"Schm") -> 0 | G42: =IF(COUNTIF(INDIRECT("G"&ROW()-AnzSp&":G"&ROW()-1),">0")=AnzSp-2,SUM(INDIRECT("G"&ROW()-AnzSp&":G"&ROW()-1)),IF(COUNTIF(INDIRECT("G"&ROW()-AnzSp&":G"&ROW()-1),">0")=AnzSp-1,SUM(INDIRECT("G"&ROW()-AnzSp&":G"&ROW()-1))-LARGE(INDIRECT("G"&ROW()-AnzSp&":G"&ROW()-1),1),IF(COUNTIF(INDIRECT("G"&ROW()-AnzSp&":G"&ROW()-1),">0")=AnzSp,SUM(INDIRECT("G"&ROW()-AnzSp&":G"&ROW()-1))-LARGE(INDIRECT("G"&ROW()-AnzSp&":G"&ROW()-1),1)-LARGE(INDIRECT("G"&ROW()-AnzSp&":G"&ROW()-1),2),0))) -> 111 | H42: =IF(COUNTIF(INDIRECT("H"&ROW()-AnzSp&":H"&ROW()-1),">0")=AnzSp-2,SUM(INDIRECT("H"&ROW()-AnzSp&":H"&ROW()-1)),IF(COUNTIF(INDIRECT("H"&ROW()-AnzSp&":H"&ROW()-1),">0")=AnzSp-1,SUM(INDIRECT("H"&ROW()-AnzSp&":H"&ROW()-1))-LARGE(INDIRECT("H"&ROW()-AnzSp&":H"&ROW()-1),1),IF(COUNTIF(INDIRECT("H"&ROW()-AnzSp&":H"&ROW()-1),">0")=AnzSp,SUM(INDIRECT("H"&ROW()-AnzSp&":H"&ROW()-1))-LARGE(INDIRECT("H"&ROW()-AnzSp&":H"&ROW()-1),1)-LARGE(INDIRECT("H"&ROW()-AnzSp&":H"&ROW()-1),2),0))) -> 105 | I42: =IF(COUNTIF(INDIRECT("I"&ROW()-AnzSp&":I"&ROW()-1),">0")=AnzSp-2,SUM(INDIRECT("I"&ROW()-AnzSp&":I"&ROW()-1)),IF(COUNTIF(INDIRECT("I"&ROW()-AnzSp&":I"&ROW()-1),">0")=AnzSp-1,SUM(INDIRECT("I"&ROW()-AnzSp&":I"&ROW()-1))-LARGE(INDIRECT("I"&ROW()-AnzSp&":I"&ROW()-1),1),IF(COUNTIF(INDIRECT("I"&ROW()-AnzSp&":I"&ROW()-1),">0")=AnzSp,SUM(INDIRECT("I"&ROW()-AnzSp&":I"&ROW()-1))-LARGE(INDIRECT("I"&ROW()-AnzSp&":I"&ROW()-1),1)-LARGE(INDIRECT("I"&ROW()-AnzSp&":I"&ROW()-1),2),0))) -> 102 | J42: =IF(COUNTIF(INDIRECT("J"&ROW()-AnzSp&":J"&ROW()-1),">0")=AnzSp-2,SUM(INDIRECT("J"&ROW()-AnzSp&":J"&ROW()-1)),IF(COUNTIF(INDIRECT("J"&ROW()-AnzSp&":J"&ROW()-1),">0")=AnzSp-1,SUM(INDIRECT("J"&ROW()-AnzSp&":J"&ROW()-1))-LARGE(INDIRECT("J"&ROW()-AnzSp&":J"&ROW()-1),1),IF(COUNTIF(INDIRECT("J"&ROW()-AnzSp&":J"&ROW()-1),">0")=AnzSp,SUM(INDIRECT("J"&ROW()-AnzSp&":J"&ROW()-1))-LARGE(INDIRECT("J"&ROW()-AnzSp&":J"&ROW()-1),1)-LARGE(INDIRECT("J"&ROW()-AnzSp&":J"&ROW()-1),2),0))) -> 105 | K42: =SUM(G42:J42) -> 423
A44: 5 | B44: BGC Diepholz II | I44: Schnitt: | J44: =IF(COUNTIF(INDIRECT("G"&ROW()+2&":J"&ROW()+AnzSp+1),">0")>0,K52/(COUNTIF(INDIRECT("G"&ROW()+2&":J"&ROW()+AnzSp+1),">0")-COUNTIF(INDIRECT("L"&ROW()+2&":O"&ROW()+AnzSp+1),"X")),0) -> 27.4375
A45: Nr.: | B45: Nachname | C45: Vorname | E45: Sp.Nr. | F45: Kat. | G45: R1 | H45: R2 | I45: R3 | J45: R4 | K45: Wertung | P45: Gesamt
A46: 1 | B46: =IF(E46="","",IF(ISERROR(VLOOKUP(E46,Spieler,4,0)),"Falsche Nummer!",VLOOKUP(E46,Spieler,4,0))) -> Hunte | C46: =IF(ISERROR(VLOOKUP(E46,Spieler,3,0)),"",VLOOKUP(E46,Spieler,3,0)) -> Karl-Heinz | E46: 44723 | F46: =IF(ISERROR(VLOOKUP(E46,Spieler,2,0)),"",VLOOKUP(E46,Spieler,2,0)) -> Sm 1 | G46: =IF(ISERROR(VLOOKUP($E46,Ergebnisse,COLUMN()-4,0)),0,VLOOKUP($E46,Ergebnisse,COLUMN()-4,0)) -> 35 | H46: 28 | I46: 28 | J46: 31 | K46: =IF(L46="X",0,G46)+IF(M46="X",0,H46)+IF(N46="X",0,I46)+IF(O46="X",0,J46) -> 87 | L46: =IF(G46>0,IF(AND(COUNTIF(INDIRECT("Z"&(ROW()+1-$A46&"S"&COLUMN()-5)&":Z"&(ROW()+AnzSp-$A46)&"S"&COLUMN()-5,0),">0")=AnzSp-1,G46=LARGE(INDIRECT("Z"&(ROW()+1-$A46&"S"&COLUMN()-5)&":Z"&(ROW()+AnzSp-$A46)&"S"&COLUMN()-5,0),1),COUNTIF(INDIRECT("Z"&(ROW()+1-$A46&"S"&COLUMN()-5)&":Z"&(ROW())&"S"&COLUMN()-5,0),G46)=1),"X",IF(AND(COUNTIF(INDIRECT("Z"&(ROW()+1-$A46&"S"&COLUMN()-5)&":Z"&(ROW()+AnzSp-$A46)&"S"&COLUMN()-5,0),">0")=AnzSp,INDIRECT("Z"&(ROW()+AnzSp+1-$A46)&"S6",0)>0,G46=LARGE(INDIRECT("Z"&(ROW()+1-$A46&"S"&COLUMN()-5)&":Z"&(ROW()+AnzSp-$A46)&"S"&COLUMN()-5,0),1),COUNTIF(INDIRECT("Z"&(ROW()+1-$A46&"S"&COLUMN()-5)&":Z"&(ROW())&"S"&COLUMN()-5,0),G46)<3),"X",IF(AND(COUNTIF(INDIRECT("Z"&(ROW()+1-$A46&"S"&COLUMN()-5)&":Z"&(ROW()+AnzSp-$A46)&"S"&COLUMN()-5,0),">0")=AnzSp,INDIRECT("Z"&(ROW()+AnzSp+1-$A46)&"S6",0)>0,G46=LARGE(INDIRECT("Z"&(ROW()+1-$A46&"S"&COLUMN()-5)&":Z"&(ROW()+AnzSp-$A46)&"S"&COLUMN()-5,0),2),COUNTIF(INDIRECT("Z"&(ROW()+1-$A46&"S"&COLUMN()-5)&":Z"&(ROW())&"S"&COLUMN()-5,0),G46)=1),"X",""))),"") -> X | M46: =IF(H46>0,IF(AND(COUNTIF(INDIRECT("Z"&(ROW()+1-$A46&"S"&COLUMN()-5)&":Z"&(ROW()+AnzSp-$A46)&"S"&COLUMN()-5,0),">0")=AnzSp-1,H46=LARGE(INDIRECT("Z"&(ROW()+1-$A46&"S"&COLUMN()-5)&":Z"&(ROW()+AnzSp-$A46)&"S"&COLUMN()-5,0),1),COUNTIF(INDIRECT("Z"&(ROW()+1-$A46&"S"&COLUMN()-5)&":Z"&(ROW())&"S"&COLUMN()-5,0),H46)=1),"X",IF(AND(COUNTIF(INDIRECT("Z"&(ROW()+1-$A46&"S"&COLUMN()-5)&":Z"&(ROW()+AnzSp-$A46)&"S"&COLUMN()-5,0),">0")=AnzSp,INDIRECT("Z"&(ROW()+AnzSp+1-$A46)&"S6",0)>0,H46=LARGE(INDIRECT("Z"&(ROW()+1-$A46&"S"&COLUMN()-5)&":Z"&(ROW()+AnzSp-$A46)&"S"&COLUMN()-5,0),1),COUNTIF(INDIRECT("Z"&(ROW()+1-$A46&"S"&COLUMN()-5)&":Z"&(ROW())&"S"&COLUMN()-5,0),H46)<3),"X",IF(AND(COUNTIF(INDIRECT("Z"&(ROW()+1-$A46&"S"&COLUMN()-5)&":Z"&(ROW()+AnzSp-$A46)&"S"&COLUMN()-5,0),">0")=AnzSp,INDIRECT("Z"&(ROW()+AnzSp+1-$A46)&"S6",0)>0,H46=LARGE(INDIRECT("Z"&(ROW()+1-$A46&"S"&COLUMN()-5)&":Z"&(ROW()+AnzSp-$A46)&"S"&COLUMN()-5,0),2),COUNTIF(INDIRECT("Z"&(ROW()+1-$A46&"S"&COLUMN()-5)&":Z"&(ROW())&"S"&COLUMN()-5,0),H46)=1),"X",""))),"") ->  | N46: =IF(I46>0,IF(AND(COUNTIF(INDIRECT("Z"&(ROW()+1-$A46&"S"&COLUMN()-5)&":Z"&(ROW()+AnzSp-$A46)&"S"&COLUMN()-5,0),">0")=AnzSp-1,I46=LARGE(INDIRECT("Z"&(ROW()+1-$A46&"S"&COLUMN()-5)&":Z"&(ROW()+AnzSp-$A46)&"S"&COLUMN()-5,0),1),COUNTIF(INDIRECT("Z"&(ROW()+1-$A46&"S"&COLUMN()-5)&":Z"&(ROW())&"S"&COLUMN()-5,0),I46)=1),"X",IF(AND(COUNTIF(INDIRECT("Z"&(ROW()+1-$A46&"S"&COLUMN()-5)&":Z"&(ROW()+AnzSp-$A46)&"S"&COLUMN()-5,0),">0")=AnzSp,INDIRECT("Z"&(ROW()+AnzSp+1-$A46)&"S6",0)>0,I46=LARGE(INDIRECT("Z"&(ROW()+1-$A46&"S"&COLUMN()-5)&":Z"&(ROW()+AnzSp-$A46)&"S"&COLUMN()-5,0),1),COUNTIF(INDIRECT("Z"&(ROW()+1-$A46&"S"&COLUMN()-5)&":Z"&(ROW())&"S"&COLUMN()-5,0),I46)<3),"X",IF(AND(COUNTIF(INDIRECT("Z"&(ROW()+1-$A46&"S"&COLUMN()-5)&":Z"&(ROW()+AnzSp-$A46)&"S"&COLUMN()-5,0),">0")=AnzSp,INDIRECT("Z"&(ROW()+AnzSp+1-$A46)&"S6",0)>0,I46=LARGE(INDIRECT("Z"&(ROW()+1-$A46&"S"&COLUMN()-5)&":Z"&(ROW()+AnzSp-$A46)&"S"&COLUMN()-5,0),2),COUNTIF(INDIRECT("Z"&(ROW()+1-$A46&"S"&COLUMN()-5)&":Z"&(ROW())&"S"&COLUMN()-5,0),I46)=1),"X",""))),"") ->  | O46: =IF(J46>0,IF(AND(COUNTIF(INDIRECT("Z"&(ROW()+1-$A46&"S"&COLUMN()-5)&":Z"&(ROW()+AnzSp-$A46)&"S"&COLUMN()-5,0),">0")=AnzSp-1,J46=LARGE(INDIRECT("Z"&(ROW()+1-$A46&"S"&COLUMN()-5)&":Z"&(ROW()+AnzSp-$A46)&"S"&COLUMN()-5,0),1),COUNTIF(INDIRECT("Z"&(ROW()+1-$A46&"S"&COLUMN()-5)&":Z"&(ROW())&"S"&COLUMN()-5,0),J46)=1),"X",IF(AND(COUNTIF(INDIRECT("Z"&(ROW()+1-$A46&"S"&COLUMN()-5)&":Z"&(ROW()+AnzSp-$A46)&"S"&COLUMN()-5,0),">0")=AnzSp,INDIRECT("Z"&(ROW()+AnzSp+1-$A46)&"S6",0)>0,J46=LARGE(INDIRECT("Z"&(ROW()+1-$A46&"S"&COLUMN()-5)&":Z"&(ROW()+AnzSp-$A46)&"S"&COLUMN()-5,0),1),COUNTIF(INDIRECT("Z"&(ROW()+1-$A46&"S"&COLUMN()-5)&":Z"&(ROW())&"S"&COLUMN()-5,0),J46)<3),"X",IF(AND(COUNTIF(INDIRECT("Z"&(ROW()+1-$A46&"S"&COLUMN()-5)&":Z"&(ROW()+AnzSp-$A46)&"S"&COLUMN()-5,0),">0")=AnzSp,INDIRECT("Z"&(ROW()+AnzSp+1-$A46)&"S6",0)>0,J46=LARGE(INDIRECT("Z"&(ROW()+1-$A46&"S"&COLUMN()-5)&":Z"&(ROW()+AnzSp-$A46)&"S"&COLUMN()-5,0),2),COUNTIF(INDIRECT("Z"&(ROW()+1-$A46&"S"&COLUMN()-5)&":Z"&(ROW())&"S"&COLUMN()-5,0),J46)=1),"X",""))),"") ->  | P46: =SUM(G46:J46) -> 122
A47: 2 | B47: Horn | C47: Dennis | E47: 50002 | F47: Sm 1 | G47: 31 | H47: 35 | I47: 36 | J47: 34 | K47: 0 | L47: X | M47: X | N47: X | O47: X | P47: =SUM(G47:J47) -> 136
A48: 3 | B48: Lange | C48: Kevin | E48: 879 | F48: Jm | G48: 26 | H48: 27 | I48: 31 | J48: 36 | K48: 84 | O48: X | P48: 120
A49: 4 | B49: Raschke | C49: Marcel | E49: 36567 | F49: H | G49: 28 | H49: 25 | I49: 26 | J49: 27 | K49: 106 | P49: 106
A50: 5 | B50: Wesemann | C50: Eike-Fabian | E50: 36292 | F50: H | G50: 30 | H50: 29 | I50: 32 | J50: 30 | K50: 60 | M50: X | N50: X | P50: 121
A51: 6 | B51: Wesemann | C51: Florian | E51: 35546 | F51: H | G51: 30 | H51: 25 | I51: 22 | J51: 25 | K51: 102 | P51: 102
B52: =IF(COUNT(INDIRECT("E"&ROW()-AnzSp&":E"&ROW()-1))<=AnzSp-2,"Kein Streicher",IF(COUNT(INDIRECT("E"&ROW()-AnzSp&":E"&ROW()-1))<=AnzSp-1,"1 Streicher",IF(AND(COUNT(INDIRECT("E"&ROW()-AnzSp&":E"&ROW()-1))<=AnzSp,F52>0),"2 Streicher","Spieler Nr. "&AnzSp&" löschen und als Einzelspieler erfassen!"))) -> 2 Streicher | F52: =COUNTIF(INDIRECT("F"&(ROW()-AnzSp)&":F"&ROW()-1),"Jw")+COUNTIF(INDIRECT("F"&ROW()-AnzSp&":F"&ROW()-1),"Jm")+COUNTIF(INDIRECT("F"&ROW()-AnzSp&":F"&ROW()-1),"Schw")+COUNTIF(INDIRECT("F"&ROW()-AnzSp&":F"&ROW()-1),"Schm") -> 1 | G52: =IF(COUNTIF(INDIRECT("G"&ROW()-AnzSp&":G"&ROW()-1),">0")=AnzSp-2,SUM(INDIRECT("G"&ROW()-AnzSp&":G"&ROW()-1)),IF(COUNTIF(INDIRECT("G"&ROW()-AnzSp&":G"&ROW()-1),">0")=AnzSp-1,SUM(INDIRECT("G"&ROW()-AnzSp&":G"&ROW()-1))-LARGE(INDIRECT("G"&ROW()-AnzSp&":G"&ROW()-1),1),IF(COUNTIF(INDIRECT("G"&ROW()-AnzSp&":G"&ROW()-1),">0")=AnzSp,SUM(INDIRECT("G"&ROW()-AnzSp&":G"&ROW()-1))-LARGE(INDIRECT("G"&ROW()-AnzSp&":G"&ROW()-1),1)-LARGE(INDIRECT("G"&ROW()-AnzSp&":G"&ROW()-1),2),0))) -> 114 | H52: =IF(COUNTIF(INDIRECT("H"&ROW()-AnzSp&":H"&ROW()-1),">0")=AnzSp-2,SUM(INDIRECT("H"&ROW()-AnzSp&":H"&ROW()-1)),IF(COUNTIF(INDIRECT("H"&ROW()-AnzSp&":H"&ROW()-1),">0")=AnzSp-1,SUM(INDIRECT("H"&ROW()-AnzSp&":H"&ROW()-1))-LARGE(INDIRECT("H"&ROW()-AnzSp&":H"&ROW()-1),1),IF(COUNTIF(INDIRECT("H"&ROW()-AnzSp&":H"&ROW()-1),">0")=AnzSp,SUM(INDIRECT("H"&ROW()-AnzSp&":H"&ROW()-1))-LARGE(INDIRECT("H"&ROW()-AnzSp&":H"&ROW()-1),1)-LARGE(INDIRECT("H"&ROW()-AnzSp&":H"&ROW()-1),2),0))) -> 105 | I52: =IF(COUNTIF(INDIRECT("I"&ROW()-AnzSp&":I"&ROW()-1),">0")=AnzSp-2,SUM(INDIRECT("I"&ROW()-AnzSp&":I"&ROW()-1)),IF(COUNTIF(INDIRECT("I"&ROW()-AnzSp&":I"&ROW()-1),">0")=AnzSp-1,SUM(INDIRECT("I"&ROW()-AnzSp&":I"&ROW()-1))-LARGE(INDIRECT("I"&ROW()-AnzSp&":I"&ROW()-1),1),IF(COUNTIF(INDIRECT("I"&ROW()-AnzSp&":I"&ROW()-1),">0")=AnzSp,SUM(INDIRECT("I"&ROW()-AnzSp&":I"&ROW()-1))-LARGE(INDIRECT("I"&ROW()-AnzSp&":I"&ROW()-1),1)-LARGE(INDIRECT("I"&ROW()-AnzSp&":I"&ROW()-1),2),0))) -> 107 | J52: =IF(COUNTIF(INDIRECT("J"&ROW()-AnzSp&":J"&ROW()-1),">0")=AnzSp-2,SUM(INDIRECT("J"&ROW()-AnzSp&":J"&ROW()-1)),IF(COUNTIF(INDIRECT("J"&ROW()-AnzSp&":J"&ROW()-1),">0")=AnzSp-1,SUM(INDIRECT("J"&ROW()-AnzSp&":J"&ROW()-1))-LARGE(INDIRECT("J"&ROW()-AnzSp&":J"&ROW()-1),1),IF(COUNTIF(INDIRECT("J"&ROW()-AnzSp&":J"&ROW()-1),">0")=AnzSp,SUM(INDIRECT("J"&ROW()-AnzSp&":J"&ROW()-1))-LARGE(INDIRECT("J"&ROW()-AnzSp&":J"&ROW()-1),1)-LARGE(INDIRECT("J"&ROW()-AnzSp&":J"&ROW()-1),2),0))) -> 113 | K52: =SUM(G52:J52) -> 439

Sheet Startliste
A1: =Deckblatt!A3 -> 3. Spieltag - Landesliga Nord - Saison 2019
A4: Turnierleitung: | C4: =IF(Deckblatt!D6=0,"",Deckblatt!D6) -> Reinicke, Frank | D4: =IF(Deckblatt!G6=0,"",Deckblatt!G6) -> MC Möve Cuxhaven
A6: Oberschiedsrichter: | C6: =IF(Deckblatt!D8=0,"",Deckblatt!D8) -> Krause, Dirk | D6: =IF(Deckblatt!G8=0,"",Deckblatt!G8) -> BGC Celle
A7: Schiedsrichter: | C7: =IF(Deckblatt!D9=0,"",Deckblatt!D9) -> Hunte, Stefanie | D7: =IF(Deckblatt!G9=0,"",Deckblatt!G9) -> BGC Diepholz
A8: Schiedsrichter: | C8: =IF(Deckblatt!D10=0,"",Deckblatt!D10) -> Weigang, Klaus-Dieter | D8: =IF(Deckblatt!G10=0,"",Deckblatt!G10) -> BGC Hannover
A12: Startliste
A14: 1
A15: 2
A16: 3
A17: 4
A18: 5
A19: 6
A20: 7
A21: 8
A22: 9
A23: 10
A24: 11
A25: 12
A26: 13
A27: 14
A28: 15
A29: 16
A30: 17
A31: 18
A32: 19
A33: 20
A34: 21

Sheet Konstanten (hidden)
A2: Kurzbezeichnung | B2: Reihenfolge | D2: Ligennummer | E2: Ligenbezeichnung | F2: Anzahl Spieler | G2: Kategoriewertung
A3: D | B3: 1 | D3: 1 | E3: Bezirksklasse Nord | F3: 5 | G3: Ja
A4: H | B4: 2 | D4: 2 | E4: Bezirksklasse Mitte | F4: 5 | G4: Ja
A5: Sw 1 | B5: 3 | D5: 3 | E5: Bezirksklasse Ost | F5: 5 | G5: Ja
A6: Sm 1 | B6: 4 | D6: 4 | E6: Bezirksklasse Süd | F6: 5 | G6: Ja
A7: Sw 2 | B7: 5 | D7: 5 | E7: Bezirksliga Nord-Mitte | F7: 5 | G7: Ja
A8: Sm 2 | B8: 6 | D8: 6 | E8: Landesliga Nord | F8: 6 | G8: Nein
A9: Jw | B9: 7 | D9: 7 | E9: Landesliga Süd | F9: 6 | G9: Nein
A10: Jm | B10: 8 | D10: 8 | E10: Verbandsliga Staffel 1 | F10: 7 | G10: Nein
A11: Schw | B11: 9 | D11: 9 | E11: Verbandsliga Staffel 2 | F11: 7 | G11: Nein
A12: Schm | B12: 10 | D12: 10 | E12: 3. Bundesliga Nord Staffel 1 | F12: 7 | G12: Nein
D13: 11 | E13: 3. Bundesliga Nord Staffel 2 | F13: 7 | G13: Nein
D14: 12 | E14: 3. Bundesliga Nord Staffel 3 | F14: 7 | G14: Nein
D15: 13 | E15: 2. Bundesliga Nord Staffel 1 | F15: 8 | G15: Nein
D16: 14 | E16: 2. Bundesliga Nord Staffel 2 | F16: 8 | G16: Nein
A18: 1. Spieltag
A19: 2. Spieltag
A20: 3. Spieltag
A21: 4. Spieltag
A22: 5. Spieltag
A27: Aktuelle Auswahl Liga: | C27: 6
A28: Aktuelle Auswahl Spieltag: | C28: 3
A29: Aktuelle Anzahl der Runden | C29: =COUNT(Deckblatt!H27:K27) -> 4
A30: Anzahl der Spieler in Team | C30: =VLOOKUP(Ligawahl,Teamgröße,3,0) -> 6
A32: Bahnensysteme | D32: blau | E32: grün | F32: rot
B33: Miniaturgolf | C33: 1 | D33: 19 | E33: 24 | F33: 29
B34: Beton | C34: 2 | D34: 24 | E34: 29 | F34: 35
B35: Filzgolf | C35: 3 | D35: 29 | E35: 35 | F35: 39
A37: Aktuelle Auswahl System: | C37: =VLOOKUP(Deckblatt!P9,Systemliste,2,0) -> 1 | D37: =VLOOKUP(Deckblatt!P9,Systemliste,3,0) -> 19 | E37: =VLOOKUP(Deckblatt!P9,Systemliste,4,0) -> 24 | F37: =VLOOKUP(Deckblatt!P9,Systemliste,5,0) -> 29

Sheet players
A1: SpielerNr | B1: Kategorie | C1: Vorname | D1: Nachname | E1: Kurzname | F1: MVBN | G1: LizenzNr | H1: SC | I1: SB | J1: SA | K1: TL
A2: 25891 | B2: Sm 2 | C2: Lothar | D2: Abele | E2: 1. MGC Metzingen e.V.
A3: 869 | B3: Sw 2 | C3: Birgit | D3: Abeling-Betzien | E3: BGC Diepholz | F3: Ja
A4: 33312 | B4: Sm 2 | C4: Edgar | D4: Abelmann | E4: BGC Hannover | F4: Ja
A5: 27712 | B5: Sm 1 | C5: Thomas | D5: Abendroth | E5: Reinickendorfer MGC e.V.
A6: 43272 | B6: H | C6: Hendrik | D6: Ackermann | E6: 1. MGC Ludwigshafen e.V.
A7: 34631 | B7: H | C7: Jan Sebastian | D7: Adam | E7: VfL Lüneburg | F7: Ja | G7: 12733 | H7: X
A8: 67154 | B8: D | C8: Jessica | D8: Adam | E8: VfL Lüneburg | F8: Ja | G8: 29732 | H8: X
A9: 36366 | B9: Sm 2 | C9: Herbert | D9: Adam | E9: MGC Felderbachtal 1964 e.V.
A10: 36901 | B10: Sw 2 | C10: Gabriele | D10: Adam | E10: MGC Felderbachtal 1964 e.V.
A11: 37193 | B11: H | C11: Tim | D11: Adamczyk | E11: SG Arheilgen Abt. Bahnengolf
A12: 35408 | B12: D | C12: Jasmin | D12: Adamczyk | E12: MGC Bad Homburg vdH e.V.
A13: 35377 | B13: Sm 2 | C13: Michael | D13: Adamczyk | E13: MGC Bad Homburg vdH e.V.
A14: 37108 | B14: Sw 2 | C14: Astrid | D14: Adamczyk | E14: MGC Bad Homburg vdH e.V.
A15: 35715 | B15: Sm 2 | C15: Bernd | D15: Adamski | E15: MGC Rot-Weiß Wanne-Eickel e.V.
A16: 46986 | B16: Sm 1 | C16: Jürgen | D16: Adenau | E16: 1.KGC Mönchengladbach e.V.
A17: 29794 | B17: H | C17: Markus | D17: Affeld | E17: MSC Herscheid 1963 e.V.
A18: 24649 | B18: H | C18: Alan | D18: Ahmed | E18: MGC Bad Oldesloe e.V.
A19: 36151 | B19: H | C19: Pasi | D19: Aho | E19: BGC Neutraubling e.V.
A20: 66361 | B20: H | C20: Marcel | D20: Ahrens | E20: MGC Peine | F20: Ja
A21: 37046 | B21: Sw 1 | C21: Mabel | D21: Ahrentropp | E21: HMC Büttgen e.V.
A22: 66842 | B22: Jw | C22: Catharina | D22: Aichele | E22: MGC Monrepos e.V.
A23: 27728 | B23: H | C23: Sascha | D23: Albrecht | E23: MGC Göttingen | F23: Ja
A24: 66650 | B24: D | C24: Nassim | D24: Alizadeh | E24: Miniaturgolf Sportclub Schriesheim e.V
A25: 67318 | B25: Schm | C25: Leon | D25: Allmacher | E25: MGC Traben-Trarbach
A26: 67317 | B26: Sm 1 | C26: Jürgen | D26: Allmacher | E26: MGC Traben-Trarbach
A27: 33902 | B27: D | C27: Bianca | D27: Allmüller | E27: BGV Backumer Tal Herten e.V.
A28: 33903 | B28: Sm 1 | C28: Markus | D28: Allmüller | E28: BGV Backumer Tal Herten e.V.
A29: 29237 | B29: Sm 1 | C29: Peter | D29: Amberger | E29: BGC Neutraubling e.V.
A30: 67242 | B30: Sm 1 | C30: Tobias | D30: Amely | E30: MSC Bad Godesberg e.V.
A31: 5720 | B31: Sm 2 | C31: Wolfgang | D31: Ament | E31: SV 1890 e.V. Dreieichenhain, Abt. Bahnengolf
A32: 50612 | B32: H | C32: Oliver | D32: Anders | E32: MGC Dortmund Syburg e.V.
A33: 44990 | B33: Sm 1 | C33: Alexander | D33: Anders | E33: BGSV Castrop e.V. 1961
A34: 66492 | B34: Sm 1 | C34: Uwe | D34: Andrejewski | E34: 1. MGC Gelsenkirchen e.V.
A35: 66109 | B35: Sm 1 | C35: Andre | D35: Andresen | E35: BGC Kiel West e.V.
A36: 37496 | B36: Sm 2 | C36: Klaus-Dieter | D36: Andresen | E36: MGC Harrislee-Wassersleben
A37: 66201 | B37: Sm 2 | C37: Bernd | D37: Andrzejak | E37: MGC Rot-Weiß Wanne-Eickel e.V.
A38: 67210 | B38: Sm 2 | C38: Karl-Heinz | D38: Angabreit | E38: BGC Uerdingen e.V.
A39: 66678 | B39: H | C39: Florian | D39: Angermaier | E39: MGC Bad Feilnbach e.V.
A40: 4969 | B40: Sm 2 | C40: Manfred | D40: Anlauff | E40: 1. MC Weinheim e.V.
A41: 67183 | B41: Schm | C41: Robin | D41: Antholz | E41: MSG Kempten e.V.
A42: 66920 | B42: D | C42: Stephanie | D42: Anton | E42: 1. BGC Rodalben 1977 e.V.
A43: 66879 | B43: Schm | C43: Sean | D43: Anton | E43: 1. BGC Rodalben 1977 e.V.
A44: 27278 | B44: Sm 1 | C44: Udo | D44: Apelmeier | E44: BV Sennestadt
A45: 45054 | B45: Sm 1 | C45: Willi | D45: Appel | E45: Miniaturgolf Sportclub Schriesheim e.V
A46: 32949 | B46: Sm 2 | C46: Dieter | D46: Appelhans | E46: BV Sennestadt
A47: 29034 | B47: H | C47: André | D47: Appelmann | E47: VfM Bottrop e.V.
A48: 36479 | B48: D | C48: Laura | D48: Appelmann | E48: VfM Bottrop e.V.
A49: 47183 | B49: H | C49: Sascha | D49: Arendt | E49: BGSV Castrop e.V. 1961
A50: 67250 | B50: Sw 1 | C50: Angelina | D50: Arendt | E50: BGSV Castrop e.V. 1961
A51: 27450 | B51: Sm 1 | C51: Ingo | D51: Arens | E51: BSC Ennepetal e.V.
A52: 26327 | B52: H | C52: Christoph | D52: Arenz | E52: MSC Bad Godesberg e.V.
A53: 4769 | B53: Sm 2 | C53: Heinz Josef | D53: Arenz | E53: MSC Bad Godesberg e.V.
A54: 37811 | B54: Sm 2 | C54: Helmut | D54: Arlt | E54: SV Gebhardshagen | F54: Ja
A55: 60227 | B55: Sm 2 | C55: Gerhard | D55: Arndt | E55: VfL Lohbrügge Abt. Bahnengolf
A56: 35780 | B56: H | C56: Mark | D56: Arnold | E56: SG Arheilgen Abt. Bahnengolf
A57: 60125 | B57: Sm 2 | C57: Kurt | D57: Arnold | E57: MGC Murnau am Staffelsee e.V.
A58: 35779 | B58: Sm 2 | C58: Günter | D58: Arnold | E58: BGSV Aßlar 1987 e.V.
A59: 18435 | B59: Sm 2 | C59: Klaus | D59: Arnold | E59: HMC Büttgen e.V.
A60: 35778 | B60: Sw 2 | C60: Franziska | D60: Arnold | E60: BGSV Aßlar 1987 e.V.
A61: 36179 | B61: Sm 1 | C61: Marco | D61: Arnsberg | E61: MV Lankwitzer Dragons
A62: 66447 | B62: Sm 2 | C62: Stefan | D62: Arweiler | E62: Freizeit Club Bliesen e.V.
A63: 33616 | B63: Sm 1 | C63: Jörg | D63: Asmuß | E63: MGC Brunsbüttel e.V.
A64: 23975 | B64: Sm 1 | C64: Bernd | D64: Aßmuth | E64: Bochumer Minigolf-Club 1960 e.V.
A65: 32897 | B65: Sm 2 | C65: Manfred | D65: Außerwinkler | E65: BGC Hannover | F65: Ja
A66: 29208 | B66: Sm 1 | C66: Thomas | D66: Aussieker | E66: BGSV Castrop e.V. 1961
A67: 67205 | B67: Sm 1 | C67: Jürgen | D67: Aust | E67: VfM Bottrop e.V.
A68: 66405 | B68: Sw 1 | C68: Manuela | D68: Aust | E68: BSC Ennepetal e.V.
A69: 67206 | B69: Sw 2 | C69: Petra | D69: Aust | E69: VfM Bottrop e.V.
A70: 66749 | B70: D | C70: Anna | D70: Averbakh | E70: BGC Hannover | F70: Ja
A71: 15754 | B71: H | C71: Sascha | D71: Axer | E71: Kölner Miniatur Golf Club e.V.
A72: 49266 | B72: Sm 2 | C72: Reiner | D72: Axer | E72: Kölner Miniatur Golf Club e.V.
A73: 49267 | B73: Sw 2 | C73: Claudia | D73: Axer | E73: Kölner Miniatur Golf Club e.V.
A74: 29229 | B74: Sm 1 | C74: Manfred | D74: Axtner | E74: CGC Illertal Kellmünz
A75: 19768 | B75: Sm 2 | C75: Stjepan | D75: Babic | E75: BIG ASPERG e.V.
A76: 4444 | B76: Sm 2 | C76: Peter | D76: Bach | E76: MGC Oberkochen e.V.
A77: 29939 | B77: Sm 1 | C77: Peter | D77: Bachmann | E77: MGC Göttingen | F77: Ja | G77: 9533 | I77: X
A78: 43674 | B78: Sw 1 | C78: Sabine | D78: Bachmann | E78: MGC Göttingen | F78: Ja
A79: 35588 | B79: Sm 2 | C79: Robert | D79: Bader | E79: MGC Murnau am Staffelsee e.V.
A80: 35587 | B80: Sw 2 | C80: Elfriede | D80: Bader | E80: MGC Murnau am Staffelsee e.V.
A81: 43414 | B81: Sm 2 | C81: Gerhard | D81: Badtke | E81: BGC Bad Nenndorf | F81: Ja | G81: 17979 | I81: X | K81: X
A82: 46800 | B82: Sw 2 | C82: Monika | D82: Badtke | E82: BGC Bad Nenndorf | F82: Ja
A83: 37761 | B83: Sm 1 | C83: Torsten | D83: Badziong | E83: MGC Freizeitzentrum Biebertal
A84: 37355 | B84: Sm 2 | C84: Uwe | D84: Baer | E84: 1. BGC Wesseling 1975 e.V.
A85: 44139 | B85: Sm 1 | C85: Thomas | D85: Bahr | E85: BGSV Castrop e.V. 1961
A86: 46033 | B86: H | C86: Sascha | D86: Bähr | E86: Niendorfer MC
A87: 29699 | B87: Sm 2 | C87: Hans | D87: Baier | E87: MGC Oberkochen e.V.
A88: 37654 | B88: Sm 1 | C88: Dieter | D88: Baierl | E88: MGC Ingolstadt e.V.
A89: 37653 | B89: Sw 1 | C89: Andrea | D89: Baierl | E89: MGC Ingolstadt e.V.
A90: 48505 | B90: Sm 1 | C90: Varyam-Mirza | D90: Baig | E90: MGC Wetzlar e.V.
A91: 4489 | B91: Sm 2 | C91: Karl-Heinz | D91: Bailer | E91: MGC 85 Bönnigheim
A92: 33109 | B92: Sm 2 | C92: Heinz | D92: Balbach | E92: MGC Unterschneidheim e.V.
A93: 67268 | B93: Sm 2 | C93: Thomas | D93: Baldauf | E93: BSG Pneumant Fürstenwalde e.V., Abt. Minigolf
A94: 66669 | B94: Sm 1 | C94: Thomas | D94: Balf | E94: BGC Uerdingen e.V.
A95: 67281 | B95: Jm | C95: Kreon | D95: Balis | E95: 1. Münchener MGC e.V.
A96: 33514 | B96: H | C96: Christian | D96: Balleininger | E96: 1. MGC Bamberg e.V.
A97: 5910 | B97: Sm 2 | C97: Lyo | D97: Balleininger | E97: 1. MGC Bamberg e.V.
A98: 40906 | B98: D | C98: Yvonne | D98: Baltes | E98: MSC Bad Godesberg e.V.
A99: 46565 | B99: Sw 1 | C99: Iris | D99: Balzer | E99: 1. Porzer MGC Grün-Weiß 1969 e.V.
A100: 3354 | B100: Sm 2 | C100: Hans | D100: Balzer | E100: 1. Porzer MGC Grün-Weiß 1969 e.V.
A101: 5073 | B101: Sm 2 | C101: Max | D101: Balzereit | E101: BSC Ennepetal e.V.
A102: 38190 | B102: H | C102: Dennis | D102: Bamberg | E102: 1. MGC Saar 68 St. Ingbert e.V.
A103: 42482 | B103: Sm 1 | C103: Michael | D103: Bamberg | E103: 1. MGC Mainz e.V.
A104: 25993 | B104: Sw 1 | C104: Gabriele | D104: Bamberg | E104: 1. MGC Mainz e.V.
A105: 48318 | B105: H | C105: Tobias | D105: Bär | E105: MGC Bad Hersfeld
A106: 38333 | B106: Sw 1 | C106: Claudia | D106: Barber | E106: MSV Würzburg-Löwenbrücke e.V.
A107: 43841 | B107: Sm 1 | C107: Jens | D107: Bardenhagen | E107: MGC Brunsbüttel e.V.
A108: 25214 | B108: Sm 2 | C108: Stefan | D108: Bärenz | E108: SV 1890 e.V. Dreieichenhain, Abt. Bahnengolf
A109: 37576 | B109: Sm 2 | C109: Bernd | D109: Bargenda | E109: MGC Harrislee-Wassersleben
A110: 67241 | B110: Sm 1 | C110: Heinz | D110: Bark | E110: MGC Dortmund Syburg e.V.
A111: 36967 | B111: Sm 1 | C111: Thomas | D111: Barke | E111: 1. Essener CGC "Blau-Gold" e.V.
A112: 38123 | B112: Sm 1 | C112: Mario | D112: Barke | E112: 1. Essener CGC "Blau-Gold" e.V.
A113: 29656 | B113: H | C113: René | D113: Barlog | E113: Bochumer Minigolf-Club 1960 e.V.
A114: 66068 | B114: Sm 2 | C114: Hermann | D114: Barnstorf | E114: VfL Lüneburg | F114: Ja
A115: 38086 | B115: H | C115: Daniel | D115: Bärsch | E115: BGC Leipzig
A116: 67323 | B116: Sm 2 | C116: Michael | D116: Bartel | E116: Osnabrücker M.-C. von 1963 e.V.
A117: 36395 | B117: Sm 1 | C117: Harald | D117: Barth | E117: 1. BGC Wesseling 1975 e.V.
A118: 50563 | B118: Sw 1 | C118: Susanne | D118: Barth | E118: MSC Bad Godesberg e.V.
A119: 66777 | B119: H | C119: Patrick | D119: Bartholomä | E119: MGC Kassel | F119: Ja
A120: 66896 | B120: H | C120: Pierre | D120: Bartholomä | E120: MGC Kassel | F120: Ja
A121: 41145 | B121: Sm 1 | C121: Volker | D121: Bartmann | E121: BGSV Bad Homburg
A122: 67404 | B122: Sm 2 | C122: Paul | D122: Bartsch | E122: BV Sennestadt
A123: 38103 | B123: H | C123: Patrick | D123: Barz | E123: MGC Göttingen | F123: Ja
A124: 38104 | B124: Sm 1 | C124: Ralf | D124: Barz | E124: VfM e.V. Berlin
A125: 38102 | B125: Sw 1 | C125: Birgit | D125: Barz | E125: VfM e.V. Berlin
A126: 46055 | B126: Sm 2 | C126: Andreas | D126: Barz | E126: MGC Olympia Kiel e.V.
A127: 37582 | B127: D | C127: Ann-Kathrin | D127: Bastian | E127: BGC Bildstock e.V.
A128: 37583 | B128: Sw 1 | C128: Claudia | D128: Bastian | E128: BGC Bildstock e.V.
A129: 46910 | B129: Sm 2 | C129: Richard | D129: Bätge | E129: SV Gebhardshagen | F129: Ja | G129: 20059 | K129: X
A130: 65848 | B130: Jm | C130: Adrian | D130: Batschkus | E130: 1. Münchener MGC e.V.
A131: 66273 | B131: Schm | C131: Quirin | D131: Batschkus | E131: 1. Münchener MGC e.V.
A132: 23741 | B132: Sm 1 | C132: Wolfgang | D132: Battig | E132: MC 62 Lüdenscheid e.V.
A133: 37799 | B133: H | C133: Jan Hendrik | D133: Battling | E133: MGC "AS" Witten 1963 e.V.
A134: 34490 | B134: Sm 1 | C134: Thomas | D134: Bätz | E134: MSC Bad Godesberg e.V.
A135: 67284 | B135: H | C135: Thorsten | D135: Bauer | E135: MSK Olching e.V.
A136: 67282 | B136: D | C136: Daniela | D136: Bauer | E136: MSK Olching e.V.
A137: 67283 | B137: Schw | C137: Selina | D137: Bauer | E137: MSK Olching e.V.
A138: 40471 | B138: Sm 1 | C138: Helmut | D138: Bauer | E138: 1. MGC München-Feldmoching e.V.
A139: 46532 | B139: Sm 1 | C139: Siegfried | D139: Bauer | E139: BGC Bad Berneck e.V.
A140: 40864 | B140: Sm 1 | C140: Martin | D140: Bauer | E140: BGC Bildstock e.V.
A141: 5751 | B141: Sm 2 | C141: Helmut | D141: Bauerfeld | E141: Freizeit Club Bliesen e.V.
A142: 28605 | B142: Sm 1 | C142: Stephan | D142: Bauermeister | E142: MGC Murnau am Staffelsee e.V.
A143: 36137 | B143: Sw 1 | C143: Barbara | D143: Bauermeister | E143: MGC Murnau am Staffelsee e.V.
A144: 46616 | B144: H | C144: Marcus | D144: Bauhofer | E144: BGC Heilbronn e.V.
A145: 36563 | B145: H | C145: Oliver | D145: Baum | E145: SV Gebhardshagen | F145: Ja
A146: 65195 | B146: Sm 1 | C146: Harald | D146: Baumann | E146: MGF Waldshut 74 e.V.
A147: 37803 | B147: Sm 2 | C147: Wolfgang | D147: Baumbach | E147: 1. MGC Saar 68 St. Ingbert e.V.
A148: 26398 | B148: H | C148: Daniel | D148: Baumer | E148: 1. MGC München-Feldmoching e.V.
A149: 3998 | B149: Sm 2 | C149: Klaus | D149: Baumer | E149: BGC Illertissen e.V.
A150: 47033 | B150: Sw 2 | C150: Ruth | D150: Baumer | E150: BGC Illertissen e.V.
A151: 37760 | B151: H | C151: Thorben | D151: Baumgart | E151: MSK Neheim-Hüsten e.V.
A152: 29220 | B152: Sm 1 | C152: Dirk | D152: Baumgart | E152: MSK Neheim-Hüsten e.V.
A153: 38226 | B153: H | C153: Wolfgang | D153: Bäurle | E153: ASV Pegnitz, Abt. Minigolf
A154: 38639 | B154: Jm | C154: Fabian | D154: Bayer | E154: MGF Ottobrunn e.V.
A155: 67374 | B155: Schm | C155: Tobias | D155: Bayer | E155: BIG ASPERG e.V.
A156: 38632 | B156: Sm 1 | C156: Jimmy | D156: Bayer | E156: MGC Murnau am Staffelsee e.V.
A157: 66645 | B157: Sm 1 | C157: Wolfgang | D157: Bayer | E157: MGC Murnau am Staffelsee e.V.
A158: 5942 | B158: Sm 2 | C158: Hubert | D158: Bayer | E158: 1. BGC Landshut e.V.
A159: 67061 | B159: Sm 2 | C159: Willi | D159: Bayer | E159: BIG ASPERG e.V.
A160: 66112 | B160: Sm 2 | C160: Erich | D160: Beausencourt | E160: Minigolf-Club Diessen
A161: 66712 | B161: Jm | C161: Deniz-Benett | D161: Beceriklier | E161: MGC Lippe-Detmold e.V.
A162: 66500 | B162: Sw 1 | C162: Andrea | D162: Becher | E162: MSK Olching e.V.
A163: 66892 | B163: H | C163: Christian | D163: Beck | E163: 1. BGC Landshut e.V.
A164: 67204 | B164: Jm | C164: Simon | D164: Beck | E164: BGC Leipzig
A165: 40688 | B165: Sm 1 | C165: Oliver | D165: Beck | E165: MSV Bad Kreuznach
A166: 46021 | B166: Sm 2 | C166: Bernhard | D166: Beck | E166: 1. KC Homburg-Saar 1967 e.V.
A167: 38570 | B167: H | C167: Jan | D167: Becker | E167: SG Arheilgen Abt. Bahnengolf
A168: 66162 | B168: H | C168: Lars | D168: Becker | E168: SG Arheilgen Abt. Bahnengolf
A169: 37559 | B169: H | C169: Florian | D169: Becker | E169: MSK Neheim-Hüsten e.V.
A170: 35385 | B170: H | C170: Timo | D170: Becker | E170: MGC Schwaikheim e.V.
A171: 67092 | B171: D | C171: Cecina | D171: Becker | E171: SG Weiterstadt 1886 e.V.
A172: 35103 | B172: D | C172: Daniela | D172: Becker | E172: MGC Heven e.V.
A173: 38593 | B173: D | C173: Anna Lisa | D173: Becker | E173: 1. MGC Saar 68 St. Ingbert e.V.
A174: 33442 | B174: Sm 1 | C174: Martin | D174: Becker | E174: Reinickendorfer MGC e.V.
A175: 37225 | B175: Sm 1 | C175: Michael | D175: Becker | E175: SG Weiterstadt 1886 e.V.
A176: 44304 | B176: Sm 1 | C176: Norbert | D176: Becker | E176: SG Arheilgen Abt. Bahnengolf
A177: 26506 | B177: Sm 1 | C177: Gerd | D177: Becker | E177: MGC Dortmund Syburg e.V.
A178: 44303 | B178: Sw 1 | C178: Karin | D178: Becker | E178: SG Arheilgen Abt. Bahnengolf
A179: 25999 | B179: Sw 1 | C179: Ursula | D179: Becker | E179: 1. MGC Mannheim 1968 e.V.
A180: 3591 | B180: Sm 2 | C180: Werner | D180: Becker | E180: BSV Inzlingen 1979 e.V.
A181: 66583 | B181: Sm 2 | C181: Heinz | D181: Becker | E181: MGC Bad Soden-Salmünster
A182: 35612 | B182: Sm 2 | C182: Walter | D182: Becker | E182: 1. MGC Ludwigshafen e.V.
A183: 12781 | B183: Sm 2 | C183: Hans-Dieter | D183: Becker | E183: MSK Neheim-Hüsten e.V.
A184: 40005 | B184: Sm 2 | C184: Michael | D184: Becker | E184: SGC Hagen e.V.
A185: 66584 | B185: Sw 2 | C185: Renate | D185: Becker | E185: MGC Bad Soden-Salmünster
A186: 4101 | B186: Sw 2 | C186: Erika | D186: Becker | E186: MGC Dortmund Syburg e.V.
A187: 65404 | B187: Sm 1 | C187: Martin | D187: Beckert | E187: MSV Bad Münder/Springe | F187: Ja
A188: 26620 | B188: Sm 1 | C188: Thomas | D188: Beckmann | E188: MSK Neheim-Hüsten e.V.
A189: 37899 | B189: Sm 1 | C189: Joachim | D189: Bednar | E189: 1. MGC Mannheim 1968 e.V.
A190: 34186 | B190: H | C190: Stephan | D190: Behrens | E190: Niendorfer MC
A191: 67107 | B191: H | C191: Markus | D191: Behrens | E191: BGC Goslar | F191: Ja
A192: 67123 | B192: Schm | C192: Julien | D192: Behrens | E192: BGC Goslar | F192: Ja
A193: 65679 | B193: Sw 1 | C193: Susanne | D193: Behrens | E193: BGC Goslar | F193: Ja
A194: 37706 | B194: Sm 2 | C194: Wolfgang | D194: Behrens | E194: Minigolfclub Karlshagen e.V.
A195: 65678 | B195: Sm 2 | C195: Friedhelm | D195: Behrens | E195: BGC Goslar | F195: Ja
A196: 65677 | B196: Sw 2 | C196: Christiane | D196: Behrens | E196: BGC Goslar | F196: Ja
A197: 42529 | B197: Sm 1 | C197: Harald | D197: Beier | E197: 1. MGC Mitterteich-Großbüchlberg
A198: 42528 | B198: Sm 2 | C198: Jürgen | D198: Beier | E198: 1. MGC Mitterteich-Großbüchlberg
A199: 66569 | B199: Sm 2 | C199: Christian | D199: Beier | E199: MC Möve Cuxhaven | F199: Ja | G199: 28681 | I199: X
A200: 4750 | B200: Sw 2 | C200: Sylvia | D200: Beierle | E200: 2. MGC Worms
... 3779 more rows
